Ref No,Fund Type,Dept,Cost Centre Description    ,Description    ,Creditor Name    ,GL Code Net Amount,Payment date        
1,Revenue,CCHD,Elderly Purchasing - South,Residential Homes,Ablecare Homes,935, 22-Mar-2011
2,Revenue,CCHD,Elderly Purchasing - South,Residential Homes,Ablecare Homes,1334.12, 22-Mar-2011
3,Revenue,CCHD,Elderly Purchasing - South,Residential Homes,Aspects &  Milestones Trust,1397.24, 22-Mar-2011
4,Revenue,CCHD,Elderly Purchasing - South,Residential Homes,Bethany Christian Home,623.4, 22-Mar-2011
5,Revenue,CCHD,Elderly Purchasing - South,Residential Homes,Cepen Lodge Care Home,2120, 22-Mar-2011
6,Revenue,CCHD,Elderly Purchasing - South,Residential Homes,Cepen Lodge Care Home,2120, 22-Mar-2011
7,Revenue,CCHD,Elderly Purchasing - South,Residential Homes,Cleeve Lodge,1290.08, 22-Mar-2011
8,Revenue,CCHD,Elderly Purchasing - South,Residential Homes,Cleeve Lodge,1326.68, 22-Mar-2011
9,Revenue,CCHD,Elderly Purchasing - South,Residential Homes,Collingwood Residential Home,1023.4, 22-Mar-2011
10,Revenue,CCHD,Elderly Purchasing - South,Residential Homes,Collingwood Residential Home,1322.92, 22-Mar-2011
11,Revenue,CCHD,Elderly Purchasing - South,Residential Homes,Collingwood Residential Home,1793.57, 22-Mar-2011
12,Revenue,CCHD,Elderly Purchasing - South,Residential Homes,Collingwood Residential Home,1256.96, 22-Mar-2011
13,Revenue,CCHD,Elderly Purchasing - South,Residential Homes,Collingwood Residential Home,628.48, 22-Mar-2011
14,Revenue,CCHD,Elderly Purchasing - South,Residential Homes,Collingwood Residential Home,1230, 22-Mar-2011
15,Revenue,CCHD,Elderly Purchasing - South,Residential Homes,Collingwood Residential Home,1405.68, 22-Mar-2011
16,Revenue,CCHD,Elderly Purchasing - South,Residential Homes,Edgecumbe Lodge,1414.8, 22-Mar-2011
17,Revenue,CCHD,Elderly Purchasing - South,Residential Homes,Edgecumbe Lodge,1010.58, 22-Mar-2011
18,Revenue,CCHD,Elderly Purchasing - South,Residential Homes,Edgecumbe Lodge,1242.44, 22-Mar-2011
19,Revenue,CCHD,Elderly Purchasing - South,Residential Homes,Edgemont House Ltd,1088.52, 22-Mar-2011
20,Revenue,CCHD,Elderly Purchasing - South,Residential Homes,Edgemont House Ltd,1298.56, 22-Mar-2011
21,Revenue,CCHD,Elderly Purchasing - South,Residential Homes,Elmbridge Residential Home Ltd,1312.24, 22-Mar-2011
22,Revenue,CCHD,Elderly Purchasing - South,Residential Homes,Fairview House,1116.49, 22-Mar-2011
23,Revenue,CCHD,Elderly Purchasing - South,Residential Homes,Four Seasons Health Care,1183.72, 22-Mar-2011
24,Revenue,CCHD,Elderly Purchasing - South,Residential Homes,Four Seasons Health Care,1243, 22-Mar-2011
25,Revenue,CCHD,Elderly Purchasing - South,Residential Homes,Four Seasons Health Care,974.6, 22-Mar-2011
26,Revenue,CCHD,Elderly Purchasing - South,Residential Homes,Four Seasons Health Care,1246.8, 22-Mar-2011
27,Revenue,CCHD,Elderly Purchasing - South,Residential Homes,Four Seasons Health Care,894.12, 22-Mar-2011
28,Revenue,CCHD,Elderly Purchasing - South,Residential Homes,Four Seasons Health Care,999.6, 22-Mar-2011
29,Revenue,CCHD,Elderly Purchasing - South,Residential Homes,Four Seasons Health Care,834.36, 22-Mar-2011
30,Revenue,CCHD,Elderly Purchasing - South,Residential Homes,Four Seasons Health Care,1133.92, 22-Mar-2011
31,Revenue,CCHD,Elderly Purchasing - South,Residential Homes,Four Seasons Health Care,1180.56, 22-Mar-2011
32,Revenue,CCHD,Elderly Purchasing - South,Residential Homes,Gwendoline House,1167.24, 22-Mar-2011
33,Revenue,CCHD,Elderly Purchasing - South,Residential Homes,Gwendoline House,1246.8, 22-Mar-2011
34,Revenue,CCHD,Elderly Purchasing - South,Residential Homes,Gwendoline House,1138.12, 22-Mar-2011
35,Revenue,CCHD,Elderly Purchasing - South,Residential Homes,Gwendoline House,1025.28, 22-Mar-2011
36,Revenue,CCHD,Elderly Purchasing - South,Residential Homes,Harefield Hall,1514.08, 22-Mar-2011
37,Revenue,CCHD,Elderly Purchasing - South,Residential Homes,Harefield Hall,1274.56, 22-Mar-2011
38,Revenue,CCHD,Elderly Purchasing - South,Residential Homes,Jah-Jireh Charity Homes,1258.8, 22-Mar-2011
39,Revenue,CCHD,Elderly Purchasing - South,Residential Homes,Kenver House Residential Home,1581.12, 22-Mar-2011
40,Revenue,CCHD,Elderly Purchasing - South,Residential Homes,Kenver House Residential Home,1396.84, 22-Mar-2011
41,Revenue,CCHD,Elderly Purchasing - South,Residential Homes,Kenver House Residential Home,1521.74, 22-Mar-2011
42,Revenue,CCHD,Elderly Purchasing - South,Residential Homes,Kenver House Residential Home,1528.12, 22-Mar-2011
43,Revenue,CCHD,Elderly Purchasing - South,Residential Homes,Kenver House Residential Home,1269.08, 22-Mar-2011
44,Revenue,CCHD,Elderly Purchasing - South,Residential Homes,Leonard Cheshire  National Account Centr,4353.96, 22-Mar-2011
45,Revenue,CCHD,Elderly Purchasing - South,Residential Homes,Park Farm House,1487.24, 22-Mar-2011
46,Revenue,CCHD,Elderly Purchasing - South,Residential Homes,Quality Care Homes Ltd,1264.6, 22-Mar-2011
47,Revenue,CCHD,Elderly Purchasing - South,Residential Homes,Quality Care Homes Ltd,1250.8, 22-Mar-2011
48,Revenue,CCHD,Elderly Purchasing - South,Residential Homes,Quality Care Homes Ltd,1423.76, 22-Mar-2011
49,Revenue,CCHD,Elderly Purchasing - South,Residential Homes,Quality Care Homes Ltd,1138.56, 22-Mar-2011
50,Revenue,CCHD,Elderly Purchasing - South,Residential Homes,Quality Care Homes Ltd,1245.36, 22-Mar-2011
51,Revenue,CCHD,Elderly Purchasing - South,Residential Homes,The Beeches,1120.64, 22-Mar-2011
52,Revenue,CCHD,Elderly Purchasing - South,Residential Homes,The Gables Residential Home,1221, 22-Mar-2011
53,Revenue,CCHD,Elderly Purchasing - South,Residential Homes,The Gables Residential Home,1118.84, 22-Mar-2011
54,Revenue,CCHD,Elderly Purchasing - South,Residential Homes,The Manor Cottage,1246.8, 22-Mar-2011
55,Revenue,CCHD,Elderly Purchasing - South,Residential Homes,The Manor Cottage,1014.32, 22-Mar-2011
56,Revenue,CCHD,Elderly Purchasing - South,Residential Homes,The Manor Cottage,1423.08, 22-Mar-2011
57,Revenue,CCHD,Elderly Purchasing - South,Residential Homes,The Manor Cottage,928.12, 22-Mar-2011
58,Revenue,CCHD,Elderly Purchasing - South,Residential Homes,Tracs Group Ltd,6837.48, 22-Mar-2011
59,Revenue,CCHD,Elderly Purchasing - South,Residential Homes,Wayside Residential Care Home,1231.84, 22-Mar-2011
60,Revenue,CCHD,Elderly Purchasing - South,Residential Homes,Willow Cottage,1758.8, 22-Mar-2011
61,Revenue,CCHD,Elderly Purchasing - South,Nursing Homes,Aabletone Nursing Home,1211.48, 22-Mar-2011
62,Revenue,CCHD,Elderly Purchasing - South,Nursing Homes,Brunelcare,11868.94, 03-Mar-2011
63,Revenue,CCHD,Elderly Purchasing - South,Nursing Homes,Brunelcare,5057.36, 22-Mar-2011
64,Revenue,CCHD,Elderly Purchasing - South,Nursing Homes,Dunkirk Memorial House,1201.44, 22-Mar-2011
65,Revenue,CCHD,Elderly Purchasing - South,Nursing Homes,Edgemont View Nursing Home,1422.8, 22-Mar-2011
66,Revenue,CCHD,Elderly Purchasing - South,Nursing Homes,Edgemont View Nursing Home,1260.32, 22-Mar-2011
67,Revenue,CCHD,Elderly Purchasing - South,Nursing Homes,Edgemont View Nursing Home,1432.14, 22-Mar-2011
68,Revenue,CCHD,Elderly Purchasing - South,Nursing Homes,Fairview Court,4256, 22-Mar-2011
69,Revenue,CCHD,Elderly Purchasing - South,Nursing Homes,Four Seasons Health Care,866.88, 22-Mar-2011
70,Revenue,CCHD,Elderly Purchasing - South,Nursing Homes,Four Seasons Health Care,1366.8, 22-Mar-2011
71,Revenue,CCHD,Elderly Purchasing - South,Nursing Homes,Four Seasons Health Care,865.92, 22-Mar-2011
72,Revenue,CCHD,Elderly Purchasing - South,Nursing Homes,Four Seasons Health Care,1394.8, 22-Mar-2011
73,Revenue,CCHD,Elderly Purchasing - South,Nursing Homes,Four Seasons Health Care,1366.8, 22-Mar-2011
74,Revenue,CCHD,Elderly Purchasing - South,Nursing Homes,Four Seasons Health Care,1116.52, 22-Mar-2011
75,Revenue,CCHD,Elderly Purchasing - South,Nursing Homes,Four Seasons Health Care,1366.8, 22-Mar-2011
76,Revenue,CCHD,Elderly Purchasing - South,Nursing Homes,Four Seasons Health Care,1310.12, 22-Mar-2011
77,Revenue,CCHD,Elderly Purchasing - South,Nursing Homes,Four Seasons Health Care,1308.56, 22-Mar-2011
78,Revenue,CCHD,Elderly Purchasing - South,Nursing Homes,Four Seasons Health Care,1359.48, 22-Mar-2011
79,Revenue,CCHD,Elderly Purchasing - South,Nursing Homes,Four Seasons Health Care,1229.2, 22-Mar-2011
80,Revenue,CCHD,Elderly Purchasing - South,Nursing Homes,Four Seasons Health Care,1366.8, 22-Mar-2011
81,Revenue,CCHD,Elderly Purchasing - South,Nursing Homes,Four Seasons Health Care,1480.84, 22-Mar-2011
82,Revenue,CCHD,Elderly Purchasing - South,Nursing Homes,Four Seasons Health Care,1366.8, 22-Mar-2011
83,Revenue,CCHD,Elderly Purchasing - South,Nursing Homes,Four Seasons Health Care,1808, 22-Mar-2011
84,Revenue,CCHD,Elderly Purchasing - South,Nursing Homes,Four Seasons Health Care,1294.92, 22-Mar-2011
85,Revenue,CCHD,Elderly Purchasing - South,Nursing Homes,Four Seasons Health Care,1277.8, 22-Mar-2011
86,Revenue,CCHD,Elderly Purchasing - South,Nursing Homes,Four Seasons Health Care,1036.96, 22-Mar-2011
87,Revenue,CCHD,Elderly Purchasing - South,Nursing Homes,Four Seasons Health Care,1244.44, 22-Mar-2011
88,Revenue,CCHD,Elderly Purchasing - South,Nursing Homes,Four Seasons Health Care,1283.44, 22-Mar-2011
89,Revenue,CCHD,Elderly Purchasing - South,Nursing Homes,Four Seasons Health Care,1359.52, 22-Mar-2011
90,Revenue,CCHD,Elderly Purchasing - South,Nursing Homes,Four Seasons Health Care,1678.86, 22-Mar-2011
91,Revenue,CCHD,Elderly Purchasing - South,Nursing Homes,Four Seasons Health Care,1245.64, 22-Mar-2011
92,Revenue,CCHD,Elderly Purchasing - South,Nursing Homes,Four Seasons Health Care,987.28, 22-Mar-2011
93,Revenue,CCHD,Elderly Purchasing - South,Nursing Homes,Four Seasons Health Care,1366.8, 22-Mar-2011
94,Revenue,CCHD,Elderly Purchasing - South,Nursing Homes,Regent House,1638.6, 22-Mar-2011
95,Revenue,CCHD,Elderly Purchasing - South,Nursing Homes,Regent House,615.24, 22-Mar-2011
96,Revenue,CCHD,Elderly Purchasing - South,Nursing Homes,Regent House,1646.6, 22-Mar-2011
97,Revenue,CCHD,Elderly Purchasing - South,Nursing Homes,Regent House,1230.2, 22-Mar-2011
98,Revenue,CCHD,Elderly Purchasing - South,Nursing Homes,Riversway Nursing Home,1168.96, 22-Mar-2011
99,Revenue,CCHD,Elderly Purchasing - South,Nursing Homes,Southern Cross Healthcare,1308.28, 22-Mar-2011
100,Revenue,CCHD,Elderly Purchasing - South,Nursing Homes,St George Nursing Home,1266.8, 22-Mar-2011
101,Revenue,CCHD,Elderly Purchasing - South,Nursing Homes,Sunnymede Nursing Home,1155.2, 22-Mar-2011
102,Revenue,CCHD,Elderly Purchasing - South,Nursing Homes,The Heathers,1302.8, 22-Mar-2011
103,Revenue,CCHD,Elderly Purchasing - North,Residential Homes,Ablecare Homes,846.72, 22-Mar-2011
104,Revenue,CCHD,Elderly Purchasing - North,Residential Homes,Ablecare Homes,1269.52, 22-Mar-2011
105,Revenue,CCHD,Elderly Purchasing - North,Residential Homes,Ablecare Homes,1246.84, 22-Mar-2011
106,Revenue,CCHD,Elderly Purchasing - North,Residential Homes,Beaufort House,1690.44, 22-Mar-2011
107,Revenue,CCHD,Elderly Purchasing - North,Residential Homes,Bridge House Care Home,1254.48, 22-Mar-2011
108,Revenue,CCHD,Elderly Purchasing - North,Residential Homes,Bridge House Care Home,1054.4, 22-Mar-2011
109,Revenue,CCHD,Elderly Purchasing - North,Residential Homes,Bridge House Care Home,1069, 22-Mar-2011
110,Revenue,CCHD,Elderly Purchasing - North,Residential Homes,Brook Lane Residential Home,1155.36, 22-Mar-2011
111,Revenue,CCHD,Elderly Purchasing - North,Residential Homes,Cleeve Lodge,1575.56, 22-Mar-2011
112,Revenue,CCHD,Elderly Purchasing - North,Residential Homes,Cleeve Lodge,1497.32, 22-Mar-2011
113,Revenue,CCHD,Elderly Purchasing - North,Residential Homes,Cleeve Lodge,1706.12, 22-Mar-2011
114,Revenue,CCHD,Elderly Purchasing - North,Residential Homes,Collingwood Residential Home,1117.68, 22-Mar-2011
115,Revenue,CCHD,Elderly Purchasing - North,Residential Homes,Faith House,928.4, 22-Mar-2011
116,Revenue,CCHD,Elderly Purchasing - North,Residential Homes,Four Seasons Health Care,1015.08, 22-Mar-2011
117,Revenue,CCHD,Elderly Purchasing - North,Residential Homes,Four Seasons Health Care,739.32, 22-Mar-2011
118,Revenue,CCHD,Elderly Purchasing - North,Residential Homes,Greensleeves,1313.88, 22-Mar-2011
119,Revenue,CCHD,Elderly Purchasing - North,Residential Homes,Hawkridge House,753.52, 22-Mar-2011
120,Revenue,CCHD,Elderly Purchasing - North,Residential Homes,Kingswood Care Centre,1238.28, 22-Mar-2011
121,Revenue,CCHD,Elderly Purchasing - North,Residential Homes,Newton House,887.84, 22-Mar-2011
122,Revenue,CCHD,Elderly Purchasing - North,Residential Homes,Osbourne Court,926.52, 22-Mar-2011
123,Revenue,CCHD,Elderly Purchasing - North,Residential Homes,Osbourne Court,1053.48, 22-Mar-2011
124,Revenue,CCHD,Elderly Purchasing - North,Residential Homes,Pennwood Lodge Nursing Home,1481.12, 22-Mar-2011
125,Revenue,CCHD,Elderly Purchasing - North,Residential Homes,Simeon Care For The Elderly,1468.44, 22-Mar-2011
126,Revenue,CCHD,Elderly Purchasing - North,Residential Homes,St Davids Lodge,3010.6, 22-Mar-2011
127,Revenue,CCHD,Elderly Purchasing - North,Residential Homes,The Manor Cottage,1218.4, 22-Mar-2011
128,Revenue,CCHD,Elderly Purchasing - North,Residential Homes,Westbury Nursing Home,1476.44, 22-Mar-2011
129,Revenue,CCHD,Elderly Purchasing - North,Residential Homes,Wickwar Nursing Home  Castle House,1143.56, 22-Mar-2011
130,Revenue,CCHD,Elderly Purchasing - North,Residential Homes,Wickwar Nursing Home  Castle House,1207.8, 22-Mar-2011
131,Revenue,CCHD,Elderly Purchasing - North,Residential Homes,Wickwar Nursing Home  Castle House,1379.04, 22-Mar-2011
132,Revenue,CCHD,Elderly Purchasing - North,Residential Homes,Wickwar Nursing Home  Castle House,1229.8, 22-Mar-2011
133,Revenue,CCHD,Elderly Purchasing - North,Residential Homes,Wickwar Nursing Home  Castle House,1384.52, 22-Mar-2011
134,Revenue,CCHD,Elderly Purchasing - North,Residential Homes,Willow Cottage,1286.08, 22-Mar-2011
135,Revenue,CCHD,Elderly Purchasing - North,Residential Homes,Windmill House,1128.6, 22-Mar-2011
136,Revenue,CCHD,Elderly Purchasing - North,Residential Homes,Windmill House,941.48, 22-Mar-2011
137,Revenue,CCHD,Elderly Purchasing - North,Nursing Homes,Beech House,1077.44, 22-Mar-2011
138,Revenue,CCHD,Elderly Purchasing - North,Nursing Homes,Beech House,607.22, 22-Mar-2011
139,Revenue,CCHD,Elderly Purchasing - North,Nursing Homes,Beech House,1515.24, 22-Mar-2011
140,Revenue,CCHD,Elderly Purchasing - North,Nursing Homes,Beech House,1915.84, 22-Mar-2011
141,Revenue,CCHD,Elderly Purchasing - North,Nursing Homes,Beech House,8504.78, 22-Mar-2011
142,Revenue,CCHD,Elderly Purchasing - North,Nursing Homes,Beech House,1118, 22-Mar-2011
143,Revenue,CCHD,Elderly Purchasing - North,Nursing Homes,Beech House,930.58, 22-Mar-2011
144,Revenue,CCHD,Elderly Purchasing - North,Nursing Homes,Beech House,604.88, 22-Mar-2011
145,Revenue,CCHD,Elderly Purchasing - North,Nursing Homes,Beech House,1403.2, 22-Mar-2011
146,Revenue,CCHD,Elderly Purchasing - North,Nursing Homes,Beech House,1220, 22-Mar-2011
147,Revenue,CCHD,Elderly Purchasing - North,Nursing Homes,Brunelcare,3187.67, 03-Mar-2011
148,Revenue,CCHD,Elderly Purchasing - North,Nursing Homes,Brunelcare,2879.19, 22-Mar-2011
149,Revenue,CCHD,Elderly Purchasing - North,Nursing Homes,Edgemont View Nursing Home,1458.64, 22-Mar-2011
150,Revenue,CCHD,Elderly Purchasing - North,Nursing Homes,Field House Care Home,1333.53, 22-Mar-2011
151,Revenue,CCHD,Elderly Purchasing - North,Nursing Homes,Four Seasons Health Care,866.6, 22-Mar-2011
152,Revenue,CCHD,Elderly Purchasing - North,Nursing Homes,Four Seasons Health Care,1330.8, 22-Mar-2011
153,Revenue,CCHD,Elderly Purchasing - North,Nursing Homes,Four Seasons Health Care,982.4, 22-Mar-2011
154,Revenue,CCHD,Elderly Purchasing - North,Nursing Homes,Four Seasons Health Care,2196.64, 22-Mar-2011
155,Revenue,CCHD,Elderly Purchasing - North,Nursing Homes,Four Seasons Health Care,1366.8, 22-Mar-2011
156,Revenue,CCHD,Elderly Purchasing - North,Nursing Homes,Four Seasons Health Care,1138.2, 22-Mar-2011
157,Revenue,CCHD,Elderly Purchasing - North,Nursing Homes,Four Seasons Health Care,757.92, 22-Mar-2011
158,Revenue,CCHD,Elderly Purchasing - North,Nursing Homes,Four Seasons Health Care,1498.88, 22-Mar-2011
159,Revenue,CCHD,Elderly Purchasing - North,Nursing Homes,Four Seasons Health Care,1402.72, 22-Mar-2011
160,Revenue,CCHD,Elderly Purchasing - North,Nursing Homes,Four Seasons Health Care,921, 22-Mar-2011
161,Revenue,CCHD,Elderly Purchasing - North,Nursing Homes,Four Seasons Health Care,1478.16, 22-Mar-2011
162,Revenue,CCHD,Elderly Purchasing - North,Nursing Homes,Four Seasons Health Care,1960.74, 22-Mar-2011
163,Revenue,CCHD,Elderly Purchasing - North,Nursing Homes,Four Seasons Health Care,1380.76, 22-Mar-2011
164,Revenue,CCHD,Elderly Purchasing - North,Nursing Homes,Four Seasons Health Care,1146.28, 22-Mar-2011
165,Revenue,CCHD,Elderly Purchasing - North,Nursing Homes,Four Seasons Health Care,898.32, 22-Mar-2011
166,Revenue,CCHD,Elderly Purchasing - North,Nursing Homes,Four Seasons Health Care,1315.28, 22-Mar-2011
167,Revenue,CCHD,Elderly Purchasing - North,Nursing Homes,Four Seasons Health Care,5613.64, 22-Mar-2011
168,Revenue,CCHD,Elderly Purchasing - North,Nursing Homes,Glebe House Nursing Home,1284.16, 22-Mar-2011
169,Revenue,CCHD,Elderly Purchasing - North,Nursing Homes,Glebe House Nursing Home,3420.72, 22-Mar-2011
170,Revenue,CCHD,Elderly Purchasing - North,Nursing Homes,Glebe House Nursing Home,1334.8, 22-Mar-2011
171,Revenue,CCHD,Elderly Purchasing - North,Nursing Homes,Horfield Care Limited,5665.45, 09-Mar-2011
172,Revenue,CCHD,Elderly Purchasing - North,Nursing Homes,Leonard Cheshire  National Account Centr,4531.24, 22-Mar-2011
173,Revenue,CCHD,Elderly Purchasing - North,Nursing Homes,The Heathers,1110.84, 22-Mar-2011
174,Revenue,CCHD,Elderly Purchasing - North,Nursing Homes,The Heathers,1169.56, 22-Mar-2011
175,Revenue,CCHD,Elderly Purchasing - North,Nursing Homes,Wickwar Nursing Home  Castle House,1302.8, 22-Mar-2011
176,Revenue,CCHD,Elderly Purchasing - North,Nursing Homes,Wickwar Nursing Home  Castle House,1419.84, 22-Mar-2011
177,Revenue,CCHD,Elderly Purchasing - North,Nursing Homes,Wickwar Nursing Home  Castle House,1448.36, 22-Mar-2011
178,Revenue,CCHD,Elderly Purchasing - North,Nursing Homes,Wickwar Nursing Home  Castle House,1400.08, 22-Mar-2011
179,Revenue,CCHD,Elderly Purchasing - North,Nursing Homes,Willow Cottage,1945.44, 22-Mar-2011
180,Revenue,CCHD,Elderly Purchasing - North,Nursing Homes,Willow Cottage,1237.68, 22-Mar-2011
181,Revenue,CCHD,Elderly Purchasing - North,Nursing Homes,Woodlands Manor,1558.92, 22-Mar-2011
182,Revenue,CCHD,Elderly Purchasing - North,Nursing Homes,Woodlands Manor,929, 22-Mar-2011
183,Revenue,CCHD,Elderly Purchasing - North,Nursing Homes,Woodlands Manor,1677.28, 22-Mar-2011
184,Revenue,CCHD,Frenchay Hospital Purchasing,Residential Homes,Ablecare Homes,1322.6, 22-Mar-2011
185,Revenue,CCHD,Frenchay Hospital Purchasing,Residential Homes,Ablecare Homes,1249.96, 22-Mar-2011
186,Revenue,CCHD,Frenchay Hospital Purchasing,Residential Homes,Anbridge Care Home,779.88, 22-Mar-2011
187,Revenue,CCHD,Frenchay Hospital Purchasing,Residential Homes,Beaufort House,739.52, 22-Mar-2011
188,Revenue,CCHD,Frenchay Hospital Purchasing,Residential Homes,Beaufort House,1290.72, 22-Mar-2011
189,Revenue,CCHD,Frenchay Hospital Purchasing,Residential Homes,Beaufort House,1296.8, 22-Mar-2011
190,Revenue,CCHD,Frenchay Hospital Purchasing,Residential Homes,Bridge House Care Home,2835.42, 22-Mar-2011
191,Revenue,CCHD,Frenchay Hospital Purchasing,Residential Homes,Cleeve Lodge,1830.6, 22-Mar-2011
192,Revenue,CCHD,Frenchay Hospital Purchasing,Residential Homes,Collingwood Residential Home,1231.88, 22-Mar-2011
193,Revenue,CCHD,Frenchay Hospital Purchasing,Residential Homes,Edgecumbe Lodge,2815.82, 22-Mar-2011
194,Revenue,CCHD,Frenchay Hospital Purchasing,Residential Homes,Edgecumbe Lodge,1234.33, 22-Mar-2011
195,Revenue,CCHD,Frenchay Hospital Purchasing,Residential Homes,Edgecumbe Lodge,1080.04, 22-Mar-2011
196,Revenue,CCHD,Frenchay Hospital Purchasing,Residential Homes,Edgemont House Ltd,1249.64, 22-Mar-2011
197,Revenue,CCHD,Frenchay Hospital Purchasing,Residential Homes,Edgemont House Ltd,1260.32, 22-Mar-2011
198,Revenue,CCHD,Frenchay Hospital Purchasing,Residential Homes,Fairview Court,1532.48, 22-Mar-2011
199,Revenue,CCHD,Frenchay Hospital Purchasing,Residential Homes,Fairview House,6700.8, 22-Mar-2011
200,Revenue,CCHD,Frenchay Hospital Purchasing,Residential Homes,Fairview House,1260, 22-Mar-2011
201,Revenue,CCHD,Frenchay Hospital Purchasing,Residential Homes,Fairview House,1290.72, 22-Mar-2011
202,Revenue,CCHD,Frenchay Hospital Purchasing,Residential Homes,Faith House,1302.84, 22-Mar-2011
203,Revenue,CCHD,Frenchay Hospital Purchasing,Residential Homes,Four Seasons Health Care,975.6, 22-Mar-2011
204,Revenue,CCHD,Frenchay Hospital Purchasing,Residential Homes,Four Seasons Health Care,1086.84, 22-Mar-2011
205,Revenue,CCHD,Frenchay Hospital Purchasing,Residential Homes,Four Seasons Health Care,890.57, 22-Mar-2011
206,Revenue,CCHD,Frenchay Hospital Purchasing,Residential Homes,Four Seasons Health Care,1245.8, 22-Mar-2011
207,Revenue,CCHD,Frenchay Hospital Purchasing,Residential Homes,Four Seasons Health Care,1218.32, 22-Mar-2011
208,Revenue,CCHD,Frenchay Hospital Purchasing,Residential Homes,Four Seasons Health Care,1114.28, 22-Mar-2011
209,Revenue,CCHD,Frenchay Hospital Purchasing,Residential Homes,Four Seasons Health Care,1260.64, 22-Mar-2011
210,Revenue,CCHD,Frenchay Hospital Purchasing,Residential Homes,Kenver House Residential Home,1406.8, 22-Mar-2011
211,Revenue,CCHD,Frenchay Hospital Purchasing,Residential Homes,Kenver House Residential Home,1614.04, 22-Mar-2011
212,Revenue,CCHD,Frenchay Hospital Purchasing,Residential Homes,Kenver House Residential Home,1229.1, 22-Mar-2011
213,Revenue,CCHD,Frenchay Hospital Purchasing,Residential Homes,Kenver House Residential Home,1079.52, 22-Mar-2011
214,Revenue,CCHD,Frenchay Hospital Purchasing,Residential Homes,Kenver House Residential Home,1638.8, 22-Mar-2011
215,Revenue,CCHD,Frenchay Hospital Purchasing,Residential Homes,Kenver House Residential Home,1170.57, 22-Mar-2011
216,Revenue,CCHD,Frenchay Hospital Purchasing,Residential Homes,Kenver House Residential Home,1568.12, 22-Mar-2011
217,Revenue,CCHD,Frenchay Hospital Purchasing,Residential Homes,Kingswood Care Centre,1121.48, 22-Mar-2011
218,Revenue,CCHD,Frenchay Hospital Purchasing,Residential Homes,Leonard Cheshire  National Account Centr,3698.2, 22-Mar-2011
219,Revenue,CCHD,Frenchay Hospital Purchasing,Residential Homes,Milburn Finance,1052.6, 22-Mar-2011
220,Revenue,CCHD,Frenchay Hospital Purchasing,Residential Homes,Osbourne Court,1734.4, 22-Mar-2011
221,Revenue,CCHD,Frenchay Hospital Purchasing,Residential Homes,Osbourne Court,1214.08, 22-Mar-2011
222,Revenue,CCHD,Frenchay Hospital Purchasing,Residential Homes,Quality Care Homes Ltd,1270.8, 22-Mar-2011
223,Revenue,CCHD,Frenchay Hospital Purchasing,Residential Homes,Quality Care Homes Ltd,1246.8, 22-Mar-2011
224,Revenue,CCHD,Frenchay Hospital Purchasing,Residential Homes,Quality Care Homes Ltd,801.51, 22-Mar-2011
225,Revenue,CCHD,Frenchay Hospital Purchasing,Residential Homes,Quality Care Homes Ltd,1036.36, 22-Mar-2011
226,Revenue,CCHD,Frenchay Hospital Purchasing,Residential Homes,Roundham Court,1246.8, 22-Mar-2011
227,Revenue,CCHD,Frenchay Hospital Purchasing,Residential Homes,St Monicas Trust,1249.96, 22-Mar-2011
228,Revenue,CCHD,Frenchay Hospital Purchasing,Residential Homes,Stonebow House Residential Home,1238.84, 22-Mar-2011
229,Revenue,CCHD,Frenchay Hospital Purchasing,Residential Homes,The Gables Residential Home,1246.8, 22-Mar-2011
230,Revenue,CCHD,Frenchay Hospital Purchasing,Residential Homes,The Grove,1246.48, 22-Mar-2011
231,Revenue,CCHD,Frenchay Hospital Purchasing,Residential Homes,The Grove,703.4, 22-Mar-2011
232,Revenue,CCHD,Frenchay Hospital Purchasing,Residential Homes,The Grove,847.52, 22-Mar-2011
233,Revenue,CCHD,Frenchay Hospital Purchasing,Residential Homes,The Worthies,606.92, 22-Mar-2011
234,Revenue,CCHD,Frenchay Hospital Purchasing,Residential Homes,Walton-On-Thames Charity,1246.8, 22-Mar-2011
235,Revenue,CCHD,Frenchay Hospital Purchasing,Residential Homes,Wayside Residential Care Home,1326.32, 22-Mar-2011
236,Revenue,CCHD,Frenchay Hospital Purchasing,Residential Homes,Wayside Residential Care Home,1406.8, 22-Mar-2011
237,Revenue,CCHD,Frenchay Hospital Purchasing,Residential Homes,Wayside Residential Care Home,803.89, 22-Mar-2011
238,Revenue,CCHD,Frenchay Hospital Purchasing,Residential Homes,Willow Cottage,1079.52, 22-Mar-2011
239,Revenue,CCHD,Frenchay Hospital Purchasing,Residential Homes,Willow Cottage,1315.16, 22-Mar-2011
240,Revenue,CCHD,Frenchay Hospital Purchasing,Residential Homes,Wisteria House,1246.8, 22-Mar-2011
241,Revenue,CCHD,Frenchay Hospital Purchasing,Nursing Homes,Beech House,1132.8, 22-Mar-2011
242,Revenue,CCHD,Frenchay Hospital Purchasing,Nursing Homes,Beech House,1563.12, 22-Mar-2011
243,Revenue,CCHD,Frenchay Hospital Purchasing,Nursing Homes,Brunel Care,5785.79, 22-Mar-2011
244,Revenue,CCHD,Frenchay Hospital Purchasing,Nursing Homes,Brunelcare,4546.08, 03-Mar-2011
245,Revenue,CCHD,Frenchay Hospital Purchasing,Nursing Homes,Brunelcare,4106.17, 22-Mar-2011
246,Revenue,CCHD,Frenchay Hospital Purchasing,Nursing Homes,Bupa Care Services  Bridge House,702.56, 22-Mar-2011
247,Revenue,CCHD,Frenchay Hospital Purchasing,Nursing Homes,Caring Homes Group Ltd,1390.44, 22-Mar-2011
248,Revenue,CCHD,Frenchay Hospital Purchasing,Nursing Homes,Cedar Care Homes Ltd,1082.68, 22-Mar-2011
249,Revenue,CCHD,Frenchay Hospital Purchasing,Nursing Homes,Desai Care Homes  C/O Waltham House,1195.08, 22-Mar-2011
250,Revenue,CCHD,Frenchay Hospital Purchasing,Nursing Homes,Edgemont View Nursing Home,1340.24, 22-Mar-2011
251,Revenue,CCHD,Frenchay Hospital Purchasing,Nursing Homes,Edgemont View Nursing Home,654.6, 22-Mar-2011
252,Revenue,CCHD,Frenchay Hospital Purchasing,Nursing Homes,Edgemont View Nursing Home,1373.96, 22-Mar-2011
253,Revenue,CCHD,Frenchay Hospital Purchasing,Nursing Homes,Elmwood Nursing Home,2332.12, 22-Mar-2011
254,Revenue,CCHD,Frenchay Hospital Purchasing,Nursing Homes,Four Seasons Health Care,1366.8, 22-Mar-2011
255,Revenue,CCHD,Frenchay Hospital Purchasing,Nursing Homes,Four Seasons Health Care,901.92, 22-Mar-2011
256,Revenue,CCHD,Frenchay Hospital Purchasing,Nursing Homes,Four Seasons Health Care,1366.8, 22-Mar-2011
257,Revenue,CCHD,Frenchay Hospital Purchasing,Nursing Homes,Four Seasons Health Care,1366.8, 22-Mar-2011
258,Revenue,CCHD,Frenchay Hospital Purchasing,Nursing Homes,Four Seasons Health Care,1166.04, 22-Mar-2011
259,Revenue,CCHD,Frenchay Hospital Purchasing,Nursing Homes,Four Seasons Health Care,1361, 22-Mar-2011
260,Revenue,CCHD,Frenchay Hospital Purchasing,Nursing Homes,Four Seasons Health Care,1366.8, 22-Mar-2011
261,Revenue,CCHD,Frenchay Hospital Purchasing,Nursing Homes,Four Seasons Health Care,1374.8, 22-Mar-2011
262,Revenue,CCHD,Frenchay Hospital Purchasing,Nursing Homes,Four Seasons Health Care,757.84, 22-Mar-2011
263,Revenue,CCHD,Frenchay Hospital Purchasing,Nursing Homes,Four Seasons Health Care,1534.8, 22-Mar-2011
264,Revenue,CCHD,Frenchay Hospital Purchasing,Nursing Homes,Four Seasons Health Care,1283.64, 22-Mar-2011
265,Revenue,CCHD,Frenchay Hospital Purchasing,Nursing Homes,Four Seasons Health Care,1253.12, 22-Mar-2011
266,Revenue,CCHD,Frenchay Hospital Purchasing,Nursing Homes,Four Seasons Health Care,1343.12, 22-Mar-2011
267,Revenue,CCHD,Frenchay Hospital Purchasing,Nursing Homes,Four Seasons Health Care,1221.6, 22-Mar-2011
268,Revenue,CCHD,Frenchay Hospital Purchasing,Nursing Homes,Four Seasons Health Care,1240.96, 22-Mar-2011
269,Revenue,CCHD,Frenchay Hospital Purchasing,Nursing Homes,Four Seasons Health Care,1366.8, 22-Mar-2011
270,Revenue,CCHD,Frenchay Hospital Purchasing,Nursing Homes,Four Seasons Health Care,1366.8, 22-Mar-2011
271,Revenue,CCHD,Frenchay Hospital Purchasing,Nursing Homes,Four Seasons Health Care,1307.18, 22-Mar-2011
272,Revenue,CCHD,Frenchay Hospital Purchasing,Nursing Homes,Four Seasons Health Care,1341.12, 22-Mar-2011
273,Revenue,CCHD,Frenchay Hospital Purchasing,Nursing Homes,Four Seasons Health Care,1173.04, 22-Mar-2011
274,Revenue,CCHD,Frenchay Hospital Purchasing,Nursing Homes,Four Seasons Health Care,1297.12, 22-Mar-2011
275,Revenue,CCHD,Frenchay Hospital Purchasing,Nursing Homes,Four Seasons Health Care,829.88, 22-Mar-2011
276,Revenue,CCHD,Frenchay Hospital Purchasing,Nursing Homes,Four Seasons Health Care,2196.64, 22-Mar-2011
277,Revenue,CCHD,Frenchay Hospital Purchasing,Nursing Homes,Four Seasons Health Care,1366.8, 22-Mar-2011
278,Revenue,CCHD,Frenchay Hospital Purchasing,Nursing Homes,Four Seasons Health Care,1390.8, 22-Mar-2011
279,Revenue,CCHD,Frenchay Hospital Purchasing,Nursing Homes,Four Seasons Health Care,1366.8, 22-Mar-2011
280,Revenue,CCHD,Frenchay Hospital Purchasing,Nursing Homes,Four Seasons Health Care,1366.8, 22-Mar-2011
281,Revenue,CCHD,Frenchay Hospital Purchasing,Nursing Homes,Four Seasons Health Care,1382.8, 22-Mar-2011
282,Revenue,CCHD,Frenchay Hospital Purchasing,Nursing Homes,Four Seasons Health Care,1808, 22-Mar-2011
283,Revenue,CCHD,Frenchay Hospital Purchasing,Nursing Homes,Four Seasons Health Care,1366.8, 22-Mar-2011
284,Revenue,CCHD,Frenchay Hospital Purchasing,Nursing Homes,Four Seasons Health Care,2050.2, 22-Mar-2011
285,Revenue,CCHD,Frenchay Hospital Purchasing,Nursing Homes,Four Seasons Health Care,1366.8, 22-Mar-2011
286,Revenue,CCHD,Frenchay Hospital Purchasing,Nursing Homes,Four Seasons Health Care,1336.28, 22-Mar-2011
287,Revenue,CCHD,Frenchay Hospital Purchasing,Nursing Homes,Four Seasons Health Care,881.92, 22-Mar-2011
288,Revenue,CCHD,Frenchay Hospital Purchasing,Nursing Homes,Four Seasons Health Care,1216.92, 22-Mar-2011
289,Revenue,CCHD,Frenchay Hospital Purchasing,Nursing Homes,Four Seasons Health Care,1363.84, 22-Mar-2011
290,Revenue,CCHD,Frenchay Hospital Purchasing,Nursing Homes,Four Seasons Health Care,807.52, 22-Mar-2011
291,Revenue,CCHD,Frenchay Hospital Purchasing,Nursing Homes,Frenchay Park Nursing Home,1222.36, 22-Mar-2011
292,Revenue,CCHD,Frenchay Hospital Purchasing,Nursing Homes,Glebe House Nursing Home,6107.67, 22-Mar-2011
293,Revenue,CCHD,Frenchay Hospital Purchasing,Nursing Homes,Holmwood House,1314.92, 22-Mar-2011
294,Revenue,CCHD,Frenchay Hospital Purchasing,Nursing Homes,Horfield Care Limited,5671.28, 09-Mar-2011
295,Revenue,CCHD,Frenchay Hospital Purchasing,Nursing Homes,Sedbury Park Care Centre,1301.88, 22-Mar-2011
296,Revenue,CCHD,Frenchay Hospital Purchasing,Nursing Homes,St George Nursing Home,1302.8, 22-Mar-2011
297,Revenue,CCHD,Frenchay Hospital Purchasing,Nursing Homes,St George Nursing Home,1302.8, 22-Mar-2011
298,Revenue,CCHD,Frenchay Hospital Purchasing,Nursing Homes,The Heathers,1314.8, 22-Mar-2011
299,Revenue,CCHD,Frenchay Hospital Purchasing,Nursing Homes,The Heathers,744.76, 22-Mar-2011
300,Revenue,CCHD,Frenchay Hospital Purchasing,Nursing Homes,The Heathers,1306.04, 22-Mar-2011
301,Revenue,CCHD,Frenchay Hospital Purchasing,Nursing Homes,The Heathers,1235.88, 22-Mar-2011
302,Revenue,CCHD,Frenchay Hospital Purchasing,Nursing Homes,Wickwar Nursing Home  Castle House,1000.56, 22-Mar-2011
303,Revenue,CCHD,Frenchay Hospital Purchasing,Nursing Homes,Wickwar Nursing Home  Castle House,3140.15, 22-Mar-2011
304,Revenue,CCHD,Frenchay Hospital Purchasing,Nursing Homes,Wickwar Nursing Home  Castle House,1159.93, 22-Mar-2011
305,Revenue,CCHD,Frenchay Hospital Purchasing,Nursing Homes,Wickwar Nursing Home  Castle House,1539.24, 22-Mar-2011
306,Revenue,CCHD,Frenchay Hospital Purchasing,Nursing Homes,Willow Cottage,1645.6, 22-Mar-2011
307,Revenue,CCHD,Frenchay Hospital Purchasing,Nursing Homes,Willow Cottage,1320.72, 22-Mar-2011
308,Revenue,CCHD,Southmead Hospital Purchasing,Residential Homes,Ablecare Homes,1462.88, 22-Mar-2011
309,Revenue,CCHD,Southmead Hospital Purchasing,Residential Homes,Beaufort House,1758.8, 22-Mar-2011
310,Revenue,CCHD,Southmead Hospital Purchasing,Residential Homes,Beaufort House,1507.54, 22-Mar-2011
311,Revenue,CCHD,Southmead Hospital Purchasing,Residential Homes,Bloomfield Care Centre,2160.44, 22-Mar-2011
312,Revenue,CCHD,Southmead Hospital Purchasing,Residential Homes,Brunel Care,1263.64, 22-Mar-2011
313,Revenue,CCHD,Southmead Hospital Purchasing,Residential Homes,Brunel Care,1319.48, 22-Mar-2011
314,Revenue,CCHD,Southmead Hospital Purchasing,Residential Homes,Chatsworth House,1032.12, 22-Mar-2011
315,Revenue,CCHD,Southmead Hospital Purchasing,Residential Homes,Cleeve Lodge,1169.56, 22-Mar-2011
316,Revenue,CCHD,Southmead Hospital Purchasing,Residential Homes,Collingwood Residential Home,2341.31, 22-Mar-2011
317,Revenue,CCHD,Southmead Hospital Purchasing,Residential Homes,Collingwood Residential Home,1236.92, 22-Mar-2011
318,Revenue,CCHD,Southmead Hospital Purchasing,Residential Homes,Edgecumbe Lodge,964.24, 22-Mar-2011
319,Revenue,CCHD,Southmead Hospital Purchasing,Residential Homes,Fairview Court,1679.84, 22-Mar-2011
320,Revenue,CCHD,Southmead Hospital Purchasing,Residential Homes,Fairview House,2455.65, 22-Mar-2011
321,Revenue,CCHD,Southmead Hospital Purchasing,Residential Homes,Fairview House,654.84, 22-Mar-2011
322,Revenue,CCHD,Southmead Hospital Purchasing,Residential Homes,Four Seasons Health Care,1129.04, 22-Mar-2011
323,Revenue,CCHD,Southmead Hospital Purchasing,Residential Homes,Four Seasons Health Care,1366.8, 22-Mar-2011
324,Revenue,CCHD,Southmead Hospital Purchasing,Residential Homes,Four Seasons Health Care,629.8, 22-Mar-2011
325,Revenue,CCHD,Southmead Hospital Purchasing,Residential Homes,Four Seasons Health Care,1257.6, 22-Mar-2011
326,Revenue,CCHD,Southmead Hospital Purchasing,Residential Homes,Four Seasons Health Care,1558.5, 22-Mar-2011
327,Revenue,CCHD,Southmead Hospital Purchasing,Residential Homes,Four Seasons Health Care,3874.48, 22-Mar-2011
328,Revenue,CCHD,Southmead Hospital Purchasing,Residential Homes,Four Seasons Health Care,817.52, 22-Mar-2011
329,Revenue,CCHD,Southmead Hospital Purchasing,Residential Homes,Four Seasons Health Care,1170.64, 22-Mar-2011
330,Revenue,CCHD,Southmead Hospital Purchasing,Residential Homes,Four Seasons Health Care,6428.86, 22-Mar-2011
331,Revenue,CCHD,Southmead Hospital Purchasing,Residential Homes,Four Seasons Health Care,1258.8, 22-Mar-2011
332,Revenue,CCHD,Southmead Hospital Purchasing,Residential Homes,Kenver House Residential Home,1638.8, 22-Mar-2011
333,Revenue,CCHD,Southmead Hospital Purchasing,Residential Homes,Mostyn Lodge Residential Home,1246.8, 22-Mar-2011
334,Revenue,CCHD,Southmead Hospital Purchasing,Residential Homes,Park Farm House,1517, 22-Mar-2011
335,Revenue,CCHD,Southmead Hospital Purchasing,Residential Homes,Quality Care Homes Ltd,1220.48, 22-Mar-2011
336,Revenue,CCHD,Southmead Hospital Purchasing,Residential Homes,Quality Care Homes Ltd,1249.96, 22-Mar-2011
337,Revenue,CCHD,Southmead Hospital Purchasing,Residential Homes,The Beeches,3250.59, 22-Mar-2011
338,Revenue,CCHD,Southmead Hospital Purchasing,Residential Homes,The Beeches,1246.8, 22-Mar-2011
339,Revenue,CCHD,Southmead Hospital Purchasing,Residential Homes,The Grove,1339.72, 22-Mar-2011
340,Revenue,CCHD,Southmead Hospital Purchasing,Residential Homes,The Manor Cottage,912.72, 22-Mar-2011
341,Revenue,CCHD,Southmead Hospital Purchasing,Residential Homes,Vaughan Lee House,1187.04, 22-Mar-2011
342,Revenue,CCHD,Southmead Hospital Purchasing,Residential Homes,Wayside Residential Care Home,1273.68, 22-Mar-2011
343,Revenue,CCHD,Southmead Hospital Purchasing,Residential Homes,Willow Cottage,3959.73, 22-Mar-2011
344,Revenue,CCHD,Southmead Hospital Purchasing,Residential Homes,Willow Cottage,1403.08, 22-Mar-2011
345,Revenue,CCHD,Southmead Hospital Purchasing,Residential Homes,Willow Cottage,1410.32, 22-Mar-2011
346,Revenue,CCHD,Southmead Hospital Purchasing,Residential Homes,Willow Cottage,1115.2, 22-Mar-2011
347,Revenue,CCHD,Southmead Hospital Purchasing,Nursing Homes,Beech House,1593.2, 22-Mar-2011
348,Revenue,CCHD,Southmead Hospital Purchasing,Nursing Homes,Brunelcare,1336.75, 03-Mar-2011
349,Revenue,CCHD,Southmead Hospital Purchasing,Nursing Homes,Brunelcare,1439.6, 22-Mar-2011
350,Revenue,CCHD,Southmead Hospital Purchasing,Nursing Homes,Fairview Court Care Home,1286.72, 22-Mar-2011
351,Revenue,CCHD,Southmead Hospital Purchasing,Nursing Homes,Four Seasons Health Care,1366.8, 22-Mar-2011
352,Revenue,CCHD,Southmead Hospital Purchasing,Nursing Homes,Four Seasons Health Care,1274.12, 22-Mar-2011
353,Revenue,CCHD,Southmead Hospital Purchasing,Nursing Homes,Four Seasons Health Care,1012.52, 22-Mar-2011
354,Revenue,CCHD,Southmead Hospital Purchasing,Nursing Homes,Four Seasons Health Care,1366.8, 22-Mar-2011
355,Revenue,CCHD,Southmead Hospital Purchasing,Nursing Homes,Four Seasons Health Care,809.64, 22-Mar-2011
356,Revenue,CCHD,Southmead Hospital Purchasing,Nursing Homes,Four Seasons Health Care,812.36, 22-Mar-2011
357,Revenue,CCHD,Southmead Hospital Purchasing,Nursing Homes,Four Seasons Health Care,1355.4, 22-Mar-2011
358,Revenue,CCHD,Southmead Hospital Purchasing,Nursing Homes,Four Seasons Health Care,1366.8, 22-Mar-2011
359,Revenue,CCHD,Southmead Hospital Purchasing,Nursing Homes,Four Seasons Health Care,709.6, 22-Mar-2011
360,Revenue,CCHD,Southmead Hospital Purchasing,Nursing Homes,Four Seasons Health Care,1366.8, 22-Mar-2011
361,Revenue,CCHD,Southmead Hospital Purchasing,Nursing Homes,Four Seasons Health Care,536.24, 22-Mar-2011
362,Revenue,CCHD,Southmead Hospital Purchasing,Nursing Homes,Four Seasons Health Care,585.77, 22-Mar-2011
363,Revenue,CCHD,Southmead Hospital Purchasing,Nursing Homes,Four Seasons Health Care,2147.83, 22-Mar-2011
364,Revenue,CCHD,Southmead Hospital Purchasing,Nursing Homes,Four Seasons Health Care,1366.8, 22-Mar-2011
365,Revenue,CCHD,Southmead Hospital Purchasing,Nursing Homes,Four Seasons Health Care,1562.06, 22-Mar-2011
366,Revenue,CCHD,Southmead Hospital Purchasing,Nursing Homes,Four Seasons Health Care,1366.8, 22-Mar-2011
367,Revenue,CCHD,Southmead Hospital Purchasing,Nursing Homes,Four Seasons Health Care,1151.88, 22-Mar-2011
368,Revenue,CCHD,Southmead Hospital Purchasing,Nursing Homes,Four Seasons Health Care,863.91, 22-Mar-2011
369,Revenue,CCHD,Southmead Hospital Purchasing,Nursing Homes,Four Seasons Health Care,1336.64, 22-Mar-2011
370,Revenue,CCHD,Southmead Hospital Purchasing,Nursing Homes,Four Seasons Health Care,1294.8, 22-Mar-2011
371,Revenue,CCHD,Southmead Hospital Purchasing,Nursing Homes,Four Seasons Health Care,760.4, 22-Mar-2011
372,Revenue,CCHD,Southmead Hospital Purchasing,Nursing Homes,Glebe House Nursing Home,1664.84, 22-Mar-2011
373,Revenue,CCHD,Southmead Hospital Purchasing,Nursing Homes,Horfield Care Limited,959.15, 09-Mar-2011
374,Revenue,CCHD,Southmead Hospital Purchasing,Nursing Homes,Leonard Cheshire  National Account Centr,2910.28, 22-Mar-2011
375,Revenue,CCHD,Southmead Hospital Purchasing,Nursing Homes,Majestic 3 Limited,1052.32, 22-Mar-2011
376,Revenue,CCHD,Southmead Hospital Purchasing,Nursing Homes,Mimosa Healthcare Holdings Ltd,855.64, 22-Mar-2011
377,Revenue,CCHD,Southmead Hospital Purchasing,Nursing Homes,Regent House,1384.8, 22-Mar-2011
378,Revenue,CCHD,Southmead Hospital Purchasing,Nursing Homes,Riversway Nursing Home,1362.52, 22-Mar-2011
379,Revenue,CCHD,Southmead Hospital Purchasing,Nursing Homes,Riversway Nursing Home,1708, 22-Mar-2011
380,Revenue,CCHD,Southmead Hospital Purchasing,Nursing Homes,Southern Cross Healthcare,1604, 22-Mar-2011
381,Revenue,CCHD,Southmead Hospital Purchasing,Nursing Homes,St George Nursing Home,1413.2, 22-Mar-2011
382,Revenue,CCHD,Southmead Hospital Purchasing,Nursing Homes,Sunnymede Nursing Home,1302.8, 22-Mar-2011
383,Revenue,CCHD,Southmead Hospital Purchasing,Nursing Homes,The Heathers,1034.68, 22-Mar-2011
384,Revenue,CCHD,Southmead Hospital Purchasing,Nursing Homes,The Laurels Nursing Home,1382.28, 22-Mar-2011
385,Revenue,CCHD,Southmead Hospital Purchasing,Nursing Homes,Wickwar Nursing Home  Castle House,751.52, 22-Mar-2011
386,Revenue,CCHD,Southmead Hospital Purchasing,Nursing Homes,Wickwar Nursing Home  Castle House,1133.2, 22-Mar-2011
387,Revenue,CCHD,Southmead Hospital Purchasing,Nursing Homes,Willow Cottage,1461.96, 22-Mar-2011
388,Revenue,CCHD,Southmead Hospital Purchasing,Nursing Homes,Willow Cottage,1312.76, 22-Mar-2011
389,Revenue,CCHD,Cash for Change Discharges,Nursing Homes,Four Seasons Health Care,1366.8, 22-Mar-2011
390,Revenue,CCHD,Intermediate Care Accommodation,Other Supplies & Services,Merlin Housing Society,880.79, 03-Mar-2011
391,Revenue,CCHD,Intermediate Care Accommodation,Other Supplies & Services,Merlin Housing Society,1101, 22-Mar-2011
392,Revenue,CCHD,South Glos Users in South Glos Homes,Nursing Homes,Beech House,1211.23, 22-Mar-2011
393,Revenue,CCHD,South Glos Users in South Glos Homes,Nursing Homes,Brunelcare,12158.86, 03-Mar-2011
394,Revenue,CCHD,South Glos Users in South Glos Homes,Nursing Homes,Brunelcare,10124.64, 22-Mar-2011
395,Revenue,CCHD,South Glos Users in South Glos Homes,Nursing Homes,Fairview Court,4130.6, 22-Mar-2011
396,Revenue,CCHD,South Glos Users in South Glos Homes,Nursing Homes,Fairview Court Care Home,2406.92, 22-Mar-2011
397,Revenue,CCHD,South Glos Users in South Glos Homes,Nursing Homes,Four Seasons Health Care,9315.1, 22-Mar-2011
398,Revenue,CCHD,South Glos Users in South Glos Homes,Nursing Homes,Four Seasons Health Care,869.6, 22-Mar-2011
399,Revenue,CCHD,South Glos Users in South Glos Homes,Nursing Homes,Four Seasons Health Care,1242.29, 22-Mar-2011
400,Revenue,CCHD,South Glos Users in South Glos Homes,Nursing Homes,Four Seasons Health Care,1506.27, 22-Mar-2011
401,Revenue,CCHD,South Glos Users in South Glos Homes,Nursing Homes,Four Seasons Health Care,1211.23, 22-Mar-2011
402,Revenue,CCHD,South Glos Users in South Glos Homes,Nursing Homes,Four Seasons Health Care,1552.86, 22-Mar-2011
403,Revenue,CCHD,South Glos Users in South Glos Homes,Nursing Homes,Four Seasons Health Care,729.84, 22-Mar-2011
404,Revenue,CCHD,South Glos Users in South Glos Homes,Nursing Homes,Holmwood House,1397.57, 22-Mar-2011
405,Revenue,CCHD,South Glos Users in South Glos Homes,Nursing Homes,Holmwood House,1413.1, 22-Mar-2011
406,Revenue,CCHD,South Glos Users in South Glos Homes,Nursing Homes,Holmwood House,1149.11, 22-Mar-2011
407,Revenue,CCHD,South Glos Users in South Glos Homes,Nursing Homes,Regent House,1382.04, 22-Mar-2011
408,Revenue,CCHD,South Glos Users in South Glos Homes,Nursing Homes,Regent House,2220.59, 22-Mar-2011
409,Revenue,CCHD,South Glos Users in South Glos Homes,Nursing Homes,Regent House,2469.04, 22-Mar-2011
410,Revenue,CCHD,South Glos Users in South Glos Homes,Nursing Homes,Regent House,869.6, 22-Mar-2011
411,Revenue,CCHD,South Glos Users in South Glos Homes,Nursing Homes,Regent House,931.71, 22-Mar-2011
412,Revenue,CCHD,South Glos Users in South Glos Homes,Nursing Homes,Wickwar Nursing Home  Castle House,3540.51, 22-Mar-2011
413,Revenue,CCHD,South Glos Users in South Glos Homes,Nursing Homes,Wickwar Nursing Home  Castle House,683.26, 22-Mar-2011
414,Revenue,CCHD,South Glos Users in South Glos Homes,Nursing Homes,Wickwar Nursing Home  Castle House,1024.89, 22-Mar-2011
415,Revenue,CCHD,South Glos Users in South Glos Homes,Nursing Homes,Wickwar Nursing Home  Castle House,7999.52, 22-Mar-2011
416,Revenue,CCHD,South Glos Users in South Glos Homes,Nursing Homes,Wickwar Nursing Home  Castle House,823.01, 22-Mar-2011
417,Revenue,CCHD,South Glos Users in South Glos Homes,Nursing Homes,Willow Cottage,931.72, 22-Mar-2011
418,Revenue,CCHD,South Glos Users in South Glos Homes,Nursing Homes,Woodlands Manor,1739.2, 22-Mar-2011
419,Revenue,CCHD,South Glos Users in South Glos Homes,Nursing Homes,Woodlands Manor,760.9, 22-Mar-2011
420,Revenue,CCHD,South Glos Users in South Glos Homes,Nursing Homes,Woodlands Manor,1195.7, 22-Mar-2011
421,Revenue,CCHD,South Glos Users in all other LA Homes,Nursing Homes,Bupa Care Services  Bridge House,598.4, 22-Mar-2011
422,Revenue,CCHD,South Glos Users in all other LA Homes,Nursing Homes,Leonard Cheshire  National Account Centr,598.4, 22-Mar-2011
423,Revenue,CCHD,Swift Dump Code,Residential Homes,The Brandon Trust  Olympus House,1688.2, 22-Mar-2011
424,Revenue,CCHD,Purchase of Day Centre places,Other L.A.'s - General,Bristol City Council,3811, 02-Mar-2011
425,Revenue,CCHD,Home Care Purch South,Private & Voluntary Home Care,Housing 21,22092.54, 01-Mar-2011
426,Revenue,CCHD,Home Care Purch South,Other Small Contracts,Bradley House Home Care Services,99.13, 11-Mar-2011
427,Revenue,CCHD,Home Care Purch South,Other Small Contracts,Bradley House Home Care Services,94.82, 03-Mar-2011
428,Revenue,CCHD,Home Care Purch South,Other Small Contracts,Bradley House Home Care Services,90.51, 23-Mar-2011
429,Revenue,CCHD,Home Care Purch South,Other Small Contracts,Bradley House Home Care Services,90.51, 03-Mar-2011
430,Revenue,CCHD,Home Care Purch South,Other Small Contracts,Bradley House Home Care Services,90.51, 28-Mar-2011
431,Revenue,CCHD,Home Care Purch South,Other Small Contracts,Bradley House Home Care Services,90.51, 08-Mar-2011
432,Revenue,CCHD,Home Care Purch South,Other Small Contracts,Chrysalis Community Care Group Ltd,170, 07-Mar-2011
433,Revenue,CCHD,Home Care Purch South,Other Small Contracts,Chrysalis Community Care Group Ltd,380.8, 30-Mar-2011
434,Revenue,CCHD,Home Care Purch South,Other Small Contracts,Chrysalis Community Care Group Ltd,370.6, 07-Mar-2011
435,Revenue,CCHD,Home Care Purch South,Other Small Contracts,Chrysalis Community Care Group Ltd,370.6, 07-Mar-2011
436,Revenue,CCHD,Home Care Purch South,Other Small Contracts,Chrysalis Community Care Group Ltd,363.8, 07-Mar-2011
437,Revenue,CCHD,Home Care Purch South,Other Small Contracts,DoCare Ltd,1994.85, 11-Mar-2011
438,Revenue,CCHD,Home Care Purch South,Other Small Contracts,DoCare Ltd,2041.35, 15-Mar-2011
439,Revenue,CCHD,Home Care Purch South,Other Small Contracts,DoCare Ltd,2292.45, 15-Mar-2011
440,Revenue,CCHD,Home Care Purch South,Other Small Contracts,Greenbanks Homecare (Western) Limited,4539.36, 08-Mar-2011
441,Revenue,CCHD,Home Care Purch South,Other Small Contracts,Greenbanks Homecare (Western) Limited,4790.26, 08-Mar-2011
442,Revenue,CCHD,Home Care Purch South,Other Small Contracts,Greenbanks Homecare (Western) Limited,4632, 08-Mar-2011
443,Revenue,CCHD,Home Care Purch South,Other Small Contracts,Greenbanks Homecare (Western) Limited,4632, 08-Mar-2011
444,Revenue,CCHD,Home Care Purch South,Other Small Contracts,Greenbanks Homecare (Western) Limited,4408.12, 30-Mar-2011
445,Revenue,CCHD,Home Care Purch South,Other Small Contracts,Guardian Homecare (Bristol & Avon) Ltd,2706.4, 11-Mar-2011
446,Revenue,CCHD,Home Care Purch South,Other Small Contracts,Guardian Homecare (Bristol & Avon) Ltd,3036.74, 10-Mar-2011
447,Revenue,CCHD,Home Care Purch South,Other Small Contracts,Guardian Homecare (Bristol & Avon) Ltd,3601.9, 10-Mar-2011
448,Revenue,CCHD,Home Care Purch South,Other Small Contracts,Guardian Homecare (Bristol & Avon) Ltd,3251.66, 28-Mar-2011
449,Revenue,CCHD,Home Care Purch South,Other Small Contracts,Mears Care,1588.6, 08-Mar-2011
450,Revenue,CCHD,Home Care Purch South,Other Small Contracts,Mears Care,1626.2, 30-Mar-2011
451,Revenue,CCHD,Home Care Purch South,Other Small Contracts,Mears Care,1635.6, 30-Mar-2011
452,Revenue,CCHD,Home Care Purch South,Other Small Contracts,Nursing Solutions Limited,834.3, 14-Mar-2011
453,Revenue,CCHD,Home Care Purch South,Other Small Contracts,Nursing Solutions Limited,818.1, 14-Mar-2011
454,Revenue,CCHD,Home Care Purch South,Other Small Contracts,Nursing Solutions Limited,850.5, 14-Mar-2011
455,Revenue,CCHD,Home Care Purch South,Other Small Contracts,Nursing Solutions Limited,931.5, 14-Mar-2011
456,Revenue,CCHD,Home Care Purch South,Other Small Contracts,Nursing Solutions Limited,741.15, 14-Mar-2011
457,Revenue,CCHD,Home Care Purch South,Other Small Contracts,On the Up,403.38, 30-Mar-2011
458,Revenue,CCHD,Home Care Purch South,Other Small Contracts,Tender Home Care Limited,815.1, 11-Mar-2011
459,Revenue,CCHD,Home Care Purch South,Other Small Contracts,Tender Home Care Limited,672.98, 08-Mar-2011
460,Revenue,CCHD,Home Care Purch South,Other Small Contracts,Tender Home Care Limited,677.16, 30-Mar-2011
461,Revenue,CCHD,Home Care Purch South,Other Small Contracts,Tender Home Care Limited,881.98, 23-Mar-2011
462,Revenue,CCHD,Home Care Purch South,Other Small Contracts,Tender Home Care Limited,748.22, 30-Mar-2011
463,Revenue,CCHD,Home Care Purch North,Private & Voluntary Home Care,Housing 21,35220.9, 10-Mar-2011
464,Revenue,CCHD,Home Care Purch North,Other Small Contracts,3 Trees Community Support Ltd,500.64, 17-Mar-2011
465,Revenue,CCHD,Home Care Purch North,Other Small Contracts,Agincare UK Limited,1549.94, 03-Mar-2011
466,Revenue,CCHD,Home Care Purch North,Other Small Contracts,Agincare UK Limited,800.03, 03-Mar-2011
467,Revenue,CCHD,Home Care Purch North,Other Small Contracts,Agincare UK Limited,1549.94, 03-Mar-2011
468,Revenue,CCHD,Home Care Purch North,Other Small Contracts,Agincare UK Limited,800.03, 11-Mar-2011
469,Revenue,CCHD,Home Care Purch North,Other Small Contracts,Agincare UK Limited,800.03, 11-Mar-2011
470,Revenue,CCHD,Home Care Purch North,Other Small Contracts,Agincare UK Limited,1549.94, 24-Mar-2011
471,Revenue,CCHD,Home Care Purch North,Other Small Contracts,Agincare UK Limited,800.03, 24-Mar-2011
472,Revenue,CCHD,Home Care Purch North,Other Small Contracts,Allied  Healthcare Group Limited,3454.09, 08-Mar-2011
473,Revenue,CCHD,Home Care Purch North,Other Small Contracts,Allied  Healthcare Group Limited,1727.04, 08-Mar-2011
474,Revenue,CCHD,Home Care Purch North,Other Small Contracts,Bradley House Home Care Services,2560.14, 11-Mar-2011
475,Revenue,CCHD,Home Care Purch North,Other Small Contracts,Bradley House Home Care Services,2698.06, 03-Mar-2011
476,Revenue,CCHD,Home Care Purch North,Other Small Contracts,Bradley House Home Care Services,2422.22, 23-Mar-2011
477,Revenue,CCHD,Home Care Purch North,Other Small Contracts,Bradley House Home Care Services,2732.54, 03-Mar-2011
478,Revenue,CCHD,Home Care Purch North,Other Small Contracts,Bradley House Home Care Services,2499.8, 28-Mar-2011
479,Revenue,CCHD,Home Care Purch North,Other Small Contracts,Bradley House Home Care Services,2663.58, 08-Mar-2011
480,Revenue,CCHD,Home Care Purch North,Other Small Contracts,Chrysalis Community Care Group Ltd,1842.8, 07-Mar-2011
481,Revenue,CCHD,Home Care Purch North,Other Small Contracts,Chrysalis Community Care Group Ltd,1465.4, 30-Mar-2011
482,Revenue,CCHD,Home Care Purch North,Other Small Contracts,Chrysalis Community Care Group Ltd,1768, 07-Mar-2011
483,Revenue,CCHD,Home Care Purch North,Other Small Contracts,Chrysalis Community Care Group Ltd,1689.8, 07-Mar-2011
484,Revenue,CCHD,Home Care Purch North,Other Small Contracts,Chrysalis Community Care Group Ltd,1686.4, 07-Mar-2011
485,Revenue,CCHD,Home Care Purch North,Other Small Contracts,DoCare Ltd,3301.5, 11-Mar-2011
486,Revenue,CCHD,Home Care Purch North,Other Small Contracts,DoCare Ltd,3278.25, 15-Mar-2011
487,Revenue,CCHD,Home Care Purch North,Other Small Contracts,DoCare Ltd,3222.45, 15-Mar-2011
488,Revenue,CCHD,Home Care Purch North,Other Small Contracts,Greenbanks Homecare (Western) Limited,667.78, 08-Mar-2011
489,Revenue,CCHD,Home Care Purch North,Other Small Contracts,Greenbanks Homecare (Western) Limited,737.26, 08-Mar-2011
490,Revenue,CCHD,Home Care Purch North,Other Small Contracts,Greenbanks Homecare (Western) Limited,633.04, 08-Mar-2011
491,Revenue,CCHD,Home Care Purch North,Other Small Contracts,Greenbanks Homecare (Western) Limited,837.62, 08-Mar-2011
492,Revenue,CCHD,Home Care Purch North,Other Small Contracts,Greenbanks Homecare (Western) Limited,663.92, 30-Mar-2011
493,Revenue,CCHD,Home Care Purch North,Other Small Contracts,Guardian Homecare (Bristol & Avon) Ltd,3072.56, 11-Mar-2011
494,Revenue,CCHD,Home Care Purch North,Other Small Contracts,Guardian Homecare (Bristol & Avon) Ltd,3168.08, 10-Mar-2011
495,Revenue,CCHD,Home Care Purch North,Other Small Contracts,Guardian Homecare (Bristol & Avon) Ltd,3195.94, 10-Mar-2011
496,Revenue,CCHD,Home Care Purch North,Other Small Contracts,Guardian Homecare (Bristol & Avon) Ltd,3665.58, 28-Mar-2011
497,Revenue,CCHD,Home Care Purch North,Other Small Contracts,Kumari Care Limited,809.87, 03-Mar-2011
498,Revenue,CCHD,Home Care Purch North,Other Small Contracts,Kumari Care Limited,809.87, 03-Mar-2011
499,Revenue,CCHD,Home Care Purch North,Other Small Contracts,Kumari Care Limited,809.87, 03-Mar-2011
500,Revenue,CCHD,Home Care Purch North,Other Small Contracts,Kumari Care Limited,809.87, 14-Mar-2011
501,Revenue,CCHD,Home Care Purch North,Other Small Contracts,Kumari Care Limited,809.87, 24-Mar-2011
502,Revenue,CCHD,Home Care Purch North,Other Small Contracts,Lloyds TSB Commercial Finance Limited,2847.18, 03-Mar-2011
503,Revenue,CCHD,Home Care Purch North,Other Small Contracts,Mears Care,10466.9, 08-Mar-2011
504,Revenue,CCHD,Home Care Purch North,Other Small Contracts,Mears Care,10269.5, 30-Mar-2011
505,Revenue,CCHD,Home Care Purch North,Other Small Contracts,Mears Care,9865.3, 30-Mar-2011
506,Revenue,CCHD,Home Care Purch North,Other Small Contracts,Medico Nursing & Homecare Ltd,1927.73, 04-Mar-2011
507,Revenue,CCHD,Home Care Purch North,Other Small Contracts,Medico Nursing & Homecare Ltd,1927.73, 16-Mar-2011
508,Revenue,CCHD,Home Care Purch North,Other Small Contracts,Medico Nursing & Homecare Ltd,1927.73, 18-Mar-2011
509,Revenue,CCHD,Home Care Purch North,Other Small Contracts,Medico Nursing & Homecare Ltd,1927.73, 30-Mar-2011
510,Revenue,CCHD,Home Care Purch North,Other Small Contracts,Premier Homecare Limited,8540.79, 08-Mar-2011
511,Revenue,CCHD,Home Care Purch North,Other Small Contracts,Premier Homecare Limited,8257.92, 08-Mar-2011
512,Revenue,CCHD,Home Care Purch North,Other Small Contracts,Premier Homecare Limited,7926.08, 18-Mar-2011
513,Revenue,CCHD,Home Care Purch North,Other Small Contracts,Premier Homecare Limited,7659.52, 28-Mar-2011
514,Revenue,CCHD,Home Care Purch North,Other Small Contracts,Tender Home Care Limited,2516.36, 11-Mar-2011
515,Revenue,CCHD,Home Care Purch North,Other Small Contracts,Tender Home Care Limited,2541.44, 08-Mar-2011
516,Revenue,CCHD,Home Care Purch North,Other Small Contracts,Tender Home Care Limited,2570.7, 30-Mar-2011
517,Revenue,CCHD,Home Care Purch North,Other Small Contracts,Tender Home Care Limited,2491.28, 23-Mar-2011
518,Revenue,CCHD,Home Care Purch North,Other Small Contracts,Tender Home Care Limited,2512.18, 30-Mar-2011
519,Revenue,CCHD,Home Care Purch North,Other Small Contracts,The Royal Bank of Scotland Commercial,1095, 03-Mar-2011
520,Revenue,CCHD,Home Care Purch North,Other Small Contracts,The Royal Bank of Scotland Commercial,935, 24-Mar-2011
521,Revenue,CCHD,Home Care Purch North,Other Small Contracts,The Royal Bank of Scotland Commercial,1095, 30-Mar-2011
522,Revenue,CCHD,Electronic Home Care Monitoring,Other Supplies & Services,Care monitoring 2000 Ltd,5424.6, 02-Mar-2011
523,Revenue,CCHD,Electronic Home Care Monitoring,Other Supplies & Services,Care monitoring 2000 Ltd,5371.9, 28-Mar-2011
524,Revenue,CCHD,Day Care - South,Private & Voluntary Day Care,Action for Blind People,593.65, 30-Mar-2011
525,Revenue,CCHD,Day Care - South,Private & Voluntary Day Care,Action for Blind People,1110.7, 25-Mar-2011
526,Revenue,CCHD,Day Care - South,Private & Voluntary Day Care,Action for Blind People,7066.35, 25-Mar-2011
527,Revenue,CCHD,Day Care - South,Private & Voluntary Day Care,Action for Blind People,3868.3, 29-Mar-2011
528,Revenue,CCHD,Day Care - South,Private & Voluntary Day Care,Bradley House Home Care Services,60.34, 11-Mar-2011
529,Revenue,CCHD,Day Care - South,Private & Voluntary Day Care,Bradley House Home Care Services,68.96, 03-Mar-2011
530,Revenue,CCHD,Day Care - South,Private & Voluntary Day Care,Bradley House Home Care Services,56.03, 23-Mar-2011
531,Revenue,CCHD,Day Care - South,Private & Voluntary Day Care,Bradley House Home Care Services,60.34, 03-Mar-2011
532,Revenue,CCHD,Day Care - South,Private & Voluntary Day Care,Bradley House Home Care Services,56.03, 28-Mar-2011
533,Revenue,CCHD,Day Care - South,Private & Voluntary Day Care,Bradley House Home Care Services,64.65, 08-Mar-2011
534,Revenue,CCHD,Day Care - South,Private & Voluntary Day Care,Care Horizons Limited,615.1, 24-Mar-2011
535,Revenue,CCHD,Day Care - South,Private & Voluntary Day Care,Care Horizons Limited,1106.09, 29-Mar-2011
536,Revenue,CCHD,Day Care - South,Private & Voluntary Day Care,Care Horizons Limited,627.2, 30-Mar-2011
537,Revenue,CCHD,Day Care - South,Private & Voluntary Day Care,Deafblind UK,1925, 10-Mar-2011
538,Revenue,CCHD,Day Care - South,Private & Voluntary Day Care,Deafblind UK,1063.54, 10-Mar-2011
539,Revenue,CCHD,Day Care - South,Private & Voluntary Day Care,Dhek Bhal,1222.4, 24-Mar-2011
540,Revenue,CCHD,Day Care - South,Private & Voluntary Day Care,DoCare Ltd,116.25, 11-Mar-2011
541,Revenue,CCHD,Day Care - South,Private & Voluntary Day Care,DoCare Ltd,111.6, 15-Mar-2011
542,Revenue,CCHD,Day Care - South,Private & Voluntary Day Care,DoCare Ltd,116.25, 15-Mar-2011
543,Revenue,CCHD,Day Care - South,Private & Voluntary Day Care,Greenbanks Homecare (Western) Limited,111.94, 08-Mar-2011
544,Revenue,CCHD,Day Care - South,Private & Voluntary Day Care,Greenbanks Homecare (Western) Limited,189.14, 08-Mar-2011
545,Revenue,CCHD,Day Care - South,Private & Voluntary Day Care,Greenbanks Homecare (Western) Limited,127.38, 08-Mar-2011
546,Revenue,CCHD,Day Care - South,Private & Voluntary Day Care,Greenbanks Homecare (Western) Limited,266.34, 08-Mar-2011
547,Revenue,CCHD,Day Care - South,Private & Voluntary Day Care,Greenbanks Homecare (Western) Limited,193, 30-Mar-2011
548,Revenue,CCHD,Day Care - South,Private & Voluntary Day Care,Guardian Homecare (Bristol & Avon) Ltd,216.16, 11-Mar-2011
549,Revenue,CCHD,Day Care - South,Private & Voluntary Day Care,Guardian Homecare (Bristol & Avon) Ltd,287.8, 10-Mar-2011
550,Revenue,CCHD,Day Care - South,Private & Voluntary Day Care,Guardian Homecare (Bristol & Avon) Ltd,263.92, 10-Mar-2011
551,Revenue,CCHD,Day Care - South,Private & Voluntary Day Care,Guardian Homecare (Bristol & Avon) Ltd,347.5, 28-Mar-2011
552,Revenue,CCHD,Day Care - South,Private & Voluntary Day Care,Mears Care,230.3, 08-Mar-2011
553,Revenue,CCHD,Day Care - South,Private & Voluntary Day Care,Mears Care,230.3, 30-Mar-2011
554,Revenue,CCHD,Day Care - South,Private & Voluntary Day Care,Mears Care,230.3, 30-Mar-2011
555,Revenue,CCHD,Day Care - South,Private & Voluntary Day Care,Mrs B Kimber,908.42, 24-Mar-2011
556,Revenue,CCHD,Day Care - South,Private & Voluntary Day Care,Mrs B Kimber,637.6, 24-Mar-2011
557,Revenue,CCHD,Day Care - South,Private & Voluntary Day Care,Mrs B Kimber,726.72, 30-Mar-2011
558,Revenue,CCHD,Day Care - South,Private & Voluntary Day Care,Mrs B Kimber,704.76, 30-Mar-2011
559,Revenue,CCHD,Day Care - South,Private & Voluntary Day Care,Mrs B Kimber,808.54, 30-Mar-2011
560,Revenue,CCHD,Day Care - South,Private & Voluntary Day Care,On the Up,63.18, 30-Mar-2011
561,Revenue,CCHD,Day Care - South,Private & Voluntary Day Care,Tender Home Care Limited,16.72, 23-Mar-2011
562,Revenue,CCHD,Day Care - South,Private & Voluntary Day Care,Tender Home Care Limited,25.08, 30-Mar-2011
563,Revenue,CCHD,Day Care - South,Private & Voluntary Day Care,The Brandon Trust,622.2, 24-Mar-2011
564,Revenue,CCHD,Day Care - South,Private & Voluntary Day Care,The Brandon Trust,559.98, 24-Mar-2011
565,Revenue,CCHD,Day Care - South,Private & Voluntary Day Care,The Brandon Trust,622.2, 24-Mar-2011
566,Revenue,CCHD,Day Care - North,Private & Voluntary Day Care,Action for Blind People,3064, 14-Mar-2011
567,Revenue,CCHD,Day Care - North,Private & Voluntary Day Care,Bradley House Home Care Services,271.53, 11-Mar-2011
568,Revenue,CCHD,Day Care - North,Private & Voluntary Day Care,Bradley House Home Care Services,262.91, 03-Mar-2011
569,Revenue,CCHD,Day Care - North,Private & Voluntary Day Care,Bradley House Home Care Services,262.91, 23-Mar-2011
570,Revenue,CCHD,Day Care - North,Private & Voluntary Day Care,Bradley House Home Care Services,262.91, 03-Mar-2011
571,Revenue,CCHD,Day Care - North,Private & Voluntary Day Care,Bradley House Home Care Services,271.53, 28-Mar-2011
572,Revenue,CCHD,Day Care - North,Private & Voluntary Day Care,Bradley House Home Care Services,267.22, 08-Mar-2011
573,Revenue,CCHD,Day Care - North,Private & Voluntary Day Care,Bristol Houses UK Ltd,1534.59, 24-Mar-2011
574,Revenue,CCHD,Day Care - North,Private & Voluntary Day Care,Bristol Houses UK Ltd,2585.36, 23-Mar-2011
575,Revenue,CCHD,Day Care - North,Private & Voluntary Day Care,Care Horizons Limited,634.03, 24-Mar-2011
576,Revenue,CCHD,Day Care - North,Private & Voluntary Day Care,Chrysalis Community Care Group Ltd,40.8, 07-Mar-2011
577,Revenue,CCHD,Day Care - North,Private & Voluntary Day Care,Chrysalis Community Care Group Ltd,57.8, 30-Mar-2011
578,Revenue,CCHD,Day Care - North,Private & Voluntary Day Care,Chrysalis Community Care Group Ltd,81.6, 07-Mar-2011
579,Revenue,CCHD,Day Care - North,Private & Voluntary Day Care,Chrysalis Community Care Group Ltd,47.6, 07-Mar-2011
580,Revenue,CCHD,Day Care - North,Private & Voluntary Day Care,Chrysalis Community Care Group Ltd,47.6, 07-Mar-2011
581,Revenue,CCHD,Day Care - North,Private & Voluntary Day Care,Deafblind UK,1231.23, 02-Mar-2011
582,Revenue,CCHD,Day Care - North,Private & Voluntary Day Care,DoCare Ltd,478.95, 11-Mar-2011
583,Revenue,CCHD,Day Care - North,Private & Voluntary Day Care,DoCare Ltd,460.35, 15-Mar-2011
584,Revenue,CCHD,Day Care - North,Private & Voluntary Day Care,DoCare Ltd,437.1, 15-Mar-2011
585,Revenue,CCHD,Day Care - North,Private & Voluntary Day Care,Greenbanks Homecare (Western) Limited,30.88, 08-Mar-2011
586,Revenue,CCHD,Day Care - North,Private & Voluntary Day Care,Greenbanks Homecare (Western) Limited,77.2, 30-Mar-2011
587,Revenue,CCHD,Day Care - North,Private & Voluntary Day Care,Guardian Homecare (Bristol & Avon) Ltd,815.9, 11-Mar-2011
588,Revenue,CCHD,Day Care - North,Private & Voluntary Day Care,Guardian Homecare (Bristol & Avon) Ltd,784.06, 10-Mar-2011
589,Revenue,CCHD,Day Care - North,Private & Voluntary Day Care,Guardian Homecare (Bristol & Avon) Ltd,752.22, 10-Mar-2011
590,Revenue,CCHD,Day Care - North,Private & Voluntary Day Care,Guardian Homecare (Bristol & Avon) Ltd,772.12, 28-Mar-2011
591,Revenue,CCHD,Day Care - North,Private & Voluntary Day Care,Lloyds TSB Commercial Finance Limited,505.56, 03-Mar-2011
592,Revenue,CCHD,Day Care - North,Private & Voluntary Day Care,Mears Care,314.9, 08-Mar-2011
593,Revenue,CCHD,Day Care - North,Private & Voluntary Day Care,Mears Care,376, 30-Mar-2011
594,Revenue,CCHD,Day Care - North,Private & Voluntary Day Care,Mears Care,197.4, 30-Mar-2011
595,Revenue,CCHD,Day Care - North,Private & Voluntary Day Care,Premier Homecare Limited,1098.88, 08-Mar-2011
596,Revenue,CCHD,Day Care - North,Private & Voluntary Day Care,Premier Homecare Limited,1202.24, 08-Mar-2011
597,Revenue,CCHD,Day Care - North,Private & Voluntary Day Care,Premier Homecare Limited,1044.48, 18-Mar-2011
598,Revenue,CCHD,Day Care - North,Private & Voluntary Day Care,Premier Homecare Limited,995.52, 28-Mar-2011
599,Revenue,CCHD,Day Care - North,Private & Voluntary Day Care,Royal National Institute For Deaf People,550.56, 08-Mar-2011
600,Revenue,CCHD,Day Care - North,Private & Voluntary Day Care,Royal National Institute For Deaf People,818.4, 28-Mar-2011
601,Revenue,CCHD,Day Care - North,Private & Voluntary Day Care,Royal National Institute For Deaf People,533, 28-Mar-2011
602,Revenue,CCHD,Day Care - North,Private & Voluntary Day Care,Silva Care Limited,1094.21, 10-Mar-2011
603,Revenue,CCHD,Day Care - North,Private & Voluntary Day Care,Silva Care Limited,1085.35, 24-Mar-2011
604,Revenue,CCHD,Day Care - North,Private & Voluntary Day Care,Supported Independance Ltd,828.75, 10-Mar-2011
605,Revenue,CCHD,Day Care - North,Private & Voluntary Day Care,Tender Home Care Limited,96.14, 11-Mar-2011
606,Revenue,CCHD,Day Care - North,Private & Voluntary Day Care,Tender Home Care Limited,125.4, 08-Mar-2011
607,Revenue,CCHD,Day Care - North,Private & Voluntary Day Care,Tender Home Care Limited,100.32, 30-Mar-2011
608,Revenue,CCHD,Day Care - North,Private & Voluntary Day Care,Tender Home Care Limited,125.4, 23-Mar-2011
609,Revenue,CCHD,Day Care - North,Private & Voluntary Day Care,Tender Home Care Limited,96.14, 30-Mar-2011
610,Revenue,CCHD,Day Care - North,Private & Voluntary Day Care,The Brandon Trust,742.49, 24-Mar-2011
611,Revenue,CCHD,Day Care - North,Private & Voluntary Day Care,Windmill Care Limited,800, 23-Mar-2011
612,Revenue,CCHD,Carer`s Grant - South,Carers Breaks & Services,Greenbanks Homecare (Western) Limited,61.76, 08-Mar-2011
613,Revenue,CCHD,Carer`s Grant - South,Carers Breaks & Services,Greenbanks Homecare (Western) Limited,46.32, 08-Mar-2011
614,Revenue,CCHD,Carer`s Grant - South,Carers Breaks & Services,Greenbanks Homecare (Western) Limited,108.08, 30-Mar-2011
615,Revenue,CCHD,Carer`s Grant - North,Carers Breaks & Services,Mears Care,37.6, 08-Mar-2011
616,Revenue,CCHD,Carer`s Grant - North,Carers Breaks & Services,Mears Care,37.6, 30-Mar-2011
617,Revenue,CCHD,Carer`s Grant - North,Carers Breaks & Services,Mears Care,37.6, 30-Mar-2011
618,Revenue,CCHD,Purchasing Phys Dis - North,Residential Homes,Leonard Cheshire  National Account Centr,2313.76, 22-Mar-2011
619,Revenue,CCHD,Purchasing Phys Dis - North,Residential Homes,Leonard Cheshire  National Account Centr,2837.08, 22-Mar-2011
620,Revenue,CCHD,Purchasing Phys Dis - North,Residential Homes,Tracs Group Ltd,6112.4, 22-Mar-2011
621,Revenue,CCHD,Purchasing Phys Dis - North,Residential Homes,Tracs Group Ltd,4478.08, 22-Mar-2011
622,Revenue,CCHD,Purchasing Phys Dis - North,Nursing Homes,Bupa Care Services  Bridge House,5700.16, 22-Mar-2011
623,Revenue,CCHD,Purchasing Phys Dis - North,Nursing Homes,Fairview Court Care Home,1688.8, 22-Mar-2011
624,Revenue,CCHD,Purchasing Phys Dis - North,Nursing Homes,Four Seasons Health Care,1372.88, 22-Mar-2011
625,Revenue,CCHD,Purchasing Phys Dis - North,Nursing Homes,Leonard Cheshire  National Account Centr,2588.28, 22-Mar-2011
626,Revenue,CCHD,Purchasing Phys Dis - North,Nursing Homes,Leonard Cheshire  National Account Centr,2698.6, 22-Mar-2011
627,Revenue,CCHD,Purchasing Phys Dis - North,Nursing Homes,Leonard Cheshire  National Account Centr,2787.64, 22-Mar-2011
628,Revenue,CCHD,Purchasing Phys Dis - North,Nursing Homes,Leonard Cheshire  National Account Centr,3155.8, 22-Mar-2011
629,Revenue,CCHD,Purchasing Phys Dis - North,Nursing Homes,Leonard Cheshire  National Account Centr,5378.48, 22-Mar-2011
630,Revenue,CCHD,Purchasing Phys Dis - North,Nursing Homes,Leonard Cheshire  National Account Centr,3246, 22-Mar-2011
631,Revenue,CCHD,Purchasing Phys Dis - North,Nursing Homes,Wickwar Nursing Home  Castle House,1104.84, 22-Mar-2011
632,Revenue,CCHD,Purchasing Phys Dis - North,Nursing Homes,Wickwar Nursing Home  Castle House,912, 22-Mar-2011
633,Revenue,CCHD,Purchasing Phys Dis - North,Nursing Homes,Wickwar Nursing Home  Castle House,604.22, 22-Mar-2011
634,Revenue,CCHD,Purchasing Phys Dis - North,Nursing Homes,Willow Cottage,1662.48, 22-Mar-2011
635,Revenue,CCHD,Purchasing Phys Dis - South,Residential Homes,Voyage Ltd,5352, 22-Mar-2011
636,Revenue,CCHD,Purchasing Phys Dis - South,Nursing Homes,Glenside Centre For Brain Injury,6955.52, 22-Mar-2011
637,Revenue,CCHD,Purchasing Phys Dis - South,Nursing Homes,Leonard Cheshire  National Account Centr,3140.4, 22-Mar-2011
638,Revenue,CCHD,Purchasing Phys Dis - South,Nursing Homes,Leonard Cheshire  National Account Centr,5956.56, 22-Mar-2011
639,Revenue,CCHD,PD Direct Payments North,Grants to Voluntary Bodies,A4E Management Limited,22857.93, 18-Mar-2011
640,Revenue,CCHD,PD Direct Payments North,Grants to Voluntary Bodies,A4E Management Limited,22857.93, 25-Mar-2011
641,Revenue,CCHD,MH Purchasing - Younger,Residential Homes,Aspects &  Milestones Trust,1019.4, 22-Mar-2011
642,Revenue,CCHD,MH Purchasing - Younger,Residential Homes,Aspects &  Milestones Trust,1019.4, 22-Mar-2011
643,Revenue,CCHD,MH Purchasing - Younger,Residential Homes,Aspects &  Milestones Trust,1019.4, 22-Mar-2011
644,Revenue,CCHD,MH Purchasing - Younger,Residential Homes,Brightbow,969.16, 22-Mar-2011
645,Revenue,CCHD,MH Purchasing - Younger,Residential Homes,Dunraven House,1802, 22-Mar-2011
646,Revenue,CCHD,MH Purchasing - Younger,Residential Homes,Ruskin Mill College,2389.97, 22-Mar-2011
647,Revenue,CCHD,MH Purchasing - Younger,Private & Voluntary Day Care,Natureworks Training Community Interest,1418.67, 23-Mar-2011
648,Revenue,CCHD,MH Purchasing - Younger,Nursing Homes,Aspects &  Milestones Trust,927.6, 22-Mar-2011
649,Revenue,CCHD,MH Purchasing - Younger,Nursing Homes,Aspects &  Milestones Trust,1107.4, 22-Mar-2011
650,Revenue,CCHD,Elderly Mental Health,Residential Homes,Ablecare Homes,4588.84, 22-Mar-2011
651,Revenue,CCHD,Elderly Mental Health,Residential Homes,Ablecare Homes,552.67, 22-Mar-2011
652,Revenue,CCHD,Elderly Mental Health,Residential Homes,Ablecare Homes,1406.8, 22-Mar-2011
653,Revenue,CCHD,Elderly Mental Health,Residential Homes,Ablecare Homes,1289.08, 22-Mar-2011
654,Revenue,CCHD,Elderly Mental Health,Residential Homes,Ablecare Homes,1267.64, 22-Mar-2011
655,Revenue,CCHD,Elderly Mental Health,Residential Homes,Aspects &  Milestones Trust,683.29, 22-Mar-2011
656,Revenue,CCHD,Elderly Mental Health,Residential Homes,Aspects &  Milestones Trust,1246.8, 22-Mar-2011
657,Revenue,CCHD,Elderly Mental Health,Residential Homes,Aspects &  Milestones Trust,863.16, 22-Mar-2011
658,Revenue,CCHD,Elderly Mental Health,Residential Homes,Aspects &  Milestones Trust,1185.68, 22-Mar-2011
659,Revenue,CCHD,Elderly Mental Health,Residential Homes,Beaufort House,1391.04, 22-Mar-2011
660,Revenue,CCHD,Elderly Mental Health,Residential Homes,Beaufort House,1430.68, 22-Mar-2011
661,Revenue,CCHD,Elderly Mental Health,Residential Homes,Beaufort House,1316.2, 22-Mar-2011
662,Revenue,CCHD,Elderly Mental Health,Residential Homes,Beaufort House,1309.32, 22-Mar-2011
663,Revenue,CCHD,Elderly Mental Health,Residential Homes,Beaufort House,1328.76, 22-Mar-2011
664,Revenue,CCHD,Elderly Mental Health,Residential Homes,Beaufort House,1339.84, 22-Mar-2011
665,Revenue,CCHD,Elderly Mental Health,Residential Homes,Beaufort House,703.4, 22-Mar-2011
666,Revenue,CCHD,Elderly Mental Health,Residential Homes,Beaufort House,1368.8, 22-Mar-2011
667,Revenue,CCHD,Elderly Mental Health,Residential Homes,Beaufort House,1076.48, 22-Mar-2011
668,Revenue,CCHD,Elderly Mental Health,Residential Homes,Beaufort House,1672.72, 22-Mar-2011
669,Revenue,CCHD,Elderly Mental Health,Residential Homes,Brightbow,2487.2, 22-Mar-2011
670,Revenue,CCHD,Elderly Mental Health,Residential Homes,Chatsworth House,3204.95, 22-Mar-2011
671,Revenue,CCHD,Elderly Mental Health,Residential Homes,Collingwood Residential Home,1304.68, 22-Mar-2011
672,Revenue,CCHD,Elderly Mental Health,Residential Homes,Edgecumbe Lodge,1186.92, 22-Mar-2011
673,Revenue,CCHD,Elderly Mental Health,Residential Homes,Edgecumbe Lodge,2713.11, 22-Mar-2011
674,Revenue,CCHD,Elderly Mental Health,Residential Homes,Fairview Court,1406.8, 22-Mar-2011
675,Revenue,CCHD,Elderly Mental Health,Residential Homes,Fairview House,1259.52, 22-Mar-2011
676,Revenue,CCHD,Elderly Mental Health,Residential Homes,Fairview House,1105.16, 22-Mar-2011
677,Revenue,CCHD,Elderly Mental Health,Residential Homes,Fairview House,1083.16, 22-Mar-2011
678,Revenue,CCHD,Elderly Mental Health,Residential Homes,Fairview House,1183.68, 22-Mar-2011
679,Revenue,CCHD,Elderly Mental Health,Residential Homes,Fairview House,1084.68, 22-Mar-2011
680,Revenue,CCHD,Elderly Mental Health,Residential Homes,Four Seasons Health Care,1057.48, 22-Mar-2011
681,Revenue,CCHD,Elderly Mental Health,Residential Homes,Four Seasons Health Care,1333, 22-Mar-2011
682,Revenue,CCHD,Elderly Mental Health,Residential Homes,Four Seasons Health Care,1230.28, 22-Mar-2011
683,Revenue,CCHD,Elderly Mental Health,Residential Homes,Four Seasons Health Care,2215.47, 22-Mar-2011
684,Revenue,CCHD,Elderly Mental Health,Residential Homes,Four Seasons Health Care,1360.16, 22-Mar-2011
685,Revenue,CCHD,Elderly Mental Health,Residential Homes,Four Seasons Health Care,1163.76, 22-Mar-2011
686,Revenue,CCHD,Elderly Mental Health,Residential Homes,Four Seasons Health Care,1410.64, 22-Mar-2011
687,Revenue,CCHD,Elderly Mental Health,Residential Homes,Four Seasons Health Care,1397.28, 22-Mar-2011
688,Revenue,CCHD,Elderly Mental Health,Residential Homes,Four Seasons Health Care,1430.8, 22-Mar-2011
689,Revenue,CCHD,Elderly Mental Health,Residential Homes,Four Seasons Health Care,998.92, 22-Mar-2011
690,Revenue,CCHD,Elderly Mental Health,Residential Homes,Gatchell House,1320.56, 22-Mar-2011
691,Revenue,CCHD,Elderly Mental Health,Residential Homes,Gwendoline House,1250.8, 22-Mar-2011
692,Revenue,CCHD,Elderly Mental Health,Residential Homes,Harefield Hall,1204.12, 22-Mar-2011
693,Revenue,CCHD,Elderly Mental Health,Residential Homes,Heather House,1262.8, 22-Mar-2011
694,Revenue,CCHD,Elderly Mental Health,Residential Homes,Heathwood Rest Home,1561.52, 22-Mar-2011
695,Revenue,CCHD,Elderly Mental Health,Residential Homes,Kenver House Residential Home,1518.2, 22-Mar-2011
696,Revenue,CCHD,Elderly Mental Health,Residential Homes,Kenver House Residential Home,1568.12, 22-Mar-2011
697,Revenue,CCHD,Elderly Mental Health,Residential Homes,Kenver House Residential Home,1248.72, 22-Mar-2011
698,Revenue,CCHD,Elderly Mental Health,Residential Homes,Kenver House Residential Home,1369.44, 22-Mar-2011
699,Revenue,CCHD,Elderly Mental Health,Residential Homes,Kenver House Residential Home,1202.76, 22-Mar-2011
700,Revenue,CCHD,Elderly Mental Health,Residential Homes,Kenver House Residential Home,1202.36, 22-Mar-2011
701,Revenue,CCHD,Elderly Mental Health,Residential Homes,Kenver House Residential Home,1405.68, 22-Mar-2011
702,Revenue,CCHD,Elderly Mental Health,Residential Homes,Kenver House Residential Home,1406.8, 22-Mar-2011
703,Revenue,CCHD,Elderly Mental Health,Residential Homes,Kenver House Residential Home,1128.52, 22-Mar-2011
704,Revenue,CCHD,Elderly Mental Health,Residential Homes,Kenver House Residential Home,1358.52, 22-Mar-2011
705,Revenue,CCHD,Elderly Mental Health,Residential Homes,Kenver House Residential Home,1487, 22-Mar-2011
706,Revenue,CCHD,Elderly Mental Health,Residential Homes,Kenver House Residential Home,1305.6, 22-Mar-2011
707,Revenue,CCHD,Elderly Mental Health,Residential Homes,Kenver House Residential Home,1638.8, 22-Mar-2011
708,Revenue,CCHD,Elderly Mental Health,Residential Homes,Osborne House,1423.68, 22-Mar-2011
709,Revenue,CCHD,Elderly Mental Health,Residential Homes,Osbourne Court,703.4, 22-Mar-2011
710,Revenue,CCHD,Elderly Mental Health,Residential Homes,Osbourne Court,1406.8, 22-Mar-2011
711,Revenue,CCHD,Elderly Mental Health,Residential Homes,Osbourne Court,1438.8, 22-Mar-2011
712,Revenue,CCHD,Elderly Mental Health,Residential Homes,Park Farm House,1265.88, 22-Mar-2011
713,Revenue,CCHD,Elderly Mental Health,Residential Homes,Park Farm House,1584.2, 22-Mar-2011
714,Revenue,CCHD,Elderly Mental Health,Residential Homes,Park Farm House,1144.32, 22-Mar-2011
715,Revenue,CCHD,Elderly Mental Health,Residential Homes,Ross Healthcare,1287.44, 22-Mar-2011
716,Revenue,CCHD,Elderly Mental Health,Residential Homes,Ruskin Mill College,11181.79, 01-Mar-2011
717,Revenue,CCHD,Elderly Mental Health,Residential Homes,The Beeches,1221.92, 22-Mar-2011
718,Revenue,CCHD,Elderly Mental Health,Residential Homes,The Beeches,1848, 22-Mar-2011
719,Revenue,CCHD,Elderly Mental Health,Residential Homes,The Cidermill,5124.77, 22-Mar-2011
720,Revenue,CCHD,Elderly Mental Health,Residential Homes,The Gables Residential Home,1187.64, 22-Mar-2011
721,Revenue,CCHD,Elderly Mental Health,Residential Homes,The Grove,1584.2, 22-Mar-2011
722,Revenue,CCHD,Elderly Mental Health,Residential Homes,The Grove,1396.44, 22-Mar-2011
723,Revenue,CCHD,Elderly Mental Health,Residential Homes,The Grove,1584.2, 22-Mar-2011
724,Revenue,CCHD,Elderly Mental Health,Residential Homes,The Grove,612.04, 22-Mar-2011
725,Revenue,CCHD,Elderly Mental Health,Residential Homes,The Grove,1619.16, 22-Mar-2011
726,Revenue,CCHD,Elderly Mental Health,Residential Homes,The Grove,1405.96, 22-Mar-2011
727,Revenue,CCHD,Elderly Mental Health,Residential Homes,The Grove,1493.72, 22-Mar-2011
728,Revenue,CCHD,Elderly Mental Health,Residential Homes,The Grove,1738.6, 22-Mar-2011
729,Revenue,CCHD,Elderly Mental Health,Residential Homes,The Grove,1499.72, 22-Mar-2011
730,Revenue,CCHD,Elderly Mental Health,Residential Homes,The Old Vicarage Residential Home,1398, 22-Mar-2011
731,Revenue,CCHD,Elderly Mental Health,Residential Homes,The Worthies,1406.8, 22-Mar-2011
732,Revenue,CCHD,Elderly Mental Health,Residential Homes,Ventura Residential Care Home,1246.8, 22-Mar-2011
733,Revenue,CCHD,Elderly Mental Health,Residential Homes,Wayside Residential Care Home,1406.8, 22-Mar-2011
734,Revenue,CCHD,Elderly Mental Health,Residential Homes,Wayside Residential Care Home,1345.72, 22-Mar-2011
735,Revenue,CCHD,Elderly Mental Health,Residential Homes,Wayside Residential Care Home,1203.56, 22-Mar-2011
736,Revenue,CCHD,Elderly Mental Health,Residential Homes,Westbury Nursing Home,1738.88, 22-Mar-2011
737,Revenue,CCHD,Elderly Mental Health,Residential Homes,Willow Cottage,1363.6, 22-Mar-2011
738,Revenue,CCHD,Elderly Mental Health,Residential Homes,Windmill House,1259.6, 22-Mar-2011
739,Revenue,CCHD,Elderly Mental Health,Residential Homes,Windmill House,1242.8, 22-Mar-2011
740,Revenue,CCHD,Elderly Mental Health,Private & Voluntary Day Care,Alzheimers Society Bristol Branch,520.32, 15-Mar-2011
741,Revenue,CCHD,Elderly Mental Health,Nursing Homes,Aspects &  Milestones Trust,838.52, 22-Mar-2011
742,Revenue,CCHD,Elderly Mental Health,Nursing Homes,Aspects &  Milestones Trust,1469.84, 22-Mar-2011
743,Revenue,CCHD,Elderly Mental Health,Nursing Homes,Aspects &  Milestones Trust,1344.96, 22-Mar-2011
744,Revenue,CCHD,Elderly Mental Health,Nursing Homes,Aspects &  Milestones Trust,1751.97, 22-Mar-2011
745,Revenue,CCHD,Elderly Mental Health,Nursing Homes,Aspects &  Milestones Trust,1442.8, 22-Mar-2011
746,Revenue,CCHD,Elderly Mental Health,Nursing Homes,Brunelcare,18429.23, 03-Mar-2011
747,Revenue,CCHD,Elderly Mental Health,Nursing Homes,Brunelcare,14974.63, 22-Mar-2011
748,Revenue,CCHD,Elderly Mental Health,Nursing Homes,Edgemont View Nursing Home,646.56, 22-Mar-2011
749,Revenue,CCHD,Elderly Mental Health,Nursing Homes,Fairview Court,1628.39, 22-Mar-2011
750,Revenue,CCHD,Elderly Mental Health,Nursing Homes,Fairview Court,1470.8, 22-Mar-2011
751,Revenue,CCHD,Elderly Mental Health,Nursing Homes,Fairview Court Care Home,4898.05, 22-Mar-2011
752,Revenue,CCHD,Elderly Mental Health,Nursing Homes,Four Seasons Health Care,1325.28, 22-Mar-2011
753,Revenue,CCHD,Elderly Mental Health,Nursing Homes,Four Seasons Health Care,1221.8, 22-Mar-2011
754,Revenue,CCHD,Elderly Mental Health,Nursing Homes,Four Seasons Health Care,1330.8, 22-Mar-2011
755,Revenue,CCHD,Elderly Mental Health,Nursing Homes,Four Seasons Health Care,1465.4, 22-Mar-2011
756,Revenue,CCHD,Elderly Mental Health,Nursing Homes,Four Seasons Health Care,1534.8, 22-Mar-2011
757,Revenue,CCHD,Elderly Mental Health,Nursing Homes,Four Seasons Health Care,1449.52, 22-Mar-2011
758,Revenue,CCHD,Elderly Mental Health,Nursing Homes,Four Seasons Health Care,1533.6, 22-Mar-2011
759,Revenue,CCHD,Elderly Mental Health,Nursing Homes,Four Seasons Health Care,985.88, 22-Mar-2011
760,Revenue,CCHD,Elderly Mental Health,Nursing Homes,Four Seasons Health Care,1363.56, 22-Mar-2011
761,Revenue,CCHD,Elderly Mental Health,Nursing Homes,Four Seasons Health Care,1071.92, 22-Mar-2011
762,Revenue,CCHD,Elderly Mental Health,Nursing Homes,Four Seasons Health Care,1232.6, 22-Mar-2011
763,Revenue,CCHD,Elderly Mental Health,Nursing Homes,Four Seasons Health Care,1356.84, 22-Mar-2011
764,Revenue,CCHD,Elderly Mental Health,Nursing Homes,Four Seasons Health Care,1366.8, 22-Mar-2011
765,Revenue,CCHD,Elderly Mental Health,Nursing Homes,Glebe House Nursing Home,4348.89, 22-Mar-2011
766,Revenue,CCHD,Elderly Mental Health,Nursing Homes,Meadow Care Home,1470.76, 22-Mar-2011
767,Revenue,CCHD,Elderly Mental Health,Nursing Homes,Osbourne Court,1384.52, 22-Mar-2011
768,Revenue,CCHD,Elderly Mental Health,Nursing Homes,Pennwood Lodge Nursing Home,1401.2, 22-Mar-2011
769,Revenue,CCHD,Elderly Mental Health,Nursing Homes,Pennwood Lodge Nursing Home,1470.8, 22-Mar-2011
770,Revenue,CCHD,Elderly Mental Health,Nursing Homes,Pennwood Lodge Nursing Home,1289.24, 22-Mar-2011
771,Revenue,CCHD,Elderly Mental Health,Nursing Homes,Pennwood Lodge Nursing Home,1470.8, 22-Mar-2011
772,Revenue,CCHD,Elderly Mental Health,Nursing Homes,Pennwood Lodge Nursing Home,1195, 22-Mar-2011
773,Revenue,CCHD,Elderly Mental Health,Nursing Homes,Pennwood Lodge Nursing Home,905.48, 22-Mar-2011
774,Revenue,CCHD,Elderly Mental Health,Nursing Homes,Ravenswood,1233.12, 22-Mar-2011
775,Revenue,CCHD,Elderly Mental Health,Nursing Homes,Regent House,1924, 22-Mar-2011
776,Revenue,CCHD,Elderly Mental Health,Nursing Homes,Regent House,1434.76, 22-Mar-2011
777,Revenue,CCHD,Elderly Mental Health,Nursing Homes,Regent House,1388.8, 22-Mar-2011
778,Revenue,CCHD,Elderly Mental Health,Nursing Homes,Regent House,1089.08, 22-Mar-2011
779,Revenue,CCHD,Elderly Mental Health,Nursing Homes,Regent House,1924, 22-Mar-2011
780,Revenue,CCHD,Elderly Mental Health,Nursing Homes,Regent House,1302.04, 22-Mar-2011
781,Revenue,CCHD,Elderly Mental Health,Nursing Homes,Shaw Healthcare Ltd,1260.2, 22-Mar-2011
782,Revenue,CCHD,Elderly Mental Health,Nursing Homes,St George Nursing Home,1314.8, 22-Mar-2011
783,Revenue,CCHD,Elderly Mental Health,Nursing Homes,St George Nursing Home,1221.48, 22-Mar-2011
784,Revenue,CCHD,Elderly Mental Health,Nursing Homes,St George Nursing Home,1302.8, 22-Mar-2011
785,Revenue,CCHD,Elderly Mental Health,Nursing Homes,The Cidermill,3248.7, 22-Mar-2011
786,Revenue,CCHD,Elderly Mental Health,Nursing Homes,The Cidermill,928.2, 22-Mar-2011
787,Revenue,CCHD,Elderly Mental Health,Nursing Homes,The Cidermill,1316.88, 22-Mar-2011
788,Revenue,CCHD,Elderly Mental Health,Nursing Homes,The Heathers,1284.96, 22-Mar-2011
789,Revenue,CCHD,Elderly Mental Health,Nursing Homes,The Heathers,1267.12, 22-Mar-2011
790,Revenue,CCHD,Elderly Mental Health,Nursing Homes,Willow Cottage,1478.88, 22-Mar-2011
791,Revenue,CCHD,Section 117 Placements,Residential Homes,Aspects &  Milestones Trust,1304, 22-Mar-2011
792,Revenue,CCHD,Section 117 Placements,Residential Homes,Aspects &  Milestones Trust,1913.04, 22-Mar-2011
793,Revenue,CCHD,Section 117 Placements,Residential Homes,Aspects &  Milestones Trust,1304, 22-Mar-2011
794,Revenue,CCHD,Section 117 Placements,Residential Homes,Edgecumbe Lodge,1879.56, 22-Mar-2011
795,Revenue,CCHD,Section 117 Placements,Residential Homes,Fairview House,1840, 22-Mar-2011
796,Revenue,CCHD,Section 117 Placements,Residential Homes,Four Seasons Health Care,1688, 22-Mar-2011
797,Revenue,CCHD,Section 117 Placements,Residential Homes,Four Seasons Health Care,1688, 22-Mar-2011
798,Revenue,CCHD,Section 117 Placements,Residential Homes,Kenver House Residential Home,1848, 22-Mar-2011
799,Revenue,CCHD,Section 117 Placements,Residential Homes,Mostyn Lodge Residential Home,1848, 22-Mar-2011
800,Revenue,CCHD,Section 117 Placements,Residential Homes,Osbourne Court,1848, 22-Mar-2011
801,Revenue,CCHD,Section 117 Placements,Residential Homes,The Gables Residential Home,2156.84, 22-Mar-2011
802,Revenue,CCHD,Section 117 Placements,Residential Homes,The Grove,2040, 22-Mar-2011
803,Revenue,CCHD,Section 117 Placements,Private & Voluntary Day Care,Alzheimers Society Bristol Branch,520.32, 23-Mar-2011
804,Revenue,CCHD,Section 117 Placements,Private & Voluntary Day Care,Aspects and Milestones Trust,982.24, 23-Mar-2011
805,Revenue,CCHD,Section 117 Placements,Private & Voluntary Day Care,Aspects and Milestones Trust,874.08, 23-Mar-2011
806,Revenue,CCHD,Section 117 Placements,Private & Voluntary Day Care,Aspects and Milestones Trust,771.38, 24-Mar-2011
807,Revenue,CCHD,Section 117 Placements,Private & Voluntary Day Care,Aspects and Milestones Trust,659.08, 23-Mar-2011
808,Revenue,CCHD,Section 117 Placements,Private & Voluntary Day Care,Aspects and Milestones Trust,544.66, 23-Mar-2011
809,Revenue,CCHD,Section 117 Placements,Private & Voluntary Day Care,Aspects and Milestones Trust,509.24, 23-Mar-2011
810,Revenue,CCHD,Section 117 Placements,Private & Voluntary Day Care,Aspects and Milestones Trust,688, 23-Mar-2011
811,Revenue,CCHD,Section 117 Placements,Private & Voluntary Day Care,Aspects and Milestones Trust,558.94, 23-Mar-2011
812,Revenue,CCHD,Section 117 Placements,Private & Voluntary Day Care,Aspects and Milestones Trust,574.3, 23-Mar-2011
813,Revenue,CCHD,Section 117 Placements,Private & Voluntary Day Care,Aspects and Milestones Trust,645.86, 23-Mar-2011
814,Revenue,CCHD,Section 117 Placements,Private & Voluntary Day Care,Aspects and Milestones Trust,568.88, 23-Mar-2011
815,Revenue,CCHD,Section 117 Placements,Private & Voluntary Day Care,Natureworks Training Community Interest,882, 23-Mar-2011
816,Revenue,CCHD,Section 117 Placements,Nursing Homes,Aspects &  Milestones Trust,21373.43, 22-Mar-2011
817,Revenue,CCHD,Section 117 Placements,Nursing Homes,Aspects &  Milestones Trust,1911.96, 22-Mar-2011
818,Revenue,CCHD,Section 117 Placements,Nursing Homes,Aspects &  Milestones Trust,1912, 22-Mar-2011
819,Revenue,CCHD,Section 117 Placements,Nursing Homes,Aspects &  Milestones Trust,1912, 22-Mar-2011
820,Revenue,CCHD,Section 117 Placements,Nursing Homes,Aspects &  Milestones Trust,1912, 22-Mar-2011
821,Revenue,CCHD,Section 117 Placements,Nursing Homes,Brunelcare,4605.25, 03-Mar-2011
822,Revenue,CCHD,Section 117 Placements,Nursing Homes,Brunelcare,5167.17, 22-Mar-2011
823,Revenue,CCHD,Section 117 Placements,Nursing Homes,Mimosa Healthcare Holdings Ltd,1888, 22-Mar-2011
824,Revenue,CCHD,Section 117 Placements,Nursing Homes,Pennwood Lodge Nursing Home,1911.96, 22-Mar-2011
825,Revenue,CCHD,Section 117 Placements,Nursing Homes,Pennwood Lodge Nursing Home,1921.08, 22-Mar-2011
826,Revenue,CCHD,Section 117 Placements,Nursing Homes,Redholme Memory Care Limited,1912, 22-Mar-2011
827,Revenue,CCHD,Section 117 Placements MH Younger,Residential Homes,Aspects &  Milestones Trust,1304, 22-Mar-2011
828,Revenue,CCHD,Section 117 Placements MH Younger,Residential Homes,Aspects &  Milestones Trust,1688, 22-Mar-2011
829,Revenue,CCHD,Section 117 Placements MH Younger,Residential Homes,Bedrock Lodge,1790.12, 22-Mar-2011
830,Revenue,CCHD,Mental Capacity Act - Advocacy,Other Supplies & Services,Dave Sheppard Associates Limited,1500, 10-Mar-2011
831,Revenue,CCHD,Under 65s -MH  Home Care Purch,Other Small Contracts,Greenbanks Homecare (Western) Limited,158.26, 08-Mar-2011
832,Revenue,CCHD,Under 65s -MH  Home Care Purch,Other Small Contracts,Greenbanks Homecare (Western) Limited,150.54, 08-Mar-2011
833,Revenue,CCHD,Under 65s -MH  Home Care Purch,Other Small Contracts,Greenbanks Homecare (Western) Limited,115.8, 08-Mar-2011
834,Revenue,CCHD,Under 65s -MH  Home Care Purch,Other Small Contracts,Greenbanks Homecare (Western) Limited,131.24, 08-Mar-2011
835,Revenue,CCHD,Under 65s -MH  Home Care Purch,Other Small Contracts,Greenbanks Homecare (Western) Limited,127.38, 30-Mar-2011
836,Revenue,CCHD,Under 65s -MH  Home Care Purch,Other Small Contracts,Mears Care,141, 08-Mar-2011
837,Revenue,CCHD,Under 65s -MH  Home Care Purch,Other Small Contracts,Mears Care,141, 30-Mar-2011
838,Revenue,CCHD,Under 65s -MH  Home Care Purch,Other Small Contracts,Mears Care,141, 30-Mar-2011
839,Revenue,CCHD,Younger MH non-res purchasing,Other Transport Costs,Pathway Care (Bristol) Limited,5678.7, 24-Mar-2011
840,Revenue,CCHD,Younger MH non-res purchasing,Private & Voluntary Home Care,Mrs Felicity Cooksley,1676, 14-Mar-2011
841,Revenue,CCHD,Younger MH non-res purchasing,Private & Voluntary Day Care,Aspects and Milestones Trust,616, 24-Mar-2011
842,Revenue,CCHD,Younger MH non-res purchasing,Private & Voluntary Day Care,Enham,638.72, 14-Mar-2011
843,Revenue,CCHD,Younger MH non-res purchasing,Private & Voluntary Day Care,NAS Services Limited,735.15, 02-Mar-2011
844,Revenue,CCHD,Younger MH non-res purchasing,Private & Voluntary Day Care,NAS Services Limited,933.07, 02-Mar-2011
845,Revenue,CCHD,Younger MH non-res purchasing,Private & Voluntary Day Care,Supported Independance Ltd,663, 03-Mar-2011
846,Revenue,CCHD,Younger MH non-res purchasing,Private & Voluntary Day Care,The Brandon Trust,839.97, 23-Mar-2011
847,Revenue,CCHD,Younger MH non-res purchasing,Private & Voluntary Day Care,The Brandon Trust,1555.5, 23-Mar-2011
848,Revenue,CCHD,Elderly MH Home Care,Other Small Contracts,Bradley House Home Care Services,202.57, 11-Mar-2011
849,Revenue,CCHD,Elderly MH Home Care,Other Small Contracts,Bradley House Home Care Services,172.4, 03-Mar-2011
850,Revenue,CCHD,Elderly MH Home Care,Other Small Contracts,Bradley House Home Care Services,193.95, 23-Mar-2011
851,Revenue,CCHD,Elderly MH Home Care,Other Small Contracts,Bradley House Home Care Services,198.26, 03-Mar-2011
852,Revenue,CCHD,Elderly MH Home Care,Other Small Contracts,Bradley House Home Care Services,193.95, 28-Mar-2011
853,Revenue,CCHD,Elderly MH Home Care,Other Small Contracts,Bradley House Home Care Services,189.64, 08-Mar-2011
854,Revenue,CCHD,Elderly MH Home Care,Other Small Contracts,Chrysalis Community Care Group Ltd,183.6, 07-Mar-2011
855,Revenue,CCHD,Elderly MH Home Care,Other Small Contracts,Chrysalis Community Care Group Ltd,197.2, 30-Mar-2011
856,Revenue,CCHD,Elderly MH Home Care,Other Small Contracts,Chrysalis Community Care Group Ltd,224.4, 07-Mar-2011
857,Revenue,CCHD,Elderly MH Home Care,Other Small Contracts,Chrysalis Community Care Group Ltd,204, 07-Mar-2011
858,Revenue,CCHD,Elderly MH Home Care,Other Small Contracts,Chrysalis Community Care Group Ltd,204, 07-Mar-2011
859,Revenue,CCHD,Elderly MH Home Care,Other Small Contracts,DoCare Ltd,390.6, 11-Mar-2011
860,Revenue,CCHD,Elderly MH Home Care,Other Small Contracts,DoCare Ltd,274.35, 15-Mar-2011
861,Revenue,CCHD,Elderly MH Home Care,Other Small Contracts,DoCare Ltd,283.65, 15-Mar-2011
862,Revenue,CCHD,Elderly MH Home Care,Other Small Contracts,Greenbanks Homecare (Western) Limited,165.98, 08-Mar-2011
863,Revenue,CCHD,Elderly MH Home Care,Other Small Contracts,Greenbanks Homecare (Western) Limited,293.36, 08-Mar-2011
864,Revenue,CCHD,Elderly MH Home Care,Other Small Contracts,Greenbanks Homecare (Western) Limited,46.32, 08-Mar-2011
865,Revenue,CCHD,Elderly MH Home Care,Other Small Contracts,Greenbanks Homecare (Western) Limited,343.54, 08-Mar-2011
866,Revenue,CCHD,Elderly MH Home Care,Other Small Contracts,Greenbanks Homecare (Western) Limited,351.26, 30-Mar-2011
867,Revenue,CCHD,Elderly MH Home Care,Other Small Contracts,Guardian Homecare (Bristol & Avon) Ltd,342.28, 11-Mar-2011
868,Revenue,CCHD,Elderly MH Home Care,Other Small Contracts,Guardian Homecare (Bristol & Avon) Ltd,354.22, 10-Mar-2011
869,Revenue,CCHD,Elderly MH Home Care,Other Small Contracts,Guardian Homecare (Bristol & Avon) Ltd,338.3, 10-Mar-2011
870,Revenue,CCHD,Elderly MH Home Care,Other Small Contracts,Guardian Homecare (Bristol & Avon) Ltd,346.26, 28-Mar-2011
871,Revenue,CCHD,Elderly MH Home Care,Other Small Contracts,Lloyds TSB Commercial Finance Limited,91.92, 03-Mar-2011
872,Revenue,CCHD,Elderly MH Home Care,Other Small Contracts,Mears Care,987, 08-Mar-2011
873,Revenue,CCHD,Elderly MH Home Care,Other Small Contracts,Mears Care,1043.4, 30-Mar-2011
874,Revenue,CCHD,Elderly MH Home Care,Other Small Contracts,Mears Care,1024.6, 30-Mar-2011
875,Revenue,CCHD,Elderly MH Home Care,Other Small Contracts,Nursing Solutions Limited,315.9, 14-Mar-2011
876,Revenue,CCHD,Elderly MH Home Care,Other Small Contracts,Nursing Solutions Limited,344.25, 14-Mar-2011
877,Revenue,CCHD,Elderly MH Home Care,Other Small Contracts,Nursing Solutions Limited,388.8, 14-Mar-2011
878,Revenue,CCHD,Elderly MH Home Care,Other Small Contracts,Nursing Solutions Limited,392.85, 14-Mar-2011
879,Revenue,CCHD,Elderly MH Home Care,Other Small Contracts,Nursing Solutions Limited,364.5, 14-Mar-2011
880,Revenue,CCHD,Elderly MH Home Care,Other Small Contracts,Premier Homecare Limited,179.52, 08-Mar-2011
881,Revenue,CCHD,Elderly MH Home Care,Other Small Contracts,Premier Homecare Limited,179.52, 08-Mar-2011
882,Revenue,CCHD,Elderly MH Home Care,Other Small Contracts,Premier Homecare Limited,179.52, 18-Mar-2011
883,Revenue,CCHD,Elderly MH Home Care,Other Small Contracts,Premier Homecare Limited,125.12, 28-Mar-2011
884,Revenue,CCHD,Elderly MH Home Care,Other Small Contracts,Tender Home Care Limited,117.04, 11-Mar-2011
885,Revenue,CCHD,Elderly MH Home Care,Other Small Contracts,Tender Home Care Limited,121.22, 08-Mar-2011
886,Revenue,CCHD,Elderly MH Home Care,Other Small Contracts,Tender Home Care Limited,112.86, 30-Mar-2011
887,Revenue,CCHD,Elderly MH Home Care,Other Small Contracts,Tender Home Care Limited,125.4, 23-Mar-2011
888,Revenue,CCHD,Elderly MH Home Care,Other Small Contracts,Tender Home Care Limited,125.4, 30-Mar-2011
889,Revenue,CCHD,Elderly MH non-res purchasing,Private & Voluntary Day Care,Alzheimer`s Society Bristol,715.44, 23-Mar-2011
890,Revenue,CCHD,Elderly MH non-res purchasing,Private & Voluntary Day Care,Alzheimer`s Society Bristol,520.32, 23-Mar-2011
891,Revenue,CCHD,Elderly MH non-res purchasing,Private & Voluntary Day Care,Alzheimers Society Bristol Branch,520.32, 23-Mar-2011
892,Revenue,CCHD,Elderly MH non-res purchasing,Private & Voluntary Day Care,Alzheimers Society Bristol Branch,715.44, 23-Mar-2011
893,Revenue,CCHD,Elderly MH non-res purchasing,Private & Voluntary Day Care,Alzheimers Society Bristol Branch,715.44, 23-Mar-2011
894,Revenue,CCHD,Elderly MH non-res purchasing,Private & Voluntary Day Care,Alzheimers Society Bristol Branch,520.32, 10-Mar-2011
895,Revenue,CCHD,Elderly MH non-res purchasing,Private & Voluntary Day Care,Alzheimers Society Bristol Branch,780.48, 10-Mar-2011
896,Revenue,CCHD,Elderly MH non-res purchasing,Private & Voluntary Day Care,Alzheimers Society Bristol Branch,780.48, 10-Mar-2011
897,Revenue,CCHD,Elderly MH non-res purchasing,Private & Voluntary Day Care,Alzheimers Society Bristol Branch,780.48, 10-Mar-2011
898,Revenue,CCHD,Elderly MH non-res purchasing,Private & Voluntary Day Care,Alzheimers Society Bristol Branch,520.32, 10-Mar-2011
899,Revenue,CCHD,Elderly MH non-res purchasing,Private & Voluntary Day Care,Aspects and Milestones Trust,577.5, 24-Mar-2011
900,Revenue,CCHD,Elderly MH non-res purchasing,Private & Voluntary Day Care,Aspects and Milestones Trust,576.09, 24-Mar-2011
901,Revenue,CCHD,Elderly MH non-res purchasing,Private & Voluntary Day Care,Aspects and Milestones Trust,1149.12, 24-Mar-2011
902,Revenue,CCHD,Elderly MH non-res purchasing,Private & Voluntary Day Care,Aspects and Milestones Trust,829.92, 24-Mar-2011
903,Revenue,CCHD,Elderly MH non-res purchasing,Private & Voluntary Day Care,Aspects and Milestones Trust,574.56, 24-Mar-2011
904,Revenue,CCHD,Elderly MH non-res purchasing,Private & Voluntary Day Care,Aspects and Milestones Trust,755.43, 23-Mar-2011
905,Revenue,CCHD,Elderly MH non-res purchasing,Private & Voluntary Day Care,Aspects and Milestones Trust,542.36, 23-Mar-2011
906,Revenue,CCHD,Elderly MH non-res purchasing,Private & Voluntary Day Care,Aspects and Milestones Trust,697.32, 23-Mar-2011
907,Revenue,CCHD,Elderly MH non-res purchasing,Private & Voluntary Day Care,Aspects and Milestones Trust,706.56, 23-Mar-2011
908,Revenue,CCHD,Elderly MH non-res purchasing,Private & Voluntary Day Care,Aspects and Milestones Trust,1136.33, 23-Mar-2011
909,Revenue,CCHD,Elderly MH non-res purchasing,Private & Voluntary Day Care,Aspects and Milestones Trust,510.64, 24-Mar-2011
910,Revenue,CCHD,Elderly MH non-res purchasing,Private & Voluntary Day Care,Aspects and Milestones Trust,793.32, 23-Mar-2011
911,Revenue,CCHD,Elderly MH non-res purchasing,Private & Voluntary Day Care,Aspects and Milestones Trust,755.43, 23-Mar-2011
912,Revenue,CCHD,Elderly MH non-res purchasing,Private & Voluntary Day Care,Brunelcare,657.76, 23-Mar-2011
913,Revenue,CCHD,Elderly MH non-res purchasing,Private & Voluntary Day Care,Chrysalis Community Care Group Ltd,74.8, 07-Mar-2011
914,Revenue,CCHD,Elderly MH non-res purchasing,Private & Voluntary Day Care,Chrysalis Community Care Group Ltd,64.6, 30-Mar-2011
915,Revenue,CCHD,Elderly MH non-res purchasing,Private & Voluntary Day Care,Chrysalis Community Care Group Ltd,40.8, 07-Mar-2011
916,Revenue,CCHD,Elderly MH non-res purchasing,Private & Voluntary Day Care,Chrysalis Community Care Group Ltd,68, 07-Mar-2011
917,Revenue,CCHD,Elderly MH non-res purchasing,Private & Voluntary Day Care,Chrysalis Community Care Group Ltd,40.8, 07-Mar-2011
918,Revenue,CCHD,Elderly MH non-res purchasing,Private & Voluntary Day Care,Guardian Homecare (Bristol & Avon) Ltd,117.34, 11-Mar-2011
919,Revenue,CCHD,Elderly MH non-res purchasing,Private & Voluntary Day Care,Guardian Homecare (Bristol & Avon) Ltd,113.92, 10-Mar-2011
920,Revenue,CCHD,Elderly MH non-res purchasing,Private & Voluntary Day Care,Guardian Homecare (Bristol & Avon) Ltd,93.4, 10-Mar-2011
921,Revenue,CCHD,Elderly MH non-res purchasing,Private & Voluntary Day Care,Guardian Homecare (Bristol & Avon) Ltd,113.92, 28-Mar-2011
922,Revenue,CCHD,Elderly MH non-res purchasing,Private & Voluntary Day Care,Lloyds TSB Commercial Finance Limited,80.43, 03-Mar-2011
923,Revenue,CCHD,Elderly MH non-res purchasing,Private & Voluntary Day Care,Mears Care,112.8, 08-Mar-2011
924,Revenue,CCHD,Elderly MH non-res purchasing,Private & Voluntary Day Care,Mears Care,112.8, 30-Mar-2011
925,Revenue,CCHD,Elderly MH non-res purchasing,Private & Voluntary Day Care,Mears Care,112.8, 30-Mar-2011
926,Revenue,CCHD,Elderly MH non-res purchasing,Private & Voluntary Day Care,Mrs B Kimber,603.68, 10-Mar-2011
927,Revenue,CCHD,Elderly MH non-res purchasing,Private & Voluntary Day Care,Mrs B Kimber,528.57, 10-Mar-2011
928,Revenue,CCHD,Elderly MH non-res purchasing,Private & Voluntary Day Care,Mrs B Kimber,835.82, 10-Mar-2011
929,Revenue,CCHD,Elderly MH non-res purchasing,Private & Voluntary Day Care,Mrs B Kimber,624.56, 10-Mar-2011
930,Revenue,CCHD,Elderly MH non-res purchasing,Private & Voluntary Day Care,Mrs B Kimber,595.74, 10-Mar-2011
931,Revenue,CCHD,Elderly MH non-res purchasing,Private & Voluntary Day Care,Mrs B Kimber,570.78, 10-Mar-2011
932,Revenue,CCHD,Elderly MH non-res purchasing,Private & Voluntary Day Care,Mrs B Kimber,582.68, 10-Mar-2011
933,Revenue,CCHD,Elderly MH non-res purchasing,Private & Voluntary Day Care,Mrs B Kimber,626.57, 10-Mar-2011
934,Revenue,CCHD,Elderly MH non-res purchasing,Private & Voluntary Day Care,Mrs B Kimber,781.31, 10-Mar-2011
935,Revenue,CCHD,Elderly MH non-res purchasing,Private & Voluntary Day Care,Mrs B Kimber,708.63, 10-Mar-2011
936,Revenue,CCHD,Elderly MH non-res purchasing,Private & Voluntary Day Care,Mrs B Kimber,581.44, 10-Mar-2011
937,Revenue,CCHD,Elderly MH non-res purchasing,Private & Voluntary Day Care,Mrs B Kimber,545.1, 10-Mar-2011
938,Revenue,CCHD,Elderly MH non-res purchasing,Private & Voluntary Day Care,Mrs B Kimber,616.98, 10-Mar-2011
939,Revenue,CCHD,Elderly MH non-res purchasing,Private & Voluntary Day Care,Mrs B Kimber,545.1, 10-Mar-2011
940,Revenue,CCHD,Elderly MH non-res purchasing,Private & Voluntary Day Care,Mrs B Kimber,799.48, 10-Mar-2011
941,Revenue,CCHD,Elderly MH non-res purchasing,Private & Voluntary Day Care,Mrs B Kimber,637.59, 10-Mar-2011
942,Revenue,CCHD,Elderly MH non-res purchasing,Private & Voluntary Day Care,Mrs B Kimber,545.1, 10-Mar-2011
943,Revenue,CCHD,Elderly MH non-res purchasing,Private & Voluntary Day Care,Mrs B Kimber,781.31, 10-Mar-2011
944,Revenue,CCHD,Elderly MH non-res purchasing,Private & Voluntary Day Care,Mrs B Kimber,569.52, 18-Mar-2011
945,Revenue,CCHD,Elderly MH non-res purchasing,Private & Voluntary Day Care,Mrs B Kimber,508.76, 18-Mar-2011
946,Revenue,CCHD,Elderly MH non-res purchasing,Private & Voluntary Day Care,Mrs B Kimber,704.76, 18-Mar-2011
947,Revenue,CCHD,Elderly MH non-res purchasing,Private & Voluntary Day Care,Mrs B Kimber,654.12, 10-Mar-2011
948,Revenue,CCHD,Elderly MH non-res purchasing,Private & Voluntary Day Care,Mrs B Kimber,654.12, 10-Mar-2011
949,Revenue,CCHD,Elderly MH non-res purchasing,Private & Voluntary Day Care,Mrs B Kimber,726.8, 18-Mar-2011
950,Revenue,CCHD,Elderly MH non-res purchasing,Private & Voluntary Day Care,Nursing Solutions Limited,97.2, 14-Mar-2011
951,Revenue,CCHD,Elderly MH non-res purchasing,Private & Voluntary Day Care,Nursing Solutions Limited,97.2, 14-Mar-2011
952,Revenue,CCHD,Elderly MH non-res purchasing,Private & Voluntary Day Care,Nursing Solutions Limited,145.8, 14-Mar-2011
953,Revenue,CCHD,Elderly MH non-res purchasing,Private & Voluntary Day Care,Nursing Solutions Limited,145.8, 14-Mar-2011
954,Revenue,CCHD,Elderly MH non-res purchasing,Private & Voluntary Day Care,On the Up,77.76, 30-Mar-2011
955,Revenue,CCHD,Elderly MH non-res purchasing,Private & Voluntary Day Care,Premier Homecare Limited,244.8, 08-Mar-2011
956,Revenue,CCHD,Elderly MH non-res purchasing,Private & Voluntary Day Care,Premier Homecare Limited,250.24, 08-Mar-2011
957,Revenue,CCHD,Elderly MH non-res purchasing,Private & Voluntary Day Care,Premier Homecare Limited,250.24, 18-Mar-2011
958,Revenue,CCHD,Elderly MH non-res purchasing,Private & Voluntary Day Care,Premier Homecare Limited,250.24, 28-Mar-2011
959,Revenue,CCHD,Elderly MH non-res purchasing,Private & Voluntary Day Care,Windmill Care Limited,523.35, 23-Mar-2011
960,Revenue,CCHD,Delivering Stroke Care,Grants to Voluntary Bodies,North Bristol NHS Trust,24000, 01-Mar-2011
961,Revenue,CCHD,Brokerage and Information Service,Grants to Voluntary Bodies,Drugs & Homeless Initiative,9210.09, 25-Mar-2011
962,Revenue,CCHD,Preventative Technology Grant,Other Supplies & Services,Just Checking Ltd,28993.36, 02-Mar-2011
963,Revenue,CCHD,Preventative Technology Grant,Other Supplies & Services,Tunstall Telecom Limited,480, 18-Mar-2011
964,Revenue,CCHD,Preventative Technology Grant,Other Supplies & Services,Tytherington Post Office,3250, 18-Mar-2011
965,Revenue,CCHD,Delayed Transfers of Care Gran,Other Supplies & Services,South Gloucestershire Primary Care Trust,6625, 11-Mar-2011
966,Revenue,CCHD,Better Support for Older People,Rent,Housing 21,550.88, 11-Mar-2011
967,Revenue,CCHD,Better Support for Older People,Other Supplies & Services,Harvey Servicing & Engineering Limited,1140, 03-Mar-2011
968,Revenue,CCHD,Alexandra Way,Prop.Serv. General Repairs,Geoff Lewis Flooring Limited,680, 24-Mar-2011
969,Revenue,CCHD,Alexandra Way,Electricity,EDF Energy 1 Limited,1393.05, 01-Mar-2011
970,Revenue,CCHD,Alexandra Way,Electricity,EDF Energy 1 Limited,1273.93, 15-Mar-2011
971,Revenue,CCHD,Alexandra Way,Water Charges,Bristol Wessex Billing Services Limited,5387.69, 15-Mar-2011
972,Revenue,CCHD,Alexandra Way,Fixtures & Fittings - Fixed,Tower Joinery Specialists Limited,785, 02-Mar-2011
973,Revenue,CCHD,Alexandra Way,Cleaning & Domestic Supplies,Muzzell Healthcare,645.9, 30-Mar-2011
974,Revenue,CCHD,Alexandra Way,Refuse Collection Charges,SITA UK LTD,571.7, 09-Mar-2011
975,Revenue,CCHD,Charlton,Agency Staff (Admin/Support Staff) Pay,BS Project Services Limited,444.62, 17-Mar-2011
976,Revenue,CCHD,Charlton,Agency Staff (Admin/Support Staff) Pay,BS Project Services Limited,467.75, 31-Mar-2011
977,Revenue,CCHD,Charlton,Prop.Serv. General Repairs,C B Decorators,990, 02-Mar-2011
978,Revenue,CCHD,Charlton,Prop.Serv. General Repairs,Professional Hygiene Ltd,488.7, 09-Mar-2011
979,Revenue,CCHD,Charlton,Electricity,EDF Energy 1 Limited,1198.97, 01-Mar-2011
980,Revenue,CCHD,Charlton,Electricity,EDF Energy 1 Limited,1278.41, 15-Mar-2011
981,Revenue,CCHD,Charlton,Electricity,EDF Energy 1 Limited,1075.1, 15-Mar-2011
982,Revenue,CCHD,Charlton,Cleaning & Domestic Supplies,Medaco,534.84, 16-Mar-2011
983,Revenue,CCHD,Charlton,"Provisions (Food, etc)",School Milk Services Limited,654.94, 09-Mar-2011
984,Revenue,CCHD,Charlton,"Provisions (Food, etc)",School Milk Services Limited,671.74, 30-Mar-2011
985,Revenue,CCHD,Frome House,Water Charges,Bristol Wessex Billing Services Limited,1334.55, 15-Mar-2011
986,Revenue,CCHD,Kerr House,Electricity,EDF Energy 1 Limited,1168.19, 15-Mar-2011
987,Revenue,CCHD,Kerr House,Electricity,EDF Energy 1 Limited,987.29, 15-Mar-2011
988,Revenue,CCHD,Kerr House,Cleaning & Domestic Supplies,Spot On Supplies (Hygiene) Limited,419.01, 29-Mar-2011
989,Revenue,CCHD,Kerr House,Refuse Collection Charges,SITA UK LTD,419.97, 03-Mar-2011
990,Revenue,CCHD,Kerr House,Office Supplies & Equipment,W & A Ross Limited,479.94, 02-Mar-2011
991,Revenue,CCHD,Kerr House,Office Supplies & Equipment,W & A Ross Limited,479.94, 18-Mar-2011
992,Revenue,CCHD,Kerr House,Furniture & Fittings Loose,Care Shop,620, 30-Mar-2011
993,Revenue,CCHD,Wapley Court,Electricity,EDF Energy 1 Limited,1311.88, 01-Mar-2011
994,Revenue,CCHD,Wapley Court,Electricity,EDF Energy 1 Limited,1145.5, 15-Mar-2011
995,Revenue,CCHD,Wapley Court,"Provisions (Food, etc)",Brake Bros,513.12, 10-Mar-2011
996,Revenue,CCHD,Newton House,Prop.Serv. General Repairs,A E Horder (Contracting) Limited,837.62, 02-Mar-2011
997,Revenue,CCHD,Newton House,Prop.Serv. General Repairs,Amy Flooring Limited,796, 10-Mar-2011
998,Revenue,CCHD,Newton House,Electricity,EDF Energy 1 Limited,1049.03, 01-Mar-2011
999,Revenue,CCHD,Newton House,Electricity,EDF Energy 1 Limited,956.06, 15-Mar-2011
1000,Revenue,CCHD,Newton House,Refuse Collection Charges,SITA UK LTD,583.14, 02-Mar-2011
1001,Revenue,CCHD,Newton House,Furniture & Fittings Loose,Harvey Servicing & Engineering Limited,470.5, 11-Mar-2011
1002,Revenue,CCHD,Newton House,Equipment Maintenance,Harvey Servicing & Engineering Limited,473, 04-Mar-2011
1003,Revenue,CCHD,Woodleaze,Electricity,EDF Energy 1 Limited,1272.72, 01-Mar-2011
1004,Revenue,CCHD,Woodleaze,Electricity,EDF Energy 1 Limited,1081.34, 15-Mar-2011
1005,Revenue,CCHD,Woodleaze,Cleaning & Domestic Supplies,Bunzl Cleaning & Hygiene Supplies,823.11, 31-Mar-2011
1006,Revenue,CCHD,Woodleaze,Equipment Maintenance,Harvey Servicing & Engineering Limited,447.5, 15-Mar-2011
1007,Revenue,CCHD,Woodleaze,"Provisions (Food, etc)",Brake Bros,562.7, 15-Mar-2011
1008,Revenue,CCHD,Woodleaze,"Provisions (Food, etc)",Brake Bros,514.62, 15-Mar-2011
1009,Revenue,CCHD,Woodleaze,"Provisions (Food, etc)",Brake Bros,577.39, 15-Mar-2011
1010,Revenue,CCHD,Woodleaze,"Provisions (Food, etc)",Brake Bros,535.08, 30-Mar-2011
1011,Revenue,CCHD,Woodleaze,"Provisions (Food, etc)",School Milk Services Limited,708.07, 02-Mar-2011
1012,Revenue,CCHD,Woodleaze,"Provisions (Food, etc)",School Milk Services Limited,705.24, 30-Mar-2011
1013,Revenue,CCHD,Downend Day Centre,Electricity,EDF Energy 1 Limited,947.65, 01-Mar-2011
1014,Revenue,CCHD,Downend Day Centre,Electricity,EDF Energy 1 Limited,904.1, 15-Mar-2011
1015,Revenue,CCHD,Downend Day Centre,Refuse Collection Charges,SITA UK LTD,793.1, 24-Mar-2011
1016,Revenue,CCHD,Downend Day Centre,Equipment Maintenance,Medaco,445, 17-Mar-2011
1017,Revenue,CCHD,Cambrian Green Day Service,Furniture & Fittings Loose,Pearce Bros,460, 03-Mar-2011
1018,Revenue,CCHD,Cambrian Green Day Service,Furniture & Fittings Loose,The Consortium,884.96, 16-Mar-2011
1019,Revenue,CCHD,Cambrian Green Day Service,Radio Pager/Mobile Phones,Vodafone Corporate Limited,30.21, 15-Mar-2011
1020,Revenue,CCHD,Home Care - General,Uniforms & Clothing,Muzzell Healthcare,778.85, 03-Mar-2011
1021,Revenue,CCHD,Home Care - General,Other Supplies & Services,Care monitoring 2000 Ltd,7200.89, 02-Mar-2011
1022,Revenue,CCHD,Home Care - General,Other Supplies & Services,Care monitoring 2000 Ltd,7166.9, 28-Mar-2011
1023,Revenue,CCHD,Getting a Life Project,Other Supplies & Services,Dorset People First,9000, 14-Mar-2011
1024,Revenue,CCHD,Getting a Life Project,Other Supplies & Services,South West Employment Institute,6000, 01-Mar-2011
1025,Revenue,CCHD,Finance,Other Supplies & Services,Kenver House,2718.94, 08-Mar-2011
1026,Revenue,CCHD,Finance - FAB,Training Expenses,City of Bristol College,965, 08-Mar-2011
1027,Revenue,CCHD,User Involvement,Other Supplies & Services,Princess Royal Trust Carers Centre,1622.21, 10-Mar-2011
1028,Revenue,CCHD,Contracts & Commissioning Team,Other Small Contracts,Agincare UK Limited,3500, 04-Mar-2011
1029,Revenue,CCHD,Contracts & Commissioning Team,Other Small Contracts,Agincare UK Limited,3500, 11-Mar-2011
1030,Revenue,CCHD,Contracts & Commissioning Team,Other Small Contracts,Agincare UK Limited,3500, 18-Mar-2011
1031,Revenue,CCHD,Contracts & Commissioning Team,Other Small Contracts,Agincare UK Limited,3500, 25-Mar-2011
1032,Revenue,CCHD,Contracts & Commissioning Team,Other Small Contracts,Brunelcare,13500, 04-Mar-2011
1033,Revenue,CCHD,Contracts & Commissioning Team,Other Small Contracts,Brunelcare,13500, 11-Mar-2011
1034,Revenue,CCHD,Contracts & Commissioning Team,Other Small Contracts,Brunelcare,13500, 18-Mar-2011
1035,Revenue,CCHD,Contracts & Commissioning Team,Other Small Contracts,Brunelcare,13500, 25-Mar-2011
1036,Revenue,CCHD,Contracts & Commissioning Team,Other Small Contracts,Care UK Homecare,20000, 04-Mar-2011
1037,Revenue,CCHD,Contracts & Commissioning Team,Other Small Contracts,Care UK Homecare,20000, 11-Mar-2011
1038,Revenue,CCHD,Contracts & Commissioning Team,Other Small Contracts,Care UK Homecare,20000, 18-Mar-2011
1039,Revenue,CCHD,Contracts & Commissioning Team,Other Small Contracts,Care UK Homecare,20000, 25-Mar-2011
1040,Revenue,CCHD,Contracts & Commissioning Team,Other Small Contracts,Carewatch (Bristol),2500, 04-Mar-2011
1041,Revenue,CCHD,Contracts & Commissioning Team,Other Small Contracts,Carewatch (Bristol),2500, 11-Mar-2011
1042,Revenue,CCHD,Contracts & Commissioning Team,Other Small Contracts,Carewatch (Bristol),2500, 18-Mar-2011
1043,Revenue,CCHD,Contracts & Commissioning Team,Other Small Contracts,Carewatch (Bristol),2500, 25-Mar-2011
1044,Revenue,CCHD,Contracts & Commissioning Team,Other Small Contracts,Kumari Care Limited,7500, 04-Mar-2011
1045,Revenue,CCHD,Contracts & Commissioning Team,Other Small Contracts,Kumari Care Limited,7500, 11-Mar-2011
1046,Revenue,CCHD,Contracts & Commissioning Team,Other Small Contracts,Kumari Care Limited,7500, 18-Mar-2011
1047,Revenue,CCHD,Contracts & Commissioning Team,Other Small Contracts,Kumari Care Limited,7500, 25-Mar-2011
1048,Revenue,CCHD,Contracts & Commissioning Team,Other Small Contracts,Medico Nursing & Homecare Ltd,18000, 04-Mar-2011
1049,Revenue,CCHD,Contracts & Commissioning Team,Other Small Contracts,Medico Nursing & Homecare Ltd,18000, 11-Mar-2011
1050,Revenue,CCHD,Contracts & Commissioning Team,Other Small Contracts,Medico Nursing & Homecare Ltd,18000, 18-Mar-2011
1051,Revenue,CCHD,Contracts & Commissioning Team,Other Small Contracts,Medico Nursing & Homecare Ltd,18000, 25-Mar-2011
1052,Revenue,CCHD,Contracts & Commissioning Team,Other Small Contracts,Medico Nursing & Homecare Ltd,7243.11, 11-Mar-2011
1053,Revenue,CCHD,Contracts & Commissioning Team,Other Small Contracts,Milestones Outreach Dementia Services,2000, 04-Mar-2011
1054,Revenue,CCHD,Contracts & Commissioning Team,Other Small Contracts,Milestones Outreach Dementia Services,2000, 11-Mar-2011
1055,Revenue,CCHD,Contracts & Commissioning Team,Other Small Contracts,Milestones Outreach Dementia Services,2000, 18-Mar-2011
1056,Revenue,CCHD,Contracts & Commissioning Team,Other Small Contracts,Milestones Outreach Dementia Services,2000, 25-Mar-2011
1057,Revenue,CCHD,Contracts & Commissioning Team,Other Small Contracts,Mrs B Kimber,8000, 04-Mar-2011
1058,Revenue,CCHD,Contracts & Commissioning Team,Other Small Contracts,Mrs B Kimber,8000, 11-Mar-2011
1059,Revenue,CCHD,Contracts & Commissioning Team,Other Small Contracts,Mrs B Kimber,8000, 18-Mar-2011
1060,Revenue,CCHD,Contracts & Commissioning Team,Other Small Contracts,Mrs B Kimber,8000, 25-Mar-2011
1061,Revenue,CCHD,Contracts & Commissioning Team,Other Small Contracts,Network Health & Social Care,2500, 04-Mar-2011
1062,Revenue,CCHD,Contracts & Commissioning Team,Other Small Contracts,Network Health & Social Care,2500, 11-Mar-2011
1063,Revenue,CCHD,Contracts & Commissioning Team,Other Small Contracts,Network Health & Social Care,2500, 18-Mar-2011
1064,Revenue,CCHD,Contracts & Commissioning Team,Other Small Contracts,Network Health & Social Care,2500, 25-Mar-2011
1065,Revenue,CCHD,Contracts & Commissioning Team,Other Small Contracts,Prestige Nursing,4500, 04-Mar-2011
1066,Revenue,CCHD,Contracts & Commissioning Team,Other Small Contracts,Prestige Nursing,4500, 11-Mar-2011
1067,Revenue,CCHD,Contracts & Commissioning Team,Other Small Contracts,Prestige Nursing,4500, 18-Mar-2011
1068,Revenue,CCHD,Contracts & Commissioning Team,Other Small Contracts,Prestige Nursing,4500, 25-Mar-2011
1069,Revenue,CCHD,Contracts & Commissioning Team,Other Small Contracts,South Gloucestershire Crossroads,5000, 04-Mar-2011
1070,Revenue,CCHD,Contracts & Commissioning Team,Other Small Contracts,South Gloucestershire Crossroads,5000, 11-Mar-2011
1071,Revenue,CCHD,Contracts & Commissioning Team,Other Small Contracts,South Gloucestershire Crossroads,5000, 18-Mar-2011
1072,Revenue,CCHD,Contracts & Commissioning Team,Other Small Contracts,South Gloucestershire Crossroads,5000, 25-Mar-2011
1073,Revenue,CCHD,Contracts & Commissioning Team,Other Small Contracts,The Royal Bank of Scotland Commercial,5000, 04-Mar-2011
1074,Revenue,CCHD,Contracts & Commissioning Team,Other Small Contracts,The Royal Bank of Scotland Commercial,5000, 11-Mar-2011
1075,Revenue,CCHD,Contracts & Commissioning Team,Other Small Contracts,The Royal Bank of Scotland Commercial,5000, 18-Mar-2011
1076,Revenue,CCHD,Contracts & Commissioning Team,Other Small Contracts,The Royal Bank of Scotland Commercial,5000, 25-Mar-2011
1077,Revenue,CCHD,Information Systems - Software,Computer Equipment - Purchase,BT Global Services Solutions,759.31, 03-Mar-2011
1078,Revenue,CCHD,Information Systems - Software,Software Purchase,Igneous Solutions Limited,5228.2, 11-Mar-2011
1079,Revenue,CCHD,Emersons Green Offices,Rent,Trustees Of The Thorner 1990 Settlement,30090.75, 25-Mar-2011
1080,Revenue,CCHD,Eclipse Park Office,Rent,Mrs M Pendrell,4498.75, 25-Mar-2011
1081,Revenue,CCHD,Younger Adult Mental Health,Agency Staff (Admin/Support Staff) Pay,Randstad Care Ltd,2591.18, 24-Mar-2011
1082,Revenue,CCHD,Elderly Mental Health,Agency Staff (Admin/Support Staff) Pay,Randstad Care Ltd,546.53, 15-Mar-2011
1083,Revenue,CCHD,Elderly Mental Health,Agency Staff (Admin/Support Staff) Pay,Randstad Care Ltd,599.85, 16-Mar-2011
1084,Revenue,CCHD,Elderly Mental Health,Agency Staff (Admin/Support Staff) Pay,Randstad Care Ltd,599.85, 16-Mar-2011
1085,Revenue,CCHD,Elderly Mental Health,Agency Staff (Admin/Support Staff) Pay,Randstad Care Ltd,599.85, 15-Mar-2011
1086,Revenue,CCHD,Elderly Mental Health,Agency Staff (Admin/Support Staff) Pay,Randstad Care Ltd,599.85, 16-Mar-2011
1087,Revenue,CCHD,Southmead Hospital Team,Agency Staff (Operational)/PCT Pay,Hays Specialist Recruitment,1122.23, 10-Mar-2011
1088,Revenue,CCHD,Southmead Hospital Team,Agency Staff (Operational)/PCT Pay,Hays Specialist Recruitment,1122.23, 29-Mar-2011
1089,Revenue,CCHD,Southmead Hospital Team,Agency Staff (Operational)/PCT Pay,Hays Specialist Recruitment,1122.23, 29-Mar-2011
1090,Revenue,CCHD,Southmead Hospital Team,Agency Staff (Operational)/PCT Pay,Hays Specialist Recruitment,667.27, 29-Mar-2011
1091,Revenue,CCHD,Occupational Therapy Team,Agency Staff (Operational)/PCT Pay,South Gloucestershire Primary Care Trust,38811.92, 31-Mar-2011
1092,Revenue,CCHD,Assessment Team,Care Management/Assessment Staff Pay,South Gloucestershire Primary Care Trust,4844.62, 15-Mar-2011
1093,Revenue,CCHD,Assessment Team,Care Management/Assessment Staff Pay,South Gloucestershire Primary Care Trust,14904.3, 15-Mar-2011
1094,Revenue,CCHD,Training - Adult Services,Training Expenses,Avenues Cafe,1107, 07-Mar-2011
1095,Revenue,CCHD,Training - Adult Services,Training Expenses,Bob Dawson,1500, 10-Mar-2011
1096,Revenue,CCHD,Training - Adult Services,Training Expenses,Qualsafe.com,872.99, 16-Mar-2011
1097,Revenue,CCHD,Training - Adult Services,Training Expenses,Simulaids Limited,900, 15-Mar-2011
1098,Revenue,CCHD,Training - Adult Services,Training Expenses,Simulaids Limited,1000, 22-Mar-2011
1099,Revenue,CCHD,Training - Adult Services,Training Expenses,Tracy Packer,635, 03-Mar-2011
1100,Revenue,CCHD,TSG Practice Placements,Training Expenses,Bristol City Council,975, 18-Mar-2011
1101,Revenue,CCHD,NTS Grant - Trainee Social Wor,Training Expenses,The Open University,1300, 07-Mar-2011
1102,Revenue,CCHD,HRD Grant - Main,Training Expenses,Effective Training & Consultancy Limited,778.5, 07-Mar-2011
1103,Revenue,CCHD,HRD Grant - Main,Training Expenses,Pier Professional Ltd,3936, 25-Mar-2011
1104,Revenue,CCHD,Supporting People Programme,Grants to Voluntary Bodies,Keyring Living Support Networks,2577.6, 25-Mar-2011
1105,Revenue,CCHD,Supporting People Programme,Grants to Voluntary Bodies,Knightstone Housing Association Limited,1398.36, 29-Mar-2011
1106,Revenue,CCHD,Supporting People Programme,Grants to Voluntary Bodies,Knightstone Housing Association Ltd,14743.35, 01-Mar-2011
1107,Revenue,CCHD,Supporting People Programme,Grants to Voluntary Bodies,Knightstone Housing Association Limited,858.6, 29-Mar-2011
1108,Revenue,CCHD,Supporting People Programme,Grants to Voluntary Bodies,Housing 21,621, 11-Mar-2011
1109,Revenue,CCHD,Supporting People Programme,Grants to Voluntary Bodies,Housing 21,828, 11-Mar-2011
1110,Revenue,CCHD,Supporting People Programme,Grants to Voluntary Bodies,Housing 21,828, 11-Mar-2011
1111,Revenue,CCHD,Supporting People Programme,Grants to Voluntary Bodies,Merlin Housing Society,986.53, 29-Mar-2011
1112,Revenue,CCHD,Supporting People Programme,Grants to Voluntary Bodies,Drugs & Homeless Initiative,10354, 15-Mar-2011
1113,Revenue,CCHD,Supporting People Programme,Grants to Voluntary Bodies,Aspects and Milestones Trust,1737.24, 23-Mar-2011
1114,Revenue,CCHD,Supporting People Programme,Grants to Voluntary Bodies,Bristol Houses,1377.08, 29-Mar-2011
1115,Revenue,CCHD,Supporting People Programme,Grants to Voluntary Bodies,Aspects and Milestones Trust,3872.64, 23-Mar-2011
1116,Revenue,CCHD,Supporting People Programme,Grants to Voluntary Bodies,Aspects and Milestones Trust,3872.64, 23-Mar-2011
1117,Revenue,CCHD,Supporting People Programme,Grants to Voluntary Bodies,Aspects and Milestones Trust,3872.64, 23-Mar-2011
1118,Revenue,CCHD,Supporting People Programme,Grants to Voluntary Bodies,Aspects and Milestones Trust,3872.64, 23-Mar-2011
1119,Revenue,CCHD,Supporting People Programme,Grants to Voluntary Bodies,Aspects and Milestones Trust,3872.64, 23-Mar-2011
1120,Revenue,CCHD,Supporting People Programme,Grants to Voluntary Bodies,Aspects and Milestones Trust,3872.64, 23-Mar-2011
1121,Revenue,CCHD,Supporting People Programme,Grants to Voluntary Bodies,Aspects and Milestones Trust,3872.64, 23-Mar-2011
1122,Revenue,CCHD,Supporting People Programme,Grants to Voluntary Bodies,Aspects and Milestones Trust,3872.64, 23-Mar-2011
1123,Revenue,CCHD,Supporting People Programme,Grants to Voluntary Bodies,Aspects and Milestones Trust,3872.64, 23-Mar-2011
1124,Revenue,CCHD,Supporting People Programme,Grants to Voluntary Bodies,Aspects and Milestones Trust,3872.64, 23-Mar-2011
1125,Revenue,CCHD,Supporting People Programme,Grants to Voluntary Bodies,Aspects and Milestones Trust,3872.64, 23-Mar-2011
1126,Revenue,CCHD,Supporting People Programme,Grants to Voluntary Bodies,Aspects and Milestones Trust,3872.64, 23-Mar-2011
1127,Revenue,CCHD,Supporting People Programme,Grants to Voluntary Bodies,Aspects and Milestones Trust,3872.64, 23-Mar-2011
1128,Revenue,CCHD,Supporting People Programme,Grants to Voluntary Bodies,Aspects and Milestones Trust,3872.64, 23-Mar-2011
1129,Revenue,CCHD,Supporting People Programme,Grants to Voluntary Bodies,Aspects and Milestones Trust,3872.64, 23-Mar-2011
1130,Revenue,CCHD,Supporting People Programme,Grants to Voluntary Bodies,Aspects and Milestones Trust,3872.64, 23-Mar-2011
1131,Revenue,CCHD,Supporting People Programme,Grants to Voluntary Bodies,Aspects and Milestones Trust,3872.64, 23-Mar-2011
1132,Revenue,CCHD,Supporting People Programme,Grants to Voluntary Bodies,Aspects and Milestones Trust,3872.64, 23-Mar-2011
1133,Revenue,CCHD,Supporting People Programme,Grants to Voluntary Bodies,Aspects and Milestones Trust,3872.64, 23-Mar-2011
1134,Revenue,CCHD,Supporting People Programme,Grants to Voluntary Bodies,Aspects and Milestones Trust,3872.64, 23-Mar-2011
1135,Revenue,CCHD,Supporting People Programme,Grants to Voluntary Bodies,Aspects and Milestones Trust,3872.64, 23-Mar-2011
1136,Revenue,CCHD,Supporting People Programme,Grants to Voluntary Bodies,Aspects and Milestones Trust,3872.64, 23-Mar-2011
1137,Revenue,CCHD,Supporting People Programme,Grants to Voluntary Bodies,Aspects and Milestones Trust,1426.32, 23-Mar-2011
1138,Revenue,CCHD,Supporting People Programme,Grants to Voluntary Bodies,Aspects and Milestones Trust,3872.64, 23-Mar-2011
1139,Revenue,CCHD,Supporting People Programme,Grants to Voluntary Bodies,Aspects and Milestones Trust,3996.4, 23-Mar-2011
1140,Revenue,CCHD,Supporting People Programme,Grants to Voluntary Bodies,Aspects and Milestones Trust,3872.64, 23-Mar-2011
1141,Revenue,CCHD,Supporting People Programme,Grants to Voluntary Bodies,Aspects and Milestones Trust,3596.02, 23-Mar-2011
1142,Revenue,CCHD,Supporting People Programme,Grants to Voluntary Bodies,Aspects and Milestones Trust,3872.64, 23-Mar-2011
1143,Revenue,CCHD,Supporting People Programme,Grants to Voluntary Bodies,Supported Independance Ltd,5538.4, 25-Mar-2011
1144,Revenue,CCHD,Supporting People Programme,Grants to Voluntary Bodies,Supported Independent Living Schemes,4465.92, 15-Mar-2011
1145,Revenue,CCHD,Supporting People Programme,Grants to Voluntary Bodies,Supported Independent Living Schemes,5388.32, 15-Mar-2011
1146,Revenue,CCHD,Supporting People Programme,Grants to Voluntary Bodies,Willowbank Care Limited,7444, 09-Mar-2011
1147,Revenue,CCHD,Supporting People Programme,Grants to Voluntary Bodies,Aspects and Milestones Trust,2165.04, 23-Mar-2011
1148,Revenue,CCHD,Supporting People Programme,Grants to Voluntary Bodies,Maples Community Housing Limited,2620.2, 02-Mar-2011
1149,Revenue,CCHD,Supporting People Programme,Grants to Voluntary Bodies,1625 Independent People,522.61, 29-Mar-2011
1150,Revenue,CCHD,Supporting People Programme,Grants to Voluntary Bodies,Elim Housing Association Ltd,4434.56, 15-Mar-2011
1151,Revenue,CCHD,Supporting People Programme,Grants to Voluntary Bodies,Kingswood Young Homeless Project,5133.12, 02-Mar-2011
1152,Revenue,CCHD,Supporting People Programme,Grants to Voluntary Bodies,Kingswood Young Homeless Project,733.31, 31-Mar-2011
1153,Revenue,CCHD,Supporting People Programme,Grants to Voluntary Bodies,Knightstone Housing Association Limited,778.23, 29-Mar-2011
1154,Revenue,CCHD,Supporting People Programme,Grants to Voluntary Bodies,Survive,3017.28, 02-Mar-2011
1155,Revenue,CCHD,Supporting People Programme,Grants to Voluntary Bodies,Survive,10156.16, 02-Mar-2011
1156,Revenue,CCHD,Supporting People Programme,Grants to Voluntary Bodies,Survive,1450.88, 31-Mar-2011
1157,Revenue,CCHD,Supporting People Programme,Grants to Voluntary Bodies,1625 Independent People,2070.01, 29-Mar-2011
1158,Revenue,CCHD,Supporting People Programme,Grants to Voluntary Bodies,Kingswood Young Homeless Project,1608.89, 02-Mar-2011
1159,Revenue,CCHD,Supporting People Programme,Grants to Voluntary Bodies,Merlin Housing Society,13808.8, 29-Mar-2011
1160,Revenue,CCHD,Private Sector Housing,Software Support & Maintenance,Iris Legal Solutions,1335, 01-Mar-2011
1161,Revenue,CCHD,Bed and Breakfast,Bed & Breakfast,Ashley Guest House Ltd,1200, 25-Mar-2011
1162,Revenue,CCHD,Bed and Breakfast,Bed & Breakfast,Ashley Guest House Ltd,1680, 22-Mar-2011
1163,Revenue,CCHD,Bed and Breakfast,Bed & Breakfast,Ashley Guest House Ltd,1680, 11-Mar-2011
1164,Revenue,CCHD,Bed and Breakfast,Bed & Breakfast,Ashley Guest House Ltd,1272, 22-Mar-2011
1165,Revenue,CCHD,Bed and Breakfast,Bed & Breakfast,Bristol Housing & Support Limited,510, 24-Mar-2011
1166,Revenue,CCHD,Bed and Breakfast,Bed & Breakfast,Connolly & Callaghan Limited,441, 17-Mar-2011
1167,Revenue,CCHD,Bed and Breakfast,Bed & Breakfast,Connolly & Callaghan Limited,546, 10-Mar-2011
1168,Revenue,CCHD,Bed and Breakfast,Bed & Breakfast,Connolly & Callaghan Limited,546, 10-Mar-2011
1169,Revenue,CCHD,Bed and Breakfast,Bed & Breakfast,Connolly & Callaghan Limited,441, 10-Mar-2011
1170,Revenue,CCHD,Bed and Breakfast,Bed & Breakfast,Connolly & Callaghan Limited,696, 08-Mar-2011
1171,Revenue,CCHD,Bed and Breakfast,Bed & Breakfast,Connolly & Callaghan Limited,511, 08-Mar-2011
1172,Revenue,CCHD,Bed and Breakfast,Bed & Breakfast,Connolly & Callaghan Limited,511, 08-Mar-2011
1173,Revenue,CCHD,Bed and Breakfast,Bed & Breakfast,Connolly & Callaghan Limited,721, 08-Mar-2011
1174,Revenue,CCHD,Bed and Breakfast,Bed & Breakfast,Connolly & Callaghan Limited,441, 08-Mar-2011
1175,Revenue,CCHD,Bed and Breakfast,Bed & Breakfast,Connolly & Callaghan Limited,581, 08-Mar-2011
1176,Revenue,CCHD,Bed and Breakfast,Bed & Breakfast,Connolly & Callaghan Limited,441, 08-Mar-2011
1177,Revenue,CCHD,Bed and Breakfast,Bed & Breakfast,Connolly & Callaghan Limited,511, 08-Mar-2011
1178,Revenue,CCHD,Bed and Breakfast,Bed & Breakfast,Connolly & Callaghan Limited,476, 08-Mar-2011
1179,Revenue,CCHD,Bed and Breakfast,Bed & Breakfast,Connolly & Callaghan Limited,476, 08-Mar-2011
1180,Revenue,CCHD,Bed and Breakfast,Bed & Breakfast,Connolly & Callaghan Limited,441, 08-Mar-2011
1181,Revenue,CCHD,Bed and Breakfast,Bed & Breakfast,Connolly & Callaghan Limited,441, 10-Mar-2011
1182,Revenue,CCHD,Bed and Breakfast,Bed & Breakfast,Connolly & Callaghan Limited,441, 08-Mar-2011
1183,Revenue,CCHD,Bed and Breakfast,Bed & Breakfast,Connolly & Callaghan Limited,581, 10-Mar-2011
1184,Revenue,CCHD,Bed and Breakfast,Bed & Breakfast,Connolly & Callaghan Limited,511, 18-Mar-2011
1185,Revenue,CCHD,Bed and Breakfast,Bed & Breakfast,Connolly & Callaghan Limited,721, 18-Mar-2011
1186,Revenue,CCHD,Bed and Breakfast,Bed & Breakfast,Connolly & Callaghan Limited,581, 18-Mar-2011
1187,Revenue,CCHD,Bed and Breakfast,Bed & Breakfast,Connolly & Callaghan Limited,441, 18-Mar-2011
1188,Revenue,CCHD,Bed and Breakfast,Bed & Breakfast,Connolly & Callaghan Limited,441, 18-Mar-2011
1189,Revenue,CCHD,Bed and Breakfast,Bed & Breakfast,Connolly & Callaghan Limited,511, 18-Mar-2011
1190,Revenue,CCHD,Bed and Breakfast,Bed & Breakfast,Connolly & Callaghan Limited,441, 18-Mar-2011
1191,Revenue,CCHD,Bed and Breakfast,Bed & Breakfast,Connolly & Callaghan Limited,441, 18-Mar-2011
1192,Revenue,CCHD,Bed and Breakfast,Bed & Breakfast,Connolly & Callaghan Limited,581, 18-Mar-2011
1193,Revenue,CCHD,Bed and Breakfast,Bed & Breakfast,Connolly & Callaghan Limited,511, 23-Mar-2011
1194,Revenue,CCHD,Bed and Breakfast,Bed & Breakfast,Connolly & Callaghan Limited,581, 24-Mar-2011
1195,Revenue,CCHD,Bed and Breakfast,Bed & Breakfast,Connolly & Callaghan Limited,441, 24-Mar-2011
1196,Revenue,CCHD,Bed and Breakfast,Bed & Breakfast,Connolly & Callaghan Limited,581, 24-Mar-2011
1197,Revenue,CCHD,Bed and Breakfast,Bed & Breakfast,Connolly & Callaghan Limited,441, 24-Mar-2011
1198,Revenue,CCHD,Bed and Breakfast,Bed & Breakfast,Connolly & Callaghan Limited,511, 24-Mar-2011
1199,Revenue,CCHD,Bed and Breakfast,Bed & Breakfast,Connolly & Callaghan Limited,441, 24-Mar-2011
1200,Revenue,CCHD,Bed and Breakfast,Bed & Breakfast,Connolly & Callaghan Limited,441, 24-Mar-2011
1201,Revenue,CCHD,Bed and Breakfast,Bed & Breakfast,Connolly & Callaghan Limited,581, 29-Mar-2011
1202,Revenue,CCHD,Bed and Breakfast,Bed & Breakfast,Connolly & Callaghan Limited,441, 29-Mar-2011
1203,Revenue,CCHD,Bed and Breakfast,Bed & Breakfast,Connolly & Callaghan Limited,581, 29-Mar-2011
1204,Revenue,CCHD,Bed and Breakfast,Bed & Breakfast,Connolly & Callaghan Limited,441, 29-Mar-2011
1205,Revenue,CCHD,Bed and Breakfast,Bed & Breakfast,Connolly & Callaghan Limited,581, 29-Mar-2011
1206,Revenue,CCHD,Bed and Breakfast,Bed & Breakfast,Connolly & Callaghan Limited,511, 29-Mar-2011
1207,Revenue,CCHD,Bed and Breakfast,Bed & Breakfast,Connolly & Callaghan Limited,441, 29-Mar-2011
1208,Revenue,CCHD,Bed and Breakfast,Bed & Breakfast,Connolly & Callaghan Limited,441, 29-Mar-2011
1209,Revenue,CCHD,Bed and Breakfast,Bed & Breakfast,Connolly & Callaghan Limited,441, 31-Mar-2011
1210,Revenue,CCHD,Bed and Breakfast,Bed & Breakfast,Connolly & Callaghan Limited,581, 31-Mar-2011
1211,Revenue,CCHD,Bed and Breakfast,Bed & Breakfast,Connolly & Callaghan Limited,441, 31-Mar-2011
1212,Revenue,CCHD,Bed and Breakfast,Bed & Breakfast,Connolly & Callaghan Limited,581, 31-Mar-2011
1213,Revenue,CCHD,Bed and Breakfast,Bed & Breakfast,Connolly & Callaghan Limited,441, 31-Mar-2011
1214,Revenue,CCHD,Bed and Breakfast,Bed & Breakfast,E J Bartlett,702, 08-Mar-2011
1215,Revenue,CCHD,Bed and Breakfast,Bed & Breakfast,E J Bartlett,455, 07-Mar-2011
1216,Revenue,CCHD,Bed and Breakfast,Bed & Breakfast,E J Bartlett,637, 07-Mar-2011
1217,Revenue,CCHD,Bed and Breakfast,Bed & Breakfast,E J Bartlett,455, 07-Mar-2011
1218,Revenue,CCHD,Bed and Breakfast,Bed & Breakfast,E J Bartlett,546, 11-Mar-2011
1219,Revenue,CCHD,Bed and Breakfast,Bed & Breakfast,E J Bartlett,455, 11-Mar-2011
1220,Revenue,CCHD,Bed and Breakfast,Bed & Breakfast,E J Bartlett,637, 11-Mar-2011
1221,Revenue,CCHD,Bed and Breakfast,Bed & Breakfast,E J Bartlett,468, 17-Mar-2011
1222,Revenue,CCHD,Bed and Breakfast,Bed & Breakfast,E J Bartlett,455, 11-Mar-2011
1223,Revenue,CCHD,Bed and Breakfast,Bed & Breakfast,E J Bartlett,546, 18-Mar-2011
1224,Revenue,CCHD,Bed and Breakfast,Bed & Breakfast,E J Bartlett,455, 18-Mar-2011
1225,Revenue,CCHD,Bed and Breakfast,Bed & Breakfast,E J Bartlett,637, 18-Mar-2011
1226,Revenue,CCHD,Bed and Breakfast,Bed & Breakfast,E J Bartlett,455, 18-Mar-2011
1227,Revenue,CCHD,Bed and Breakfast,Bed & Breakfast,E J Bartlett,455, 23-Mar-2011
1228,Revenue,CCHD,Bed and Breakfast,Bed & Breakfast,E J Bartlett,637, 23-Mar-2011
1229,Revenue,CCHD,Bed and Breakfast,Bed & Breakfast,E J Bartlett,455, 25-Mar-2011
1230,Revenue,CCHD,Bed and Breakfast,Bed & Breakfast,E J Bartlett,637, 31-Mar-2011
1231,Revenue,CCHD,Bed and Breakfast,Bed & Breakfast,E J Bartlett,455, 31-Mar-2011
1232,Revenue,CCHD,Learning Difficulties PSL,Rent,Individual,1400, 01-Mar-2011
1233,Revenue,CCHD,Learning Difficulties PSL,Rent,Individual,1800, 22-Mar-2011
1234,Revenue,CCHD,Learning Difficulties PSL,Rent,Individual,650, 22-Mar-2011
1235,Revenue,CCHD,Learning Difficulties PSL,Rent,Individual,750, 22-Mar-2011
1236,Revenue,CCHD,Learning Difficulties PSL,Rent,Individual,488, 22-Mar-2011
1237,Revenue,CCHD,Homeless - Private Sector Leasing,Prop.Serv. General Repairs,Geoff Lewis Flooring Limited,460, 18-Mar-2011
1238,Revenue,CCHD,Homeless - Private Sector Leasing,Prop.Serv. General Repairs,J P Woods Electrical Contractor,682.82, 09-Mar-2011
1239,Revenue,CCHD,Homeless - Private Sector Leasing,Other Supplies & Services,Mr & Mrs Meredith,500, 31-Mar-2011
1240,Revenue,CCHD,Homelessness Grant,Agency Staff (Admin/Support Staff) Pay,Venn Group Limited,669.33, 07-Mar-2011
1241,Revenue,CCHD,Homelessness Grant,Agency Staff (Admin/Support Staff) Pay,Venn Group Limited,669.33, 07-Mar-2011
1242,Revenue,CCHD,Homelessness Grant,Agency Staff (Admin/Support Staff) Pay,Venn Group Limited,669.33, 10-Mar-2011
1243,Revenue,CCHD,Homelessness Grant,Agency Staff (Admin/Support Staff) Pay,Venn Group Limited,669.33, 16-Mar-2011
1244,Revenue,CCHD,Homelessness Grant,Agency Staff (Admin/Support Staff) Pay,Venn Group Limited,669.33, 24-Mar-2011
1245,Revenue,CCHD,Homelessness Grant,Training Expenses,Chartered Institute Of Housing,985, 11-Mar-2011
1246,Revenue,CCHD,Homelessness Grant,Computer Services,Civica UK Limited,1400, 25-Mar-2011
1247,Revenue,CCHD,Housing Needs,Agency Staff (Admin/Support Staff) Pay,SWIM Recruitment,531.94, 10-Mar-2011
1248,Revenue,CCHD,Housing Needs,Agency Staff (Admin/Support Staff) Pay,SWIM Recruitment,536.87, 15-Mar-2011
1249,Revenue,CCHD,Minor Adaptations Service,Maintenance by Contractor,Southern Electric Contracting Limited,320.39, 29-Mar-2011
1250,Revenue,CCHD,Minor Adaptations Service,Maintenance by Contractor,Southern Electric Contracting Limited,528.19, 29-Mar-2011
1251,Revenue,CCHD,Minor Adaptations Service,Maintenance by Contractor,Southern Electric Contracting Limited,630.66, 29-Mar-2011
1252,Revenue,CCHD,Minor Adaptations Service,Maintenance by Contractor,TVM Cheltenham Limited,1392.68, 28-Mar-2011
1253,Revenue,CCHD,Minor Adaptations Service,Operational Equipment,Eastman & Co (Timber) Limited,906.84, 22-Mar-2011
1254,Revenue,CCHD,Minor Adaptations Service,Daily Living Equipment,TVM Cheltenham Limited,750, 28-Mar-2011
1255,Revenue,CCHD,Minor Adaptations Service,Daily Living Equipment,TVM Cheltenham Limited,813.5, 28-Mar-2011
1256,Revenue,CCHD,Minor Adaptations Service,Daily Living Equipment,TVM Cheltenham Limited,813.5, 28-Mar-2011
1257,Revenue,CCHD,Minor Adaptations Service,Daily Living Equipment,TVM Cheltenham Limited,813.5, 28-Mar-2011
1258,Revenue,CCHD,Minor Adaptations Service,Daily Living Equipment,TVM Cheltenham Limited,813.5, 28-Mar-2011
1259,Revenue,CCHD,Minor Adaptations Service,Daily Living Equipment,TVM Cheltenham Limited,450, 28-Mar-2011
1260,Revenue,CCHD,NRS Contract,Daily Living Equipment,Medequip Assistive Technology Ltd,50369.67, 23-Mar-2011
1261,Revenue,CCHD,NRS Contract,Daily Living Equipment,Medequip Assistive Technology Ltd,205.44, 24-Mar-2011
1262,Revenue,CCHD,NRS Contract,Daily Living Equipment,Medequip Assistive Technology Ltd,54057.03, 23-Mar-2011
1263,Revenue,CCHD,NRS Contract,Daily Living Equipment,Medequip Assistive Technology Ltd,222.56, 24-Mar-2011
1264,Revenue,CCHD,NRS Contract,Other Supplies & Services,Medequip Assistive Technology Ltd,5859.34, 23-Mar-2011
1265,Revenue,CCHD,NRS Contract,Other Supplies & Services,Medequip Assistive Technology Ltd,118, 24-Mar-2011
1266,Revenue,CCHD,Detained,Nursing Homes,Castlebeck Care (Teesdale) Limited,15695.79, 15-Mar-2011
1267,Revenue,CCHD,Detained,Nursing Homes,Craegmoor Facilities Company Ltd,13573.66, 11-Mar-2011
1268,Revenue,CCHD,Detained,Nursing Homes,Erminecare Limited,13392, 03-Mar-2011
1269,Revenue,CCHD,Detained,Nursing Homes,Erminecare Limited,12960, 24-Mar-2011
1270,Revenue,CCHD,Freeways,Residential Homes,Freeways Trust Limited,42697.29, 10-Mar-2011
1271,Revenue,CCHD,Freeways,Residential Homes,Freeways Trust Limited,42115.8, 29-Mar-2011
1272,Revenue,CCHD,Freeways,Nursing Homes,Freeways Trust Limited,53371.61, 10-Mar-2011
1273,Revenue,CCHD,Supported Living - PS,Private & Voluntary Home Care,Aspects and Milestones Trust,21059.36, 07-Mar-2011
1274,Revenue,CCHD,Supported Living - PS,Private & Voluntary Home Care,Aspects and Milestones Trust,16893.2, 07-Mar-2011
1275,Revenue,CCHD,Supported Living - PS,Private & Voluntary Home Care,Aspects and Milestones Trust,4223.3, 15-Mar-2011
1276,Revenue,CCHD,Supported Living - PS,Private & Voluntary Home Care,Aspects and Milestones Trust,1193.02, 18-Mar-2011
1277,Revenue,CCHD,Supported Living - PS,Private & Voluntary Home Care,Aspects and Milestones Trust,844.23, 18-Mar-2011
1278,Revenue,CCHD,Supported Living - PS,Private & Voluntary Home Care,Aspects and Milestones Trust,2136.05, 18-Mar-2011
1279,Revenue,CCHD,Supported Living - PS,Private & Voluntary Home Care,Aspects and Milestones Trust,1018.42, 18-Mar-2011
1280,Revenue,CCHD,Supported Living - PS,Private & Voluntary Home Care,Aspects and Milestones Trust,1063.26, 18-Mar-2011
1281,Revenue,CCHD,Supported Living - PS,Private & Voluntary Home Care,Aspects and Milestones Trust,514.2, 18-Mar-2011
1282,Revenue,CCHD,Supported Living - PS,Private & Voluntary Home Care,Aspects and Milestones Trust,799.2, 18-Mar-2011
1283,Revenue,CCHD,Supported Living - PS,Private & Voluntary Home Care,Camphill Village Trust,1449.11, 31-Mar-2011
1284,Revenue,CCHD,Supported Living - PS,Private & Voluntary Home Care,Freeways Trust Limited,1749, 04-Mar-2011
1285,Revenue,CCHD,Supported Living - PS,Private & Voluntary Home Care,Freeways Trust Limited,1908.7, 10-Mar-2011
1286,Revenue,CCHD,Supported Living - PS,Private & Voluntary Home Care,Lloyds TSB Commercial Finance Limited,753.6, 02-Mar-2011
1287,Revenue,CCHD,Supported Living - PS,Private & Voluntary Home Care,Lloyds TSB Commercial Finance Limited,753.6, 02-Mar-2011
1288,Revenue,CCHD,Supported Living - PS,Private & Voluntary Home Care,Lloyds TSB Commercial Finance Limited,753.6, 02-Mar-2011
1289,Revenue,CCHD,Supported Living - PS,Private & Voluntary Home Care,Moving On,5821.64, 16-Mar-2011
1290,Revenue,CCHD,Supported Living - PS,Private & Voluntary Home Care,Mrs B Kimber,7647.28, 16-Mar-2011
1291,Revenue,CCHD,Supported Living - PS,Private & Voluntary Home Care,Mrs B Kimber,10150.08, 16-Mar-2011
1292,Revenue,CCHD,Supported Living - PS,Private & Voluntary Home Care,Mrs B Kimber,1838.32, 28-Mar-2011
1293,Revenue,CCHD,Supported Living - PS,Private & Voluntary Home Care,Selborne Care Ltd,2329.84, 18-Mar-2011
1294,Revenue,CCHD,Supported Living - PS,Private & Voluntary Home Care,Selborne Care Ltd,1379.84, 18-Mar-2011
1295,Revenue,CCHD,Supported Living - PS,Private & Voluntary Home Care,Selborne Care Ltd,4752.6, 18-Mar-2011
1296,Revenue,CCHD,Supported Living - PS,Private & Voluntary Home Care,Selborne Care Ltd,564.48, 18-Mar-2011
1297,Revenue,CCHD,Supported Living - PS,Private & Voluntary Home Care,Selborne Care Ltd,4713.8, 18-Mar-2011
1298,Revenue,CCHD,Supported Living - PS,Private & Voluntary Home Care,Selborne Care Ltd,1834.48, 18-Mar-2011
1299,Revenue,CCHD,Supported Living - PS,Private & Voluntary Home Care,Smile Independent Living Support Limited,512.55, 14-Mar-2011
1300,Revenue,CCHD,Supported Living - PS,Private & Voluntary Home Care,Supported Independance Ltd,2203.5, 03-Mar-2011
1301,Revenue,CCHD,Supported Living - PS,Private & Voluntary Home Care,The Brandon Trust,819.25, 01-Mar-2011
1302,Revenue,CCHD,Supported Living - PS,Private & Voluntary Home Care,The Brandon Trust,739.97, 28-Mar-2011
1303,Revenue,CCHD,Supported Living (S28a),Private & Voluntary Home Care,3 Trees Community Support Ltd,6085.56, 24-Mar-2011
1304,Revenue,CCHD,Supported Living (S28a),Private & Voluntary Home Care,Aspects and Milestones Trust,1247.35, 09-Mar-2011
1305,Revenue,CCHD,Supported Living (S28a),Private & Voluntary Home Care,Aspects and Milestones Trust,836.65, 17-Mar-2011
1306,Revenue,CCHD,Supported Living (S28a),Private & Voluntary Home Care,Aspects and Milestones Trust,3429, 18-Mar-2011
1307,Revenue,CCHD,Supported Living (S28a),Private & Voluntary Home Care,Aspects and Milestones Trust,3497, 18-Mar-2011
1308,Revenue,CCHD,Supported Living (S28a),Private & Voluntary Home Care,Aspects and Milestones Trust,3625, 18-Mar-2011
1309,Revenue,CCHD,Supported Living (S28a),Private & Voluntary Home Care,Aspects and Milestones Trust,808.45, 18-Mar-2011
1310,Revenue,CCHD,Supported Living (S28a),Private & Voluntary Home Care,Aspects and Milestones Trust,5179.2, 18-Mar-2011
1311,Revenue,CCHD,Supported Living (S28a),Private & Voluntary Home Care,Aspects and Milestones Trust,5179.2, 18-Mar-2011
1312,Revenue,CCHD,Supported Living (S28a),Private & Voluntary Home Care,Aspects and Milestones Trust,5551.75, 18-Mar-2011
1313,Revenue,CCHD,Supported Living (S28a),Private & Voluntary Home Care,Aspects and Milestones Trust,4577.9, 18-Mar-2011
1314,Revenue,CCHD,Supported Living (S28a),Private & Voluntary Home Care,Aspects and Milestones Trust,4577.9, 18-Mar-2011
1315,Revenue,CCHD,Supported Living (S28a),Private & Voluntary Home Care,Aspects and Milestones Trust,4577.9, 18-Mar-2011
1316,Revenue,CCHD,Supported Living (S28a),Private & Voluntary Home Care,Aspects and Milestones Trust,3263.6, 18-Mar-2011
1317,Revenue,CCHD,Supported Living (S28a),Private & Voluntary Home Care,Aspects and Milestones Trust,4661.15, 18-Mar-2011
1318,Revenue,CCHD,Supported Living (S28a),Private & Voluntary Home Care,Aspects and Milestones Trust,1192.57, 18-Mar-2011
1319,Revenue,CCHD,Supported Living (S28a),Private & Voluntary Home Care,Aspects and Milestones Trust,4077.7, 18-Mar-2011
1320,Revenue,CCHD,Supported Living (S28a),Private & Voluntary Home Care,Aspects and Milestones Trust,9689.17, 18-Mar-2011
1321,Revenue,CCHD,Supported Living (S28a),Private & Voluntary Home Care,Aspects and Milestones Trust,11656.22, 18-Mar-2011
1322,Revenue,CCHD,Supported Living (S28a),Private & Voluntary Home Care,Willowbank Care Limited,4371.02, 01-Mar-2011
1323,Revenue,CCHD,Supported Living (S28a),Private & Voluntary Home Care,Willowbank Care Limited,4371.02, 15-Mar-2011
1324,Revenue,CCHD,Supported Living (S28a),Private & Voluntary Home Care,Willowbank Care Limited,4616.5, 01-Mar-2011
1325,Revenue,CCHD,Supported Living (S28a),Private & Voluntary Home Care,Willowbank Care Limited,4616.5, 15-Mar-2011
1326,Revenue,CCHD,Supported Living - KD,Private & Voluntary Home Care,3 Trees Community Support Ltd,2245.24, 16-Mar-2011
1327,Revenue,CCHD,Supported Living - KD,Private & Voluntary Home Care,Bristol Houses UK Ltd,1269.1, 23-Mar-2011
1328,Revenue,CCHD,Supported Living - KD,Private & Voluntary Home Care,Bristol Houses UK Ltd,1029, 16-Mar-2011
1329,Revenue,CCHD,Supported Living - KD,Private & Voluntary Home Care,Bristol Houses UK Ltd,2002.26, 16-Mar-2011
1330,Revenue,CCHD,Supported Living - KD,Private & Voluntary Home Care,Bristol Houses UK Ltd,1029, 23-Mar-2011
1331,Revenue,CCHD,Supported Living - KD,Private & Voluntary Home Care,Camphill Communities Thornbury Limited,1640.56, 03-Mar-2011
1332,Revenue,CCHD,Supported Living - KD,Private & Voluntary Home Care,Camphill Communities Thornbury Limited,1895.76, 24-Mar-2011
1333,Revenue,CCHD,Supported Living - KD,Private & Voluntary Home Care,Camphill Communities Thornbury Limited,1640.56, 03-Mar-2011
1334,Revenue,CCHD,Supported Living - KD,Private & Voluntary Home Care,Camphill Communities Thornbury Limited,1887.68, 03-Mar-2011
1335,Revenue,CCHD,Supported Living - KD,Private & Voluntary Home Care,Camphill Communities Thornbury Limited,1640.56, 03-Mar-2011
1336,Revenue,CCHD,Supported Living - KD,Private & Voluntary Home Care,Camphill Communities Thornbury Limited,1516.6, 08-Mar-2011
1337,Revenue,CCHD,Supported Living - KD,Private & Voluntary Home Care,Camphill Communities Thornbury Limited,1611.4, 08-Mar-2011
1338,Revenue,CCHD,Supported Living - KD,Private & Voluntary Home Care,Camphill Communities Thornbury Limited,943.84, 08-Mar-2011
1339,Revenue,CCHD,Supported Living - KD,Private & Voluntary Home Care,Camphill Communities Thornbury Limited,738.25, 08-Mar-2011
1340,Revenue,CCHD,Supported Living - KD,Private & Voluntary Home Care,Camphill Communities Thornbury Limited,1066.36, 08-Mar-2011
1341,Revenue,CCHD,Supported Living - KD,Private & Voluntary Home Care,Camphill Communities Thornbury Limited,984.34, 08-Mar-2011
1342,Revenue,CCHD,Supported Living - KD,Private & Voluntary Home Care,Camphill Communities Thornbury Limited,1907.92, 21-Mar-2011
1343,Revenue,CCHD,Supported Living - KD,Private & Voluntary Home Care,Camphill Communities Thornbury Limited,1887.68, 24-Mar-2011
1344,Revenue,CCHD,Supported Living - KD,Private & Voluntary Home Care,Camphill Communities Thornbury Limited,1640.56, 24-Mar-2011
1345,Revenue,CCHD,Supported Living - KD,Private & Voluntary Home Care,Camphill Communities Thornbury Limited,1895.76, 24-Mar-2011
1346,Revenue,CCHD,Supported Living - KD,Private & Voluntary Home Care,Camphill Communities Thornbury Limited,1640.56, 24-Mar-2011
1347,Revenue,CCHD,Supported Living - KD,Private & Voluntary Home Care,Camphill Communities Thornbury Limited,1315.5, 23-Mar-2011
1348,Revenue,CCHD,Supported Living - KD,Private & Voluntary Home Care,Camphill Communities Thornbury Limited,1403.2, 23-Mar-2011
1349,Revenue,CCHD,Supported Living - KD,Private & Voluntary Home Care,Camphill Communities Thornbury Limited,1315.5, 23-Mar-2011
1350,Revenue,CCHD,Supported Living - KD,Private & Voluntary Home Care,Care Horizons Limited,5234.74, 03-Mar-2011
1351,Revenue,CCHD,Supported Living - KD,Private & Voluntary Home Care,Smile Independent Living Support Limited,887.9, 14-Mar-2011
1352,Revenue,CCHD,Supported Living - KD,Private & Voluntary Home Care,Smile Independent Living Support Limited,3889.78, 14-Mar-2011
1353,Revenue,CCHD,Supported Living - KD,Private & Voluntary Home Care,Smile Independent Living Support Limited,3755.81, 14-Mar-2011
1354,Revenue,CCHD,Supported Living - KD,Private & Voluntary Home Care,Supported Independance Ltd,2106, 03-Mar-2011
1355,Revenue,CCHD,Supported Living - KD,Private & Voluntary Home Care,Supported Independance Ltd,702, 03-Mar-2011
1356,Revenue,CCHD,Supported Living - KD,Private & Voluntary Home Care,Supported Independance Ltd,614.25, 03-Mar-2011
1357,Revenue,CCHD,Supported Living - KD,Private & Voluntary Home Care,Supported Independance Ltd,731.25, 03-Mar-2011
1358,Revenue,CCHD,Supported Living - KD,Private & Voluntary Home Care,Supported Independance Ltd,633.75, 03-Mar-2011
1359,Revenue,CCHD,Supported Living - KD,Private & Voluntary Home Care,Willowbank Care Limited,3024.78, 23-Mar-2011
1360,Revenue,CCHD,Supported Living - KD,Private & Voluntary Home Care,Willowbank Care Limited,1531.08, 08-Mar-2011
1361,Revenue,CCHD,Supported Living - KD,Private & Voluntary Home Care,Willowbank Care Limited,3572.52, 08-Mar-2011
1362,Revenue,CCHD,Supported Living - KD,Private & Voluntary Home Care,Willowbank Care Limited,3572.52, 08-Mar-2011
1363,Revenue,CCHD,Supported Living - KD,Private & Voluntary Home Care,Willowbank Care Limited,3572.52, 08-Mar-2011
1364,Revenue,CCHD,Supported Living - KD,Private & Voluntary Home Care,Willowbank Care Limited,3572.52, 08-Mar-2011
1365,Revenue,CCHD,Supported Living - KD,Private & Voluntary Home Care,Willowbank Care Limited,3572.52, 23-Mar-2011
1366,Revenue,CCHD,Supported Living - KD,Private & Voluntary Home Care,Willowbank Care Limited,2039.28, 14-Mar-2011
1367,Revenue,CCHD,Supported Living - KD,Private & Voluntary Home Care,Willowbank Care Limited,4091.56, 23-Mar-2011
1368,Revenue,CCHD,Supported Living - KD,Private & Voluntary Home Care,Willowbank Care Limited,6191.18, 23-Mar-2011
1369,Revenue,CCHD,Supported Living - KD,Private & Voluntary Home Care,Willowbank Care Limited,6191.18, 23-Mar-2011
1370,Revenue,CCHD,Supported Living - KD,Private & Voluntary Home Care,Willowbank Care Limited,2092.3, 23-Mar-2011
1371,Revenue,CCHD,Supported Living - KD,Private & Voluntary Home Care,Willowbank Care Limited,2092.3, 23-Mar-2011
1372,Revenue,CCHD,Supported Living - KD,Private & Voluntary Home Care,Willowbank Care Limited,917.42, 23-Mar-2011
1373,Revenue,CCHD,Supported Living - KD,Private & Voluntary Home Care,Willowbank Care Limited,917.42, 23-Mar-2011
1374,Revenue,CCHD,Supported Living - KD,Private & Voluntary Home Care,Willowbank Care Limited,4523.08, 23-Mar-2011
1375,Revenue,CCHD,Supported Living - KD,Private & Voluntary Home Care,Willowbank Care Limited,2048.78, 23-Mar-2011
1376,Revenue,CCHD,Supported Living - KD,Private & Voluntary Home Care,Willowbank Care Limited,2048.78, 23-Mar-2011
1377,Revenue,CCHD,Supported Living - KD,Private & Voluntary Home Care,Willowbank Care Limited,2598.36, 23-Mar-2011
1378,Revenue,CCHD,Supported Living - KD,Private & Voluntary Home Care,Willowbank Care Limited,2598.36, 23-Mar-2011
1379,Revenue,CCHD,Supported Living - KD,Private & Voluntary Home Care,Willowbank Care Limited,2999.98, 23-Mar-2011
1380,Revenue,CCHD,Supported Living - KD,Private & Voluntary Home Care,Willowbank Care Limited,2999.98, 23-Mar-2011
1381,Revenue,CCHD,Supported Living - KD,Private & Voluntary Home Care,Willowbank Care Limited,3024.78, 23-Mar-2011
1382,Revenue,CCHD,Supported Living - KD,Private & Voluntary Home Care,Willowbank Care Limited,2251.48, 23-Mar-2011
1383,Revenue,CCHD,Supported Living - KD,Private & Voluntary Home Care,Willowbank Care Limited,2251.48, 23-Mar-2011
1384,Revenue,CCHD,Supported Living - KH,Private & Voluntary Home Care,Aspects and Milestones Trust,1045.93, 18-Mar-2011
1385,Revenue,CCHD,Supported Living - KH,Private & Voluntary Home Care,HFT,3660.6, 15-Mar-2011
1386,Revenue,CCHD,Supported Living - KH,Private & Voluntary Home Care,Lloyds TSB Commercial Finance Limited,5667.39, 08-Mar-2011
1387,Revenue,CCHD,Supported Living - KH,Private & Voluntary Home Care,Selborne Care Ltd,1140.4, 21-Mar-2011
1388,Revenue,CCHD,Elderly PWLD - PS,Residential Homes,Aspects &  Milestones Trust,28599.13, 22-Mar-2011
1389,Revenue,CCHD,Elderly PWLD - PS,Residential Homes,Aspects &  Milestones Trust,3322.72, 22-Mar-2011
1390,Revenue,CCHD,Elderly PWLD - PS,Residential Homes,Aspects &  Milestones Trust,5701.72, 22-Mar-2011
1391,Revenue,CCHD,Elderly PWLD - PS,Residential Homes,Aspects &  Milestones Trust,3835.08, 22-Mar-2011
1392,Revenue,CCHD,Elderly PWLD - PS,Residential Homes,Charlton House,1966.36, 22-Mar-2011
1393,Revenue,CCHD,Elderly PWLD - PS,Residential Homes,Edgemont House Ltd,1316.96, 22-Mar-2011
1394,Revenue,CCHD,Elderly PWLD - PS,Residential Homes,Four Seasons Health Care,1246.8, 22-Mar-2011
1395,Revenue,CCHD,Elderly PWLD - PS,Residential Homes,Rockleaze,2151.96, 22-Mar-2011
1396,Revenue,CCHD,Elderly PWLD - PS,Residential Homes,Rockleaze,1404.36, 22-Mar-2011
1397,Revenue,CCHD,Elderly PWLD - PS,Residential Homes,Rockleaze,1404.36, 22-Mar-2011
1398,Revenue,CCHD,Elderly PWLD - PS,Residential Homes,St Davids Lodge,2545.68, 22-Mar-2011
1399,Revenue,CCHD,Elderly PWLD - PS,Residential Homes,St Davids Lodge,3669, 22-Mar-2011
1400,Revenue,CCHD,Elderly PWLD - PS,Residential Homes,The Brandon Trust  Olympus House,3355.96, 22-Mar-2011
1401,Revenue,CCHD,Elderly PWLD - PS,Residential Homes,Visions,3552.96, 22-Mar-2011
1402,Revenue,CCHD,Elderly PWLD - KD,Residential Homes,Aspects &  Milestones Trust,2875.8, 22-Mar-2011
1403,Revenue,CCHD,Elderly PWLD - KD,Residential Homes,Aspects &  Milestones Trust,5705.36, 22-Mar-2011
1404,Revenue,CCHD,Elderly PWLD - KD,Residential Homes,Freeways Trust Ltd,2210.28, 22-Mar-2011
1405,Revenue,CCHD,Elderly PWLD - KD,Residential Homes,Hazelhurst,3577.44, 22-Mar-2011
1406,Revenue,CCHD,Elderly PWLD - KD,Nursing Homes,Aspects &  Milestones Trust,2725.08, 22-Mar-2011
1407,Revenue,CCHD,Elderly PWLD - KH,Residential Homes,Craegmoor Healthcare,4803.28, 22-Mar-2011
1408,Revenue,CCHD,Elderly PWLD - KH,Residential Homes,Freeways Trust Ltd,2352.92, 22-Mar-2011
1409,Revenue,CCHD,Elderly PWLD - KH,Residential Homes,Gordena Care Home,2883.92, 22-Mar-2011
1410,Revenue,CCHD,Elderly PWLD - KH,Residential Homes,The Turrets,1499.2, 22-Mar-2011
1411,Revenue,CCHD,Under 65s PWLD - PS,Residential Homes,Aspects &  Milestones Trust,5611.48, 22-Mar-2011
1412,Revenue,CCHD,Under 65s PWLD - PS,Residential Homes,Aspects &  Milestones Trust,4297.68, 22-Mar-2011
1413,Revenue,CCHD,Under 65s PWLD - PS,Residential Homes,Aspects &  Milestones Trust,3648.4, 22-Mar-2011
1414,Revenue,CCHD,Under 65s PWLD - PS,Residential Homes,Aspects &  Milestones Trust,4322.72, 22-Mar-2011
1415,Revenue,CCHD,Under 65s PWLD - PS,Residential Homes,Aspects &  Milestones Trust,3998.8, 22-Mar-2011
1416,Revenue,CCHD,Under 65s PWLD - PS,Residential Homes,Aspects &  Milestones Trust,3533.64, 22-Mar-2011
1417,Revenue,CCHD,Under 65s PWLD - PS,Residential Homes,Cintre Community,4691.4, 22-Mar-2011
1418,Revenue,CCHD,Under 65s PWLD - PS,Residential Homes,Consensus Support Services Ltd,9189.2, 09-Mar-2011
1419,Revenue,CCHD,Under 65s PWLD - PS,Residential Homes,Craegmoor Healthcare,5430.8, 22-Mar-2011
1420,Revenue,CCHD,Under 65s PWLD - PS,Residential Homes,Cromwell House,7808.64, 22-Mar-2011
1421,Revenue,CCHD,Under 65s PWLD - PS,Residential Homes,Daneswood,10598.4, 22-Mar-2011
1422,Revenue,CCHD,Under 65s PWLD - PS,Residential Homes,Dimensions(Uk) Ltd,1719.32, 22-Mar-2011
1423,Revenue,CCHD,Under 65s PWLD - PS,Residential Homes,Freeways Trust Ltd,1147, 22-Mar-2011
1424,Revenue,CCHD,Under 65s PWLD - PS,Residential Homes,Glasallt Fawr,4452.6, 22-Mar-2011
1425,Revenue,CCHD,Under 65s PWLD - PS,Residential Homes,Hilltop Nursing Home,12415, 22-Mar-2011
1426,Revenue,CCHD,Under 65s PWLD - PS,Residential Homes,Home Farm Trust Ltd  5-6 Brook Office Pa,2409.2, 22-Mar-2011
1427,Revenue,CCHD,Under 65s PWLD - PS,Residential Homes,Home Farm Trust Ltd  5-6 Brook Office Pa,3120.12, 22-Mar-2011
1428,Revenue,CCHD,Under 65s PWLD - PS,Residential Homes,Home Farm Trust Ltd  5-6 Brook Office Pa,56597.76, 22-Mar-2011
1429,Revenue,CCHD,Under 65s PWLD - PS,Residential Homes,Keepers Cottage,1969.48, 22-Mar-2011
1430,Revenue,CCHD,Under 65s PWLD - PS,Residential Homes,Norwood   Broadway House,4795.12, 22-Mar-2011
1431,Revenue,CCHD,Under 65s PWLD - PS,Residential Homes,Osprey Court,8057.08, 22-Mar-2011
1432,Revenue,CCHD,Under 65s PWLD - PS,Residential Homes,Renaissance,2174.4, 22-Mar-2011
1433,Revenue,CCHD,Under 65s PWLD - PS,Residential Homes,Ridgeway House,3383.72, 22-Mar-2011
1434,Revenue,CCHD,Under 65s PWLD - PS,Residential Homes,Rockleaze,2352.88, 22-Mar-2011
1435,Revenue,CCHD,Under 65s PWLD - PS,Residential Homes,Rosewood Lodge & Brook House,7848.56, 22-Mar-2011
1436,Revenue,CCHD,Under 65s PWLD - PS,Residential Homes,St Brigas,2917.64, 22-Mar-2011
1437,Revenue,CCHD,Under 65s PWLD - PS,Residential Homes,Stepping Stones Re-Sett. Unit,8473.28, 22-Mar-2011
1438,Revenue,CCHD,Under 65s PWLD - PS,Residential Homes,The Brandon Trust  Olympus House,11160.28, 22-Mar-2011
1439,Revenue,CCHD,Under 65s PWLD - PS,Residential Homes,The Manor House,3356.24, 22-Mar-2011
1440,Revenue,CCHD,Under 65s PWLD - PS,Residential Homes,The Manor House,3212.52, 22-Mar-2011
1441,Revenue,CCHD,Under 65s PWLD - PS,Residential Homes,The Manor House,3018.52, 22-Mar-2011
1442,Revenue,CCHD,Under 65s PWLD - PS,Residential Homes,The Manor House,3349.56, 22-Mar-2011
1443,Revenue,CCHD,Under 65s PWLD - PS,Residential Homes,The Stanstead Centre,3488.28, 22-Mar-2011
1444,Revenue,CCHD,Under 65s PWLD - PS,Residential Homes,The Turrets,892.8, 22-Mar-2011
1445,Revenue,CCHD,Under 65s PWLD - PS,Residential Homes,The Turrets,3152.36, 22-Mar-2011
1446,Revenue,CCHD,Under 65s PWLD - PS,Residential Homes,Tracs Group Ltd,6424.76, 22-Mar-2011
1447,Revenue,CCHD,Under 65s PWLD - PS,Residential Homes,Victoria Court,11033.76, 22-Mar-2011
1448,Revenue,CCHD,Under 65s PWLD - PS,Residential Homes,Voyage Ltd,2931.44, 22-Mar-2011
1449,Revenue,CCHD,Under 65s PWLD - PS,Residential Homes,Voyage Ltd,7259.76, 22-Mar-2011
1450,Revenue,CCHD,Under 65s PWLD - PS,Residential Homes,Voyage Ltd,5793.04, 22-Mar-2011
1451,Revenue,CCHD,Under 65s PWLD - PS,Residential Homes,Voyage Ltd,6352.04, 22-Mar-2011
1452,Revenue,CCHD,Under 65s PWLD - PS,Residential Homes,Voyage Ltd,7510.08, 22-Mar-2011
1453,Revenue,CCHD,Under 65s PWLD - PS,Nursing Homes,Carriage Court,5766.48, 22-Mar-2011
1454,Revenue,CCHD,Under 65s PWLD - PS,Nursing Homes,Shaw Healthcare Ltd,9897.24, 22-Mar-2011
1455,Revenue,CCHD,Under 65s PWLD - PS,Nursing Homes,Shaw Healthcare Ltd,9949.24, 22-Mar-2011
1456,Revenue,CCHD,Under 65s PWLD - PS,Nursing Homes,The Brandon Trust  Olympus House,5651.4, 22-Mar-2011
1457,Revenue,CCHD,Under 65s PWLD - PS,Nursing Homes,The Brandon Trust  Olympus House,19644.47, 22-Mar-2011
1458,Revenue,CCHD,Under 65s PWLD - PS,Nursing Homes,The Brandon Trust  Olympus House,5068.6, 22-Mar-2011
1459,Revenue,CCHD,Under 65s PWLD - KD,Residential Homes,Abbeymead Lodge,6781.12, 22-Mar-2011
1460,Revenue,CCHD,Under 65s PWLD - KD,Residential Homes,Alexandra House,6342.64, 22-Mar-2011
1461,Revenue,CCHD,Under 65s PWLD - KD,Residential Homes,Ark Care Homes Ltd,10353.32, 22-Mar-2011
1462,Revenue,CCHD,Under 65s PWLD - KD,Residential Homes,Aspects &  Milestones Trust,5935.08, 22-Mar-2011
1463,Revenue,CCHD,Under 65s PWLD - KD,Residential Homes,Aspects &  Milestones Trust,7196.32, 22-Mar-2011
1464,Revenue,CCHD,Under 65s PWLD - KD,Residential Homes,Aspects & Milestones Trust,8720.64, 22-Mar-2011
1465,Revenue,CCHD,Under 65s PWLD - KD,Residential Homes,Aspects & Milestones Trust,10805.44, 22-Mar-2011
1466,Revenue,CCHD,Under 65s PWLD - KD,Residential Homes,Camphill Devon Community,3154.28, 22-Mar-2011
1467,Revenue,CCHD,Under 65s PWLD - KD,Residential Homes,Camphill Devon Community,2218.84, 22-Mar-2011
1468,Revenue,CCHD,Under 65s PWLD - KD,Residential Homes,Craegmoor Healthcare,2731.2, 22-Mar-2011
1469,Revenue,CCHD,Under 65s PWLD - KD,Residential Homes,Craegmoor Healthcare,2159.68, 22-Mar-2011
1470,Revenue,CCHD,Under 65s PWLD - KD,Residential Homes,Daneswood,8761.4, 22-Mar-2011
1471,Revenue,CCHD,Under 65s PWLD - KD,Residential Homes,Fernbank,8360.96, 22-Mar-2011
1472,Revenue,CCHD,Under 65s PWLD - KD,Residential Homes,Forge House,3633.56, 22-Mar-2011
1473,Revenue,CCHD,Under 65s PWLD - KD,Residential Homes,Freeways Trust Ltd,2767.4, 22-Mar-2011
1474,Revenue,CCHD,Under 65s PWLD - KD,Residential Homes,Freeways Trust Ltd,2217.28, 22-Mar-2011
1475,Revenue,CCHD,Under 65s PWLD - KD,Residential Homes,Freeways Trust Ltd,2217.28, 22-Mar-2011
1476,Revenue,CCHD,Under 65s PWLD - KD,Residential Homes,Freeways Trust Ltd,2643.88, 22-Mar-2011
1477,Revenue,CCHD,Under 65s PWLD - KD,Residential Homes,Freeways Trust Ltd,2223.4, 22-Mar-2011
1478,Revenue,CCHD,Under 65s PWLD - KD,Residential Homes,Hazelhurst,3629.4, 22-Mar-2011
1479,Revenue,CCHD,Under 65s PWLD - KD,Residential Homes,Hazelhurst,2905.2, 22-Mar-2011
1480,Revenue,CCHD,Under 65s PWLD - KD,Residential Homes,Hazelhurst,3838.72, 22-Mar-2011
1481,Revenue,CCHD,Under 65s PWLD - KD,Residential Homes,Hazelhurst,2999.76, 22-Mar-2011
1482,Revenue,CCHD,Under 65s PWLD - KD,Residential Homes,Home Farm,3563.36, 22-Mar-2011
1483,Revenue,CCHD,Under 65s PWLD - KD,Residential Homes,Home Farm Trust Ltd  5-6 Brook Office Pa,2759.76, 22-Mar-2011
1484,Revenue,CCHD,Under 65s PWLD - KD,Residential Homes,Home Farm Trust Ltd  5-6 Brook Office Pa,2220.28, 22-Mar-2011
1485,Revenue,CCHD,Under 65s PWLD - KD,Residential Homes,Home Farm Trust Ltd  5-6 Brook Office Pa,3327.88, 22-Mar-2011
1486,Revenue,CCHD,Under 65s PWLD - KD,Residential Homes,Kelly House,3492.6, 22-Mar-2011
1487,Revenue,CCHD,Under 65s PWLD - KD,Residential Homes,Leonard Cheshire  National Account Centr,5742.64, 22-Mar-2011
1488,Revenue,CCHD,Under 65s PWLD - KD,Residential Homes,Leonard Cheshire  National Account Centr,5741.12, 22-Mar-2011
1489,Revenue,CCHD,Under 65s PWLD - KD,Residential Homes,Littlecroft Residential Homes  Longcroft,6438.28, 22-Mar-2011
1490,Revenue,CCHD,Under 65s PWLD - KD,Residential Homes,Sense,10341.6, 22-Mar-2011
1491,Revenue,CCHD,Under 65s PWLD - KD,Residential Homes,Shaw Healthcare Ltd,10331.76, 22-Mar-2011
1492,Revenue,CCHD,Under 65s PWLD - KD,Residential Homes,Small House Homes Limited,17443.68, 22-Mar-2011
1493,Revenue,CCHD,Under 65s PWLD - KD,Residential Homes,The Brandon Trust  Olympus House,3238.2, 22-Mar-2011
1494,Revenue,CCHD,Under 65s PWLD - KD,Residential Homes,The Brandon Trust  Olympus House,5118.64, 22-Mar-2011
1495,Revenue,CCHD,Under 65s PWLD - KD,Residential Homes,The Manor House,600.12, 22-Mar-2011
1496,Revenue,CCHD,Under 65s PWLD - KD,Residential Homes,The Manor House,3365.64, 22-Mar-2011
1497,Revenue,CCHD,Under 65s PWLD - KD,Residential Homes,The Manor House,1248.9, 22-Mar-2011
1498,Revenue,CCHD,Under 65s PWLD - KD,Residential Homes,The Manor House,1524.75, 22-Mar-2011
1499,Revenue,CCHD,Under 65s PWLD - KD,Residential Homes,The Red House Residential Home,2018.76, 22-Mar-2011
1500,Revenue,CCHD,Under 65s PWLD - KD,Residential Homes,The Red House Residential Home,1931.2, 22-Mar-2011
1501,Revenue,CCHD,Under 65s PWLD - KD,Residential Homes,The Red House Residential Home,1862.16, 22-Mar-2011
1502,Revenue,CCHD,Under 65s PWLD - KD,Residential Homes,The Red House Residential Home,2018.76, 22-Mar-2011
1503,Revenue,CCHD,Under 65s PWLD - KD,Residential Homes,The Red House Residential Home,1862.16, 22-Mar-2011
1504,Revenue,CCHD,Under 65s PWLD - KD,Residential Homes,The Thomas Moore Project,1904.72, 22-Mar-2011
1505,Revenue,CCHD,Under 65s PWLD - KD,Residential Homes,Three Roses Home,1654.32, 22-Mar-2011
1506,Revenue,CCHD,Under 65s PWLD - KD,Residential Homes,Ty Hafod Tudor,3797.56, 22-Mar-2011
1507,Revenue,CCHD,Under 65s PWLD - KD,Residential Homes,Victoria Court,8553.12, 22-Mar-2011
1508,Revenue,CCHD,Under 65s PWLD - KD,Residential Homes,Voyage Ltd,6657.8, 22-Mar-2011
1509,Revenue,CCHD,Under 65s PWLD - KD,Residential Homes,Voyage Ltd,8041.56, 22-Mar-2011
1510,Revenue,CCHD,Under 65s PWLD - KD,Nursing Homes,Holmleigh Care Homes Ltd,3919.08, 22-Mar-2011
1511,Revenue,CCHD,Under 65s PWLD - KD,Nursing Homes,The Brandon Trust  Olympus House,5709.36, 22-Mar-2011
1512,Revenue,CCHD,Under 65s PWLD - KH,Residential Homes,The Brandon Trust  Olympus House,4915.4, 22-Mar-2011
1513,Revenue,CCHD,Under 65s PWLD - KH,Residential Homes,Aspects &  Milestones Trust,3650.92, 22-Mar-2011
1514,Revenue,CCHD,Under 65s PWLD - KH,Residential Homes,Aspects &  Milestones Trust,3782.04, 22-Mar-2011
1515,Revenue,CCHD,Under 65s PWLD - KH,Residential Homes,Aspects &  Milestones Trust,4909.68, 22-Mar-2011
1516,Revenue,CCHD,Under 65s PWLD - KH,Residential Homes,Aspects &  Milestones Trust,5627.6, 22-Mar-2011
1517,Revenue,CCHD,Under 65s PWLD - KH,Residential Homes,Aspects &  Milestones Trust,4599.28, 22-Mar-2011
1518,Revenue,CCHD,Under 65s PWLD - KH,Residential Homes,Aspects &  Milestones Trust,22709.4, 22-Mar-2011
1519,Revenue,CCHD,Under 65s PWLD - KH,Residential Homes,Aspects &  Milestones Trust,4115.4, 22-Mar-2011
1520,Revenue,CCHD,Under 65s PWLD - KH,Residential Homes,Autism Specialised Care Homes,5431.16, 22-Mar-2011
1521,Revenue,CCHD,Under 65s PWLD - KH,Residential Homes,Bedrock Lodge,2839.08, 22-Mar-2011
1522,Revenue,CCHD,Under 65s PWLD - KH,Residential Homes,Craegmoor Healthcare,4031.92, 22-Mar-2011
1523,Revenue,CCHD,Under 65s PWLD - KH,Residential Homes,Craegmoor Healthcare,4835.48, 22-Mar-2011
1524,Revenue,CCHD,Under 65s PWLD - KH,Residential Homes,Craegmoor Healthcare,13468.64, 22-Mar-2011
1525,Revenue,CCHD,Under 65s PWLD - KH,Residential Homes,Craegmoor Healthcare,2487.96, 22-Mar-2011
1526,Revenue,CCHD,Under 65s PWLD - KH,Residential Homes,Craegmoor Healthcare,7042.28, 22-Mar-2011
1527,Revenue,CCHD,Under 65s PWLD - KH,Residential Homes,Craegmoor Healthcare,4812.36, 22-Mar-2011
1528,Revenue,CCHD,Under 65s PWLD - KH,Residential Homes,Dimensions(Uk) Ltd,4706.4, 22-Mar-2011
1529,Revenue,CCHD,Under 65s PWLD - KH,Residential Homes,East Court,2228.16, 22-Mar-2011
1530,Revenue,CCHD,Under 65s PWLD - KH,Residential Homes,Freeways Trust Ltd,2643.88, 22-Mar-2011
1531,Revenue,CCHD,Under 65s PWLD - KH,Residential Homes,Gordena Care Home,2050.92, 22-Mar-2011
1532,Revenue,CCHD,Under 65s PWLD - KH,Residential Homes,Gordena Care Home,4642.16, 22-Mar-2011
1533,Revenue,CCHD,Under 65s PWLD - KH,Residential Homes,Gordena Care Home,2047.08, 22-Mar-2011
1534,Revenue,CCHD,Under 65s PWLD - KH,Residential Homes,Holmleigh Care Homes Ltd,4920.08, 22-Mar-2011
1535,Revenue,CCHD,Under 65s PWLD - KH,Residential Homes,Homes Caring for Autism Ltd,14909.04, 15-Mar-2011
1536,Revenue,CCHD,Under 65s PWLD - KH,Residential Homes,Kisimul Group,11087.32, 22-Mar-2011
1537,Revenue,CCHD,Under 65s PWLD - KH,Residential Homes,Leonard Cheshire  National Account Centr,2905.32, 22-Mar-2011
1538,Revenue,CCHD,Under 65s PWLD - KH,Residential Homes,Mr J Davis & Mrs S Davis,1840, 01-Mar-2011
1539,Revenue,CCHD,Under 65s PWLD - KH,Residential Homes,Mr J Davis & Mrs S Davis,1840, 29-Mar-2011
1540,Revenue,CCHD,Under 65s PWLD - KH,Residential Homes,Nightingale Nursing Home,3047.48, 22-Mar-2011
1541,Revenue,CCHD,Under 65s PWLD - KH,Residential Homes,Penleigh House Care Home,4399.72, 22-Mar-2011
1542,Revenue,CCHD,Under 65s PWLD - KH,Residential Homes,Penleigh House Care Home,5495.76, 22-Mar-2011
1543,Revenue,CCHD,Under 65s PWLD - KH,Residential Homes,Scope   Accounts Dept,4937, 22-Mar-2011
1544,Revenue,CCHD,Under 65s PWLD - KH,Residential Homes,Scope   Accounts Dept,3026.68, 22-Mar-2011
1545,Revenue,CCHD,Under 65s PWLD - KH,Residential Homes,St Brigas,2024.8, 22-Mar-2011
1546,Revenue,CCHD,Under 65s PWLD - KH,Residential Homes,St Brigas,1973.92, 22-Mar-2011
1547,Revenue,CCHD,Under 65s PWLD - KH,Residential Homes,The Brandon Trust  Olympus House,3226.92, 22-Mar-2011
1548,Revenue,CCHD,Under 65s PWLD - KH,Residential Homes,The Manor House,5079.4, 22-Mar-2011
1549,Revenue,CCHD,Under 65s PWLD - KH,Residential Homes,The Manor House,3624.76, 22-Mar-2011
1550,Revenue,CCHD,Under 65s PWLD - KH,Residential Homes,The Manor House,2780.92, 22-Mar-2011
1551,Revenue,CCHD,Under 65s PWLD - KH,Residential Homes,The Manor House,2780.92, 22-Mar-2011
1552,Revenue,CCHD,Under 65s PWLD - KH,Residential Homes,The Manor House,3443.4, 22-Mar-2011
1553,Revenue,CCHD,Under 65s PWLD - KH,Residential Homes,The Manor House,6240.72, 22-Mar-2011
1554,Revenue,CCHD,Under 65s PWLD - KH,Residential Homes,The Manor House,2832.72, 22-Mar-2011
1555,Revenue,CCHD,Under 65s PWLD - KH,Residential Homes,The Manor House,3536.96, 22-Mar-2011
1556,Revenue,CCHD,Under 65s PWLD - KH,Residential Homes,The Manor House,3091.56, 22-Mar-2011
1557,Revenue,CCHD,Under 65s PWLD - KH,Residential Homes,The Manor House,3442.36, 22-Mar-2011
1558,Revenue,CCHD,Under 65s PWLD - KH,Residential Homes,The Manor House,2832.72, 22-Mar-2011
1559,Revenue,CCHD,Under 65s PWLD - KH,Residential Homes,The Manor House,4485.2, 22-Mar-2011
1560,Revenue,CCHD,Under 65s PWLD - KH,Residential Homes,The Manor House,2400.04, 22-Mar-2011
1561,Revenue,CCHD,Under 65s PWLD - KH,Residential Homes,The Manor House,4998.84, 22-Mar-2011
1562,Revenue,CCHD,Under 65s PWLD - KH,Residential Homes,The Manor House,2832.72, 22-Mar-2011
1563,Revenue,CCHD,Under 65s PWLD - KH,Residential Homes,Tomlen,6399.24, 22-Mar-2011
1564,Revenue,CCHD,Under 65s PWLD - KH,Residential Homes,Voyage Ltd,5103.6, 22-Mar-2011
1565,Revenue,CCHD,Under 65s PWLD - KH,Nursing Homes,Somerset Hca Ltd,9510.28, 22-Mar-2011
1566,Revenue,CCHD,Under 65s PWLD - KH,Nursing Homes,The Manor House,4343.64, 22-Mar-2011
1567,Revenue,CCHD,PWLD S 117 Placements,Residential Homes,Unit 2,7341.4, 22-Mar-2011
1568,Revenue,CCHD,PWLD S 117 Placements,Residential Homes,West Court,7773.44, 22-Mar-2011
1569,Revenue,CCHD,S117 Placements PCT,Residential Homes,Alexandra House,6697.76, 22-Mar-2011
1570,Revenue,CCHD,S117 Placements PCT,Residential Homes,Shaw Healthcare Ltd,15925.32, 22-Mar-2011
1571,Revenue,CCHD,S28A - Under 65,Residential Homes,Aspects &  Milestones Trust,5551.68, 22-Mar-2011
1572,Revenue,CCHD,S28A - Under 65,Residential Homes,Aspects &  Milestones Trust,5251.04, 22-Mar-2011
1573,Revenue,CCHD,S28A - Under 65,Residential Homes,Aspects &  Milestones Trust,7330.28, 22-Mar-2011
1574,Revenue,CCHD,S28A - Under 65,Residential Homes,Aspects &  Milestones Trust,7330.28, 22-Mar-2011
1575,Revenue,CCHD,S28A - Under 65,Residential Homes,Aspects &  Milestones Trust,5041.88, 22-Mar-2011
1576,Revenue,CCHD,S28A - Under 65,Residential Homes,Aspects &  Milestones Trust,4909.96, 22-Mar-2011
1577,Revenue,CCHD,S28A - Under 65,Residential Homes,Aspects &  Milestones Trust,7330.28, 22-Mar-2011
1578,Revenue,CCHD,S28A - Under 65,Residential Homes,Aspects &  Milestones Trust,7330.28, 22-Mar-2011
1579,Revenue,CCHD,S28A - Under 65,Residential Homes,Aspects &  Milestones Trust,3695.56, 22-Mar-2011
1580,Revenue,CCHD,S28A - Under 65,Residential Homes,Aspects &  Milestones Trust,5993.64, 22-Mar-2011
1581,Revenue,CCHD,S28A - Under 65,Residential Homes,Aspects &  Milestones Trust,6533.88, 22-Mar-2011
1582,Revenue,CCHD,S28A - Under 65,Residential Homes,Aspects &  Milestones Trust,3992.16, 22-Mar-2011
1583,Revenue,CCHD,S28A - Under 65,Residential Homes,Aspects &  Milestones Trust,5153.96, 22-Mar-2011
1584,Revenue,CCHD,S28A - Under 65,Residential Homes,Aspects &  Milestones Trust,4330.64, 22-Mar-2011
1585,Revenue,CCHD,S28A - Under 65,Residential Homes,Aspects &  Milestones Trust,7330.28, 22-Mar-2011
1586,Revenue,CCHD,S28A - Under 65,Residential Homes,Aspects &  Milestones Trust,3209.64, 22-Mar-2011
1587,Revenue,CCHD,S28A - Under 65,Residential Homes,Aspects &  Milestones Trust,4971.64, 22-Mar-2011
1588,Revenue,CCHD,S28A - Under 65,Residential Homes,Aspects &  Milestones Trust,5986.84, 22-Mar-2011
1589,Revenue,CCHD,S28A - Under 65,Residential Homes,Aspects &  Milestones Trust,3701.88, 22-Mar-2011
1590,Revenue,CCHD,S28A - Under 65,Residential Homes,Aspects &  Milestones Trust,5244.04, 22-Mar-2011
1591,Revenue,CCHD,S28A - Under 65,Residential Homes,Aspects &  Milestones Trust,5936.36, 22-Mar-2011
1592,Revenue,CCHD,S28A - Under 65,Residential Homes,Aspects &  Milestones Trust,4940.92, 22-Mar-2011
1593,Revenue,CCHD,S28A - Under 65,Residential Homes,Aspects &  Milestones Trust,5817.6, 22-Mar-2011
1594,Revenue,CCHD,S28A - Under 65,Residential Homes,Aspects &  Milestones Trust,8022.76, 22-Mar-2011
1595,Revenue,CCHD,S28A - Under 65,Residential Homes,Aspects &  Milestones Trust,1809.95, 22-Mar-2011
1596,Revenue,CCHD,S28A - Under 65,Residential Homes,Aspects &  Milestones Trust,5087.44, 22-Mar-2011
1597,Revenue,CCHD,S28A - Under 65,Residential Homes,Aspects &  Milestones Trust,4921.56, 22-Mar-2011
1598,Revenue,CCHD,S28A - Under 65,Residential Homes,Aspects &  Milestones Trust,5395.08, 22-Mar-2011
1599,Revenue,CCHD,S28A - Under 65,Residential Homes,Aspects &  Milestones Trust,5395.08, 22-Mar-2011
1600,Revenue,CCHD,S28A - Under 65,Residential Homes,Aspects &  Milestones Trust,4586.64, 22-Mar-2011
1601,Revenue,CCHD,S28A - Under 65,Residential Homes,Aspects &  Milestones Trust,5395.08, 22-Mar-2011
1602,Revenue,CCHD,S28A - Under 65,Residential Homes,Aspects &  Milestones Trust,5830.24, 22-Mar-2011
1603,Revenue,CCHD,S28A - Under 65,Residential Homes,Aspects &  Milestones Trust,7604, 22-Mar-2011
1604,Revenue,CCHD,S28A - Under 65,Residential Homes,Aspects &  Milestones Trust,5830.24, 22-Mar-2011
1605,Revenue,CCHD,S28A - Under 65,Residential Homes,Aspects &  Milestones Trust,3355.72, 22-Mar-2011
1606,Revenue,CCHD,S28A - Under 65,Residential Homes,Aspects &  Milestones Trust,5012.44, 22-Mar-2011
1607,Revenue,CCHD,S28A - Under 65,Residential Homes,Aspects &  Milestones Trust,5283.24, 22-Mar-2011
1608,Revenue,CCHD,S28A - Under 65,Residential Homes,Aspects &  Milestones Trust,3946.8, 22-Mar-2011
1609,Revenue,CCHD,S28A - Under 65,Residential Homes,Aspects &  Milestones Trust,5349.96, 22-Mar-2011
1610,Revenue,CCHD,S28A - Under 65,Residential Homes,Aspects &  Milestones Trust,5617.04, 22-Mar-2011
1611,Revenue,CCHD,S28A - Under 65,Residential Homes,Chescombe Lodge,8370.44, 22-Mar-2011
1612,Revenue,CCHD,S28A - Under 65,Residential Homes,Compass Care,9452.04, 22-Mar-2011
1613,Revenue,CCHD,S28A - Under 65,Residential Homes,Craegmoor Healthcare,4517.2, 22-Mar-2011
1614,Revenue,CCHD,S28A - Under 65,Residential Homes,Craegmoor Healthcare,5511.52, 22-Mar-2011
1615,Revenue,CCHD,S28A - Under 65,Residential Homes,Craegmoor Healthcare,5213.52, 22-Mar-2011
1616,Revenue,CCHD,S28A - Under 65,Residential Homes,Craegmoor Healthcare,5715.4, 22-Mar-2011
1617,Revenue,CCHD,S28A - Under 65,Residential Homes,Cream Ii Ltd,7763.48, 22-Mar-2011
1618,Revenue,CCHD,S28A - Under 65,Residential Homes,Creedy Court,8952.64, 22-Mar-2011
1619,Revenue,CCHD,S28A - Under 65,Residential Homes,Creedy Court,7451.92, 22-Mar-2011
1620,Revenue,CCHD,S28A - Under 65,Residential Homes,Freeways Trust Ltd,2856.6, 22-Mar-2011
1621,Revenue,CCHD,S28A - Under 65,Residential Homes,Kelly House,3376.44, 22-Mar-2011
1622,Revenue,CCHD,S28A - Under 65,Residential Homes,Orchard End Limited,7476.56, 22-Mar-2011
1623,Revenue,CCHD,S28A - Under 65,Residential Homes,Osprey Court,4502.16, 22-Mar-2011
1624,Revenue,CCHD,S28A - Under 65,Residential Homes,Osprey Court,6832.8, 22-Mar-2011
1625,Revenue,CCHD,S28A - Under 65,Residential Homes,Penleigh House Care Home,62267.01, 22-Mar-2011
1626,Revenue,CCHD,S28A - Under 65,Residential Homes,Penleigh House Care Home,5299.32, 22-Mar-2011
1627,Revenue,CCHD,S28A - Under 65,Residential Homes,Shaw Healthcare Ltd,10955.36, 22-Mar-2011
1628,Revenue,CCHD,S28A - Under 65,Residential Homes,Shaw Healthcare Ltd,11756.44, 22-Mar-2011
1629,Revenue,CCHD,S28A - Under 65,Residential Homes,Shaw Healthcare Ltd,4876.2, 22-Mar-2011
1630,Revenue,CCHD,S28A - Under 65,Residential Homes,Shaw Healthcare Ltd,9131.32, 22-Mar-2011
1631,Revenue,CCHD,S28A - Under 65,Residential Homes,The Brandon Trust  Olympus House,3806.52, 22-Mar-2011
1632,Revenue,CCHD,S28A - Under 65,Residential Homes,The Brandon Trust  Olympus House,887.4, 22-Mar-2011
1633,Revenue,CCHD,S28A - Under 65,Residential Homes,The Brandon Trust  Olympus House,5954.92, 22-Mar-2011
1634,Revenue,CCHD,S28A - Under 65,Residential Homes,The Brandon Trust  Olympus House,4543.48, 22-Mar-2011
1635,Revenue,CCHD,S28A - Under 65,Residential Homes,The Brandon Trust  Olympus House,5954.92, 22-Mar-2011
1636,Revenue,CCHD,S28A - Under 65,Residential Homes,The Brandon Trust  Olympus House,5798.32, 22-Mar-2011
1637,Revenue,CCHD,S28A - Under 65,Residential Homes,The Brandon Trust  Olympus House,5199.92, 22-Mar-2011
1638,Revenue,CCHD,S28A - Under 65,Residential Homes,The Brandon Trust  Olympus House,4837.24, 22-Mar-2011
1639,Revenue,CCHD,S28A - Under 65,Residential Homes,The Brandon Trust  Olympus House,7122.16, 22-Mar-2011
1640,Revenue,CCHD,S28A - Under 65,Residential Homes,The Brandon Trust  Olympus House,5765.76, 22-Mar-2011
1641,Revenue,CCHD,S28A - Under 65,Residential Homes,The Brandon Trust  Olympus House,5519.68, 22-Mar-2011
1642,Revenue,CCHD,S28A - Under 65,Residential Homes,The Brandon Trust  Olympus House,4613.48, 22-Mar-2011
1643,Revenue,CCHD,S28A - Under 65,Residential Homes,The Brandon Trust  Olympus House,5272.48, 22-Mar-2011
1644,Revenue,CCHD,S28A - Under 65,Residential Homes,The Brandon Trust  Olympus House,4680.64, 22-Mar-2011
1645,Revenue,CCHD,S28A - Under 65,Residential Homes,The Manor House,5023.4, 22-Mar-2011
1646,Revenue,CCHD,S28A - Under 65,Residential Homes,United Response,2488.8, 22-Mar-2011
1647,Revenue,CCHD,S28A - Under 65,Residential Homes,Voyage Ltd,6720.24, 22-Mar-2011
1648,Revenue,CCHD,S28A - Under 65,Nursing Homes,Aspects &  Milestones Trust,5689.72, 22-Mar-2011
1649,Revenue,CCHD,S28A - Under 65,Nursing Homes,Aspects &  Milestones Trust,8022.76, 22-Mar-2011
1650,Revenue,CCHD,S28A - Under 65,Nursing Homes,Aspects &  Milestones Trust,5485.96, 22-Mar-2011
1651,Revenue,CCHD,S28A - Under 65,Nursing Homes,Aspects &  Milestones Trust,6132.88, 22-Mar-2011
1652,Revenue,CCHD,S28A - Under 65,Nursing Homes,Aspects &  Milestones Trust,5068, 22-Mar-2011
1653,Revenue,CCHD,S28A - Under 65,Nursing Homes,Aspects &  Milestones Trust,6214.08, 22-Mar-2011
1654,Revenue,CCHD,S28A - Under 65,Nursing Homes,Aspects &  Milestones Trust,9401.68, 22-Mar-2011
1655,Revenue,CCHD,S28A - Under 65,Nursing Homes,The Brandon Trust  Olympus House,5386.84, 22-Mar-2011
1656,Revenue,CCHD,S28A - Under 65,Nursing Homes,The Brandon Trust  Olympus House,5738.56, 22-Mar-2011
1657,Revenue,CCHD,S28A - Under 65,Nursing Homes,Urmston House,10496.84, 22-Mar-2011
1658,Revenue,CCHD,S28A - Under 65,Nursing Homes,Urmston House,10496.84, 22-Mar-2011
1659,Revenue,CCHD,S28A - Under 65,Nursing Homes,Urmston House,10496.84, 22-Mar-2011
1660,Revenue,CCHD,S28A - Over 65,Residential Homes,Aspects &  Milestones Trust,4029.56, 22-Mar-2011
1661,Revenue,CCHD,S28A - Over 65,Residential Homes,Aspects &  Milestones Trust,4630.43, 22-Mar-2011
1662,Revenue,CCHD,S28A - Over 65,Residential Homes,Aspects &  Milestones Trust,3543.56, 22-Mar-2011
1663,Revenue,CCHD,S28A - Over 65,Residential Homes,Aspects &  Milestones Trust,4167.44, 22-Mar-2011
1664,Revenue,CCHD,S28A - Over 65,Residential Homes,Aspects &  Milestones Trust,4400.96, 22-Mar-2011
1665,Revenue,CCHD,S28A - Over 65,Residential Homes,Aspects &  Milestones Trust,5894.72, 22-Mar-2011
1666,Revenue,CCHD,S28A - Over 65,Residential Homes,Aspects &  Milestones Trust,3355.16, 22-Mar-2011
1667,Revenue,CCHD,S28A - Over 65,Residential Homes,Aspects &  Milestones Trust,5001.08, 22-Mar-2011
1668,Revenue,CCHD,S28A - Over 65,Residential Homes,Aspects &  Milestones Trust,4797.92, 22-Mar-2011
1669,Revenue,CCHD,S28A - Over 65,Residential Homes,Aspects &  Milestones Trust,3251.36, 22-Mar-2011
1670,Revenue,CCHD,S28A - Over 65,Residential Homes,Aspects &  Milestones Trust,3603.28, 22-Mar-2011
1671,Revenue,CCHD,S28A - Over 65,Residential Homes,Aspects &  Milestones Trust,3628.36, 22-Mar-2011
1672,Revenue,CCHD,S28A - Over 65,Residential Homes,Aspects &  Milestones Trust,3435.76, 22-Mar-2011
1673,Revenue,CCHD,S28A - Over 65,Residential Homes,Aspects &  Milestones Trust,4899.16, 22-Mar-2011
1674,Revenue,CCHD,S28A - Over 65,Residential Homes,Aspects &  Milestones Trust,3251.32, 22-Mar-2011
1675,Revenue,CCHD,S28A - Over 65,Residential Homes,Aspects &  Milestones Trust,3312.04, 22-Mar-2011
1676,Revenue,CCHD,S28A - Over 65,Residential Homes,Aspects &  Milestones Trust,3550.8, 22-Mar-2011
1677,Revenue,CCHD,S28A - Over 65,Residential Homes,Aspects &  Milestones Trust,5810.64, 22-Mar-2011
1678,Revenue,CCHD,S28A - Over 65,Residential Homes,Aspects &  Milestones Trust,4106.08, 22-Mar-2011
1679,Revenue,CCHD,S28A - Over 65,Residential Homes,Aspects &  Milestones Trust,4899.16, 22-Mar-2011
1680,Revenue,CCHD,S28A - Over 65,Residential Homes,Aspects &  Milestones Trust,5154, 22-Mar-2011
1681,Revenue,CCHD,S28A - Over 65,Residential Homes,Aspects &  Milestones Trust,4913.08, 22-Mar-2011
1682,Revenue,CCHD,S28A - Over 65,Residential Homes,Aspects &  Milestones Trust,3404.64, 22-Mar-2011
1683,Revenue,CCHD,S28A - Over 65,Residential Homes,Aspects &  Milestones Trust,5516.72, 22-Mar-2011
1684,Revenue,CCHD,S28A - Over 65,Residential Homes,Aspects &  Milestones Trust,3329.48, 22-Mar-2011
1685,Revenue,CCHD,S28A - Over 65,Residential Homes,Aspects &  Milestones Trust,4014.68, 22-Mar-2011
1686,Revenue,CCHD,S28A - Over 65,Residential Homes,Aspects &  Milestones Trust,4804.2, 22-Mar-2011
1687,Revenue,CCHD,S28A - Over 65,Residential Homes,Aspects &  Milestones Trust,4252.44, 22-Mar-2011
1688,Revenue,CCHD,S28A - Over 65,Residential Homes,Aspects &  Milestones Trust,5810.64, 22-Mar-2011
1689,Revenue,CCHD,S28A - Over 65,Residential Homes,Aspects &  Milestones Trust,4641.36, 22-Mar-2011
1690,Revenue,CCHD,S28A - Over 65,Residential Homes,Aspects &  Milestones Trust,4123.52, 22-Mar-2011
1691,Revenue,CCHD,S28A - Over 65,Residential Homes,Aspects &  Milestones Trust,4345.84, 22-Mar-2011
1692,Revenue,CCHD,S28A - Over 65,Residential Homes,Aspects &  Milestones Trust,4946.48, 22-Mar-2011
1693,Revenue,CCHD,S28A - Over 65,Residential Homes,Aspects &  Milestones Trust,4940.76, 22-Mar-2011
1694,Revenue,CCHD,S28A - Over 65,Residential Homes,Leonard Cheshire  National Account Centr,2859.24, 22-Mar-2011
1695,Revenue,CCHD,S28A - Over 65,Residential Homes,Rockleaze,2033.32, 22-Mar-2011
1696,Revenue,CCHD,S28A - Over 65,Residential Homes,Shaw Healthcare Ltd,4876.2, 22-Mar-2011
1697,Revenue,CCHD,S28A - Over 65,Residential Homes,Shaw Healthcare Ltd,4876.2, 22-Mar-2011
1698,Revenue,CCHD,S28A - Over 65,Residential Homes,Shaw Healthcare Ltd,4876.2, 22-Mar-2011
1699,Revenue,CCHD,S28A - Over 65,Residential Homes,Shaw Healthcare Ltd,4884.2, 22-Mar-2011
1700,Revenue,CCHD,S28A - Over 65,Residential Homes,St Davids Lodge,3092.28, 22-Mar-2011
1701,Revenue,CCHD,S28A - Over 65,Residential Homes,St Davids Lodge,3042.56, 22-Mar-2011
1702,Revenue,CCHD,S28A - Over 65,Residential Homes,St Davids Lodge,2003, 22-Mar-2011
1703,Revenue,CCHD,S28A - Over 65,Residential Homes,The Brandon Trust  Olympus House,3555.76, 22-Mar-2011
1704,Revenue,CCHD,S28A - Over 65,Residential Homes,The Brandon Trust  Olympus House,2979.48, 22-Mar-2011
1705,Revenue,CCHD,S28A - Over 65,Nursing Homes,Horfield Care Limited,1524, 09-Mar-2011
1706,Revenue,CCHD,S28A - Over 65,Nursing Homes,Shaw Healthcare Ltd,71859.61, 22-Mar-2011
1707,Revenue,CCHD,Purchase of RAC places,Other L.A.'s - General,Bath & North East Somerset Dist Council,3631.66, 29-Mar-2011
1708,Revenue,CCHD,Purchase of RAC places,Other L.A.'s - General,Bath & North East Somerset Dist Council,21945.77, 29-Mar-2011
1709,Revenue,CCHD,Purchase of RAC places,Other L.A.'s - General,Bristol City Council,12084.24, 11-Mar-2011
1710,Revenue,CCHD,Purchase of RAC places,Other L.A.'s - General,Bristol City Council,9307.98, 11-Mar-2011
1711,Revenue,CCHD,Purchase of RAC places,Other L.A.'s - General,Bristol City Council,8413.24, 11-Mar-2011
1712,Revenue,CCHD,Purchase of RAC places,Other L.A.'s - General,Bristol City Council,14930.88, 24-Mar-2011
1713,Revenue,CCHD,PWLD Home Care - Under 65 - PS,Private & Voluntary Home Care,Guardian Homecare (Bristol & Avon) Ltd,31.84, 11-Mar-2011
1714,Revenue,CCHD,PWLD Home Care - Under 65 - PS,Private & Voluntary Home Care,Guardian Homecare (Bristol & Avon) Ltd,31.84, 10-Mar-2011
1715,Revenue,CCHD,PWLD Home Care - Under 65 - PS,Private & Voluntary Home Care,Guardian Homecare (Bristol & Avon) Ltd,31.84, 10-Mar-2011
1716,Revenue,CCHD,PWLD Home Care - Under 65 - PS,Private & Voluntary Home Care,Guardian Homecare (Bristol & Avon) Ltd,31.84, 28-Mar-2011
1717,Revenue,CCHD,PWLD Home Care - Under 65 - KD,Private & Voluntary Home Care,Guardian Homecare (Bristol & Avon) Ltd,15.92, 11-Mar-2011
1718,Revenue,CCHD,PWLD Home Care - Under 65 - KD,Private & Voluntary Home Care,Guardian Homecare (Bristol & Avon) Ltd,15.92, 10-Mar-2011
1719,Revenue,CCHD,PWLD Home Care - Under 65 - KD,Private & Voluntary Home Care,Guardian Homecare (Bristol & Avon) Ltd,15.92, 10-Mar-2011
1720,Revenue,CCHD,PWLD Home Care - Under 65 - KD,Private & Voluntary Home Care,Guardian Homecare (Bristol & Avon) Ltd,15.92, 28-Mar-2011
1721,Revenue,CCHD,PWLD Home Care - Under 65 - KH,Private & Voluntary Home Care,Guardian Homecare (Bristol & Avon) Ltd,135.32, 11-Mar-2011
1722,Revenue,CCHD,PWLD Home Care - Under 65 - KH,Private & Voluntary Home Care,Guardian Homecare (Bristol & Avon) Ltd,167.16, 10-Mar-2011
1723,Revenue,CCHD,PWLD Home Care - Under 65 - KH,Private & Voluntary Home Care,Guardian Homecare (Bristol & Avon) Ltd,159.2, 10-Mar-2011
1724,Revenue,CCHD,PWLD Home Care - Under 65 - KH,Private & Voluntary Home Care,Guardian Homecare (Bristol & Avon) Ltd,167.16, 28-Mar-2011
1725,Revenue,CCHD,Purchase of Non-Res Care - KD,Private & Voluntary Home Care,Natureworks Training Community Interest,2063.52, 24-Mar-2011
1726,Revenue,CCHD,Purchase of Non-Res Care - KD,Private & Voluntary Day Care,3 Trees Community Support Ltd,4880.11, 30-Mar-2011
1727,Revenue,CCHD,Purchase of Non-Res Care - KD,Private & Voluntary Day Care,3 Trees Community Support Ltd,1661.4, 22-Mar-2011
1728,Revenue,CCHD,Purchase of Non-Res Care - KD,Private & Voluntary Day Care,3 Trees Community Support Ltd,1420.95, 22-Mar-2011
1729,Revenue,CCHD,Purchase of Non-Res Care - KD,Private & Voluntary Day Care,3 Trees Community Support Ltd,528.64, 22-Mar-2011
1730,Revenue,CCHD,Purchase of Non-Res Care - KD,Private & Voluntary Day Care,3 Trees Community Support Ltd,5547.95, 22-Mar-2011
1731,Revenue,CCHD,Purchase of Non-Res Care - KD,Private & Voluntary Day Care,Aspects and Milestones Trust,1900.18, 16-Mar-2011
1732,Revenue,CCHD,Purchase of Non-Res Care - KD,Private & Voluntary Day Care,Aspects and Milestones Trust,819.72, 17-Mar-2011
1733,Revenue,CCHD,Purchase of Non-Res Care - KD,Private & Voluntary Day Care,Avon Autistic Foundation Limited,2467.98, 14-Mar-2011
1734,Revenue,CCHD,Purchase of Non-Res Care - KD,Private & Voluntary Day Care,Avon Autistic Foundation Limited,3290.64, 16-Mar-2011
1735,Revenue,CCHD,Purchase of Non-Res Care - KD,Private & Voluntary Day Care,Avon Autistic Foundation Limited,2989.44, 14-Mar-2011
1736,Revenue,CCHD,Purchase of Non-Res Care - KD,Private & Voluntary Day Care,Care Horizons Limited,848.89, 30-Mar-2011
1737,Revenue,CCHD,Purchase of Non-Res Care - KD,Private & Voluntary Day Care,Care Horizons Limited,1529.51, 30-Mar-2011
1738,Revenue,CCHD,Purchase of Non-Res Care - KD,Private & Voluntary Day Care,Care Horizons Limited,1145.79, 30-Mar-2011
1739,Revenue,CCHD,Purchase of Non-Res Care - KD,Private & Voluntary Day Care,Mrs W Thompson,1460, 10-Mar-2011
1740,Revenue,CCHD,Purchase of Non-Res Care - KD,Private & Voluntary Day Care,Mrs W Thompson,554, 10-Mar-2011
1741,Revenue,CCHD,Purchase of Non-Res Care - KD,Private & Voluntary Day Care,Natureworks Training Community Interest,2736.76, 24-Mar-2011
1742,Revenue,CCHD,Purchase of Non-Res Care - KD,Private & Voluntary Day Care,Selborne Care Ltd,1382.88, 23-Mar-2011
1743,Revenue,CCHD,Purchase of Non-Res Care - KD,Private & Voluntary Day Care,Selborne Care Ltd,878.08, 23-Mar-2011
1744,Revenue,CCHD,Purchase of Non-Res Care - KD,Private & Voluntary Day Care,Selborne Care Ltd,816.64, 29-Mar-2011
1745,Revenue,CCHD,Purchase of Non-Res Care - KD,Private & Voluntary Day Care,Selborne Care Ltd,768.32, 23-Mar-2011
1746,Revenue,CCHD,Purchase of Non-Res Care - KD,Private & Voluntary Day Care,Selborne Care Ltd,721.76, 23-Mar-2011
1747,Revenue,CCHD,Purchase of Non-Res Care - KD,Private & Voluntary Day Care,Shaw Healthcare Specialist Services Ltd,1182.75, 30-Mar-2011
1748,Revenue,CCHD,Purchase of Non-Res Care - KD,Private & Voluntary Day Care,Smile Independent Living Support Limited,1621.4, 03-Mar-2011
1749,Revenue,CCHD,Purchase of Non-Res Care - KD,Private & Voluntary Day Care,Smile Independent Living Support Limited,601.4, 14-Mar-2011
1750,Revenue,CCHD,Purchase of Non-Res Care - KD,Private & Voluntary Day Care,Smile Independent Living Support Limited,808.55, 14-Mar-2011
1751,Revenue,CCHD,Purchase of Non-Res Care - KD,Private & Voluntary Day Care,Smile Independent Living Support Limited,989.58, 14-Mar-2011
1752,Revenue,CCHD,Purchase of Non-Res Care - KD,Private & Voluntary Day Care,Smile Independent Living Support Limited,739.9, 14-Mar-2011
1753,Revenue,CCHD,Purchase of Non-Res Care - KD,Private & Voluntary Day Care,Smile Independent Living Support Limited,538.3, 14-Mar-2011
1754,Revenue,CCHD,Purchase of Non-Res Care - KD,Private & Voluntary Day Care,Smile Independent Living Support Limited,1507.55, 14-Mar-2011
1755,Revenue,CCHD,Purchase of Non-Res Care - KD,Private & Voluntary Day Care,Smile Independent Living Support Limited,1096.2, 14-Mar-2011
1756,Revenue,CCHD,Purchase of Non-Res Care - KD,Private & Voluntary Day Care,Smile Independent Living Support Limited,1072.65, 14-Mar-2011
1757,Revenue,CCHD,Purchase of Non-Res Care - KD,Private & Voluntary Day Care,Smile Independent Living Support Limited,899.6, 14-Mar-2011
1758,Revenue,CCHD,Purchase of Non-Res Care - KD,Private & Voluntary Day Care,Smile Independent Living Support Limited,1068.8, 14-Mar-2011
1759,Revenue,CCHD,Purchase of Non-Res Care - KD,Private & Voluntary Day Care,Smile Independent Living Support Limited,689.05, 14-Mar-2011
1760,Revenue,CCHD,Purchase of Non-Res Care - KD,Private & Voluntary Day Care,The Brandon Trust,4463.82, 23-Mar-2011
1761,Revenue,CCHD,Purchase of Non-Res Care - KD,Private & Voluntary Day Care,The Brandon Trust,1645.13, 23-Mar-2011
1762,Revenue,CCHD,Purchase of Non-Res Care - KH,Private & Voluntary Day Care,Aspects and Milestones Trust,1168.86, 16-Mar-2011
1763,Revenue,CCHD,Purchase of Non-Res Care - KH,Private & Voluntary Day Care,Aspects and Milestones Trust,1328.87, 17-Mar-2011
1764,Revenue,CCHD,Purchase of Non-Res Care - KH,Private & Voluntary Day Care,Aspects and Milestones Trust,761.03, 17-Mar-2011
1765,Revenue,CCHD,Purchase of Non-Res Care - KH,Private & Voluntary Day Care,Aspects and Milestones Trust,971.83, 17-Mar-2011
1766,Revenue,CCHD,Purchase of Non-Res Care - KH,Private & Voluntary Day Care,Aspects and Milestones Trust,963.7, 17-Mar-2011
1767,Revenue,CCHD,Purchase of Non-Res Care - KH,Private & Voluntary Day Care,Aspects and Milestones Trust,1706.16, 17-Mar-2011
1768,Revenue,CCHD,Purchase of Non-Res Care - KH,Private & Voluntary Day Care,Aspects and Milestones Trust,1197.56, 17-Mar-2011
1769,Revenue,CCHD,Purchase of Non-Res Care - KH,Private & Voluntary Day Care,Servoca Nursing & Care,798.34, 21-Mar-2011
1770,Revenue,CCHD,Purchase of Non-Res Care - KH,Private & Voluntary Day Care,Servoca Nursing & Care,1271.27, 31-Mar-2011
1771,Revenue,CCHD,Purchase of Non-Res Care - KH,Private & Voluntary Day Care,Servoca Nursing & Care,705.73, 21-Mar-2011
1772,Revenue,CCHD,Purchase of Non-Res Care - KH,Private & Voluntary Day Care,Servoca Nursing & Care,1358.6, 31-Mar-2011
1773,Revenue,CCHD,Purchase of Non-Res Care - KH,Private & Voluntary Day Care,The Brandon Trust,559.98, 22-Mar-2011
1774,Revenue,CCHD,Purchase of Non-Res Care - KH,Private & Voluntary Day Care,The Brandon Trust,5453, 14-Mar-2011
1775,Revenue,CCHD,Purchase of Non-Res Care - KH,Private & Voluntary Day Care,United Response,3017.04, 10-Mar-2011
1776,Revenue,CCHD,Blackhorse RAC,Electricity,EDF Energy 1 Limited,595.69, 15-Mar-2011
1777,Revenue,CCHD,Blackhorse RAC,Refuse Collection Charges,SITA UK LTD,583.14, 02-Mar-2011
1778,Revenue,CCHD,Purchase of Non-Res Care - PS,Private & Voluntary Day Care,Aspects and Milestones Trust,953.12, 17-Mar-2011
1779,Revenue,CCHD,Purchase of Non-Res Care - PS,Private & Voluntary Day Care,Aspects and Milestones Trust,1327.65, 17-Mar-2011
1780,Revenue,CCHD,Purchase of Non-Res Care - PS,Private & Voluntary Day Care,Aspects and Milestones Trust,1516, 17-Mar-2011
1781,Revenue,CCHD,Purchase of Non-Res Care - PS,Private & Voluntary Day Care,Aspects and Milestones Trust,1109.03, 17-Mar-2011
1782,Revenue,CCHD,Purchase of Non-Res Care - PS,Private & Voluntary Day Care,Aspects and Milestones Trust,829.36, 17-Mar-2011
1783,Revenue,CCHD,Purchase of Non-Res Care - PS,Private & Voluntary Day Care,Aspects and Milestones Trust,1305.05, 17-Mar-2011
1784,Revenue,CCHD,Purchase of Non-Res Care - PS,Private & Voluntary Day Care,Aspects and Milestones Trust,1395.23, 17-Mar-2011
1785,Revenue,CCHD,Purchase of Non-Res Care - PS,Private & Voluntary Day Care,Aspects and Milestones Trust,1330.41, 17-Mar-2011
1786,Revenue,CCHD,Purchase of Non-Res Care - PS,Private & Voluntary Day Care,Aspects and Milestones Trust,1000.9, 18-Mar-2011
1787,Revenue,CCHD,Purchase of Non-Res Care - PS,Private & Voluntary Day Care,Care Horizons Limited,1247.28, 16-Mar-2011
1788,Revenue,CCHD,Purchase of Non-Res Care - PS,Private & Voluntary Day Care,Smile Independent Living Support Limited,762.8, 14-Mar-2011
1789,Revenue,CCHD,Purchase of Non-Res Care - PS,Private & Voluntary Day Care,Supported Independance Ltd,2496, 03-Mar-2011
1790,Revenue,CCHD,Purchase of Non-Res Care - PS,Private & Voluntary Day Care,The Brandon Trust,622.2, 10-Mar-2011
1791,Revenue,CCHD,Purchase of Non-Res Care - PS,Private & Voluntary Day Care,The Brandon Trust,559.98, 10-Mar-2011
1792,Revenue,CCHD,Purchase of Non-Res Care - PS,Private & Voluntary Day Care,The Brandon Trust,1153.13, 10-Mar-2011
1793,Revenue,CCHD,Purchase of Non-Res Care - PS,Private & Voluntary Day Care,The Brandon Trust,650.88, 10-Mar-2011
1794,Revenue,CCHD,Purchase of Non-Res Care - PS,Private & Voluntary Day Care,The Brandon Trust,748.25, 10-Mar-2011
1795,Revenue,CCHD,Purchase of Non-Res Care - PS,Private & Voluntary Day Care,The Brandon Trust,1043.29, 10-Mar-2011
1796,Revenue,CCHD,Purchase of Non-Res Care - PS,Private & Voluntary Day Care,The Brandon Trust,584.25, 10-Mar-2011
1797,Revenue,CCHD,Purchase of Non-Res Care - PS,Private & Voluntary Day Care,The Brandon Trust,871.08, 16-Mar-2011
1798,Revenue,CCHD,Purchase of Non-Res Care - PS,Private & Voluntary Day Care,The Brandon Trust,1347.71, 16-Mar-2011
1799,Revenue,CCHD,Turnberries,Furniture & Fittings Loose,Medaco,496, 04-Mar-2011
1800,Revenue,CCHD,Turnberries,Furniture & Fittings Loose,Springfield Supplies & Projects,478.25, 16-Mar-2011
1801,Revenue,CCHD,Chipping Sodbury Memorial Day,Agency Staff (Operational)/PCT Pay,South Gloucestershire Primary Care Trust,14779.83, 08-Mar-2011
1802,Revenue,CCHD,Chipping Sodbury Memorial Day,Agency Staff (Operational)/PCT Pay,South Gloucestershire Primary Care Trust,14792.95, 15-Mar-2011
1803,Revenue,CCHD,Chipping Sodbury Memorial Day,Agency Staff (Operational)/PCT Pay,South Gloucestershire Primary Care Trust,10532.88, 29-Mar-2011
1804,Revenue,CCHD,Chipping Sodbury Memorial Day,Training Expenses,South Gloucestershire Primary Care Trust,50, 30-Mar-2011
1805,Revenue,CCHD,Chipping Sodbury Memorial Day,Professional Fees,South Gloucestershire Primary Care Trust,400, 31-Mar-2011
1806,Revenue,CCHD,Chipping Sodbury Memorial Day,Prop.Serv. General Repairs,South Gloucestershire Primary Care Trust,1586.14, 30-Mar-2011
1807,Revenue,CCHD,Chipping Sodbury Memorial Day,Prop.Serv. General Repairs,South Gloucestershire Primary Care Trust,2297.81, 16-Mar-2011
1808,Revenue,CCHD,Chipping Sodbury Memorial Day,Prop.Serv. General Repairs,South Gloucestershire Primary Care Trust,987.14, 31-Mar-2011
1809,Revenue,CCHD,Chipping Sodbury Memorial Day,Motor Insurance,South Gloucestershire Primary Care Trust,-262.27, 30-Mar-2011
1810,Revenue,CCHD,Chipping Sodbury Memorial Day,Staff Travel Expenses,South Gloucestershire Primary Care Trust,583.16, 30-Mar-2011
1811,Revenue,CCHD,Chipping Sodbury Memorial Day,Staff Travel Expenses,South Gloucestershire Primary Care Trust,705.22, 16-Mar-2011
1812,Revenue,CCHD,Chipping Sodbury Memorial Day,Staff Travel Expenses,South Gloucestershire Primary Care Trust,595.07, 31-Mar-2011
1813,Revenue,CCHD,Chipping Sodbury Memorial Day,Telephones,South Gloucestershire Primary Care Trust,309.39, 30-Mar-2011
1814,Revenue,CCHD,Chipping Sodbury Memorial Day,Radio Pager/Mobile Phones,South Gloucestershire Primary Care Trust,2.35, 30-Mar-2011
1815,Revenue,CCHD,Chipping Sodbury Memorial Day,Radio Pager/Mobile Phones,South Gloucestershire Primary Care Trust,2.35, 16-Mar-2011
1816,Revenue,CCHD,Hydrotherapy,Agency Staff (Operational)/PCT Pay,South Gloucestershire Primary Care Trust,7517.71, 08-Mar-2011
1817,Revenue,CCHD,Hydrotherapy,Agency Staff (Operational)/PCT Pay,South Gloucestershire Primary Care Trust,7581.93, 15-Mar-2011
1818,Revenue,CCHD,Hydrotherapy,Agency Staff (Operational)/PCT Pay,South Gloucestershire Primary Care Trust,7638.5, 29-Mar-2011
1819,Revenue,CCHD,Hydrotherapy,Prop.Serv. General Repairs,South Gloucestershire Primary Care Trust,1040.24, 30-Mar-2011
1820,Revenue,CCHD,Hydrotherapy,Prop.Serv. General Repairs,South Gloucestershire Primary Care Trust,2992.01, 16-Mar-2011
1821,Revenue,CCHD,Hydrotherapy,Prop.Serv. General Repairs,South Gloucestershire Primary Care Trust,912.89, 31-Mar-2011
1822,Revenue,CCHD,Hydrotherapy,Electricity,South Gloucestershire Primary Care Trust,2060.39, 30-Mar-2011
1823,Revenue,CCHD,Hydrotherapy,Electricity,South Gloucestershire Primary Care Trust,853.86, 31-Mar-2011
1824,Revenue,CCHD,Hydrotherapy,Gas,South Gloucestershire Primary Care Trust,2050.26, 30-Mar-2011
1825,Revenue,CCHD,Hydrotherapy,Gas,South Gloucestershire Primary Care Trust,1013.96, 31-Mar-2011
1826,Revenue,CCHD,Hydrotherapy,Water Charges,Bristol Wessex Billing Services Limited,692.17, 31-Mar-2011
1827,Revenue,CCHD,Hydrotherapy,Cleaning & Domestic Supplies,South Gloucestershire Primary Care Trust,4.38, 30-Mar-2011
1828,Revenue,CCHD,Hydrotherapy,Cleaning & Domestic Supplies,South Gloucestershire Primary Care Trust,130.81, 16-Mar-2011
1829,Revenue,CCHD,Hydrotherapy,Cleaning & Domestic Supplies,South Gloucestershire Primary Care Trust,52.36, 31-Mar-2011
1830,Revenue,CCHD,Hydrotherapy,Refuse Collection Charges,South Gloucestershire Primary Care Trust,21, 31-Mar-2011
1831,Revenue,CCHD,Hydrotherapy,Staff Travel Expenses,South Gloucestershire Primary Care Trust,183.57, 30-Mar-2011
1832,Revenue,CCHD,Hydrotherapy,Uniforms & Clothing,South Gloucestershire Primary Care Trust,-37.41, 30-Mar-2011
1833,Revenue,CCHD,Hydrotherapy,Uniforms & Clothing,South Gloucestershire Primary Care Trust,16.2, 31-Mar-2011
1834,Revenue,CCHD,Hydrotherapy,Printing & Stationery,South Gloucestershire Primary Care Trust,62.86, 30-Mar-2011
1835,Revenue,CCHD,Hydrotherapy,Printing & Stationery,South Gloucestershire Primary Care Trust,31.55, 31-Mar-2011
1836,Revenue,CCHD,Hydrotherapy,Other Consumable Materials,South Gloucestershire Primary Care Trust,18.66, 16-Mar-2011
1837,Revenue,CCHD,Hydrotherapy,Other Consumable Materials,South Gloucestershire Primary Care Trust,52.89, 31-Mar-2011
1838,Revenue,CCHD,Hydrotherapy,Telephones,South Gloucestershire Primary Care Trust,85.88, 31-Mar-2011
1839,Revenue,CCHD,Hydrotherapy,Radio Pager/Mobile Phones,South Gloucestershire Primary Care Trust,58.75, 16-Mar-2011
1840,Revenue,CCHD,Home Care - Elderly LD - KH,Private & Voluntary Home Care,Mears Care,65.8, 08-Mar-2011
1841,Revenue,CCHD,Home Care - Elderly LD - KH,Private & Voluntary Home Care,Mears Care,65.8, 30-Mar-2011
1842,Revenue,CCHD,Home Care - Elderly LD - KH,Private & Voluntary Home Care,Mears Care,65.8, 30-Mar-2011
1843,Revenue,CCHD,Brandon Day Care,Private & Voluntary Day Care,The Brandon Trust,27641, 03-Mar-2011
1844,Revenue,CCHD,LD - Kingswood PCT,Agency Staff (Operational)/PCT Pay,South Gloucestershire Primary Care Trust,19216.12, 08-Mar-2011
1845,Revenue,CCHD,LD - Kingswood PCT,Agency Staff (Operational)/PCT Pay,South Gloucestershire Primary Care Trust,18591.46, 15-Mar-2011
1846,Revenue,CCHD,LD - Kingswood PCT,Agency Staff (Operational)/PCT Pay,South Gloucestershire Primary Care Trust,16134.59, 29-Mar-2011
1847,Revenue,CCHD,LD - Kingswood PCT,Prop.Serv. General Repairs,South Gloucestershire Primary Care Trust,1426.23, 30-Mar-2011
1848,Revenue,CCHD,LD - Kingswood PCT,Prop.Serv. General Repairs,South Gloucestershire Primary Care Trust,2015.81, 16-Mar-2011
1849,Revenue,CCHD,LD - Kingswood PCT,Prop.Serv. General Repairs,South Gloucestershire Primary Care Trust,848.56, 31-Mar-2011
1850,Revenue,CCHD,LD - Kingswood PCT,Gas,npower,1247.53, 04-Mar-2011
1851,Revenue,CCHD,LD - Kingswood PCT,Staff Travel Expenses,South Gloucestershire Primary Care Trust,334.44, 30-Mar-2011
1852,Revenue,CCHD,LD - Kingswood PCT,Staff Travel Expenses,South Gloucestershire Primary Care Trust,218.54, 16-Mar-2011
1853,Revenue,CCHD,LD - Kingswood PCT,Staff Travel Expenses,South Gloucestershire Primary Care Trust,632.21, 31-Mar-2011
1854,Revenue,CCHD,LD - Kingswood PCT,Other Transport Costs,Kingswood Congregational Church,560, 08-Mar-2011
1855,Revenue,CCHD,LD - Kingswood PCT,Radio Pager/Mobile Phones,South Gloucestershire Primary Care Trust,8.82, 30-Mar-2011
1856,Revenue,CCHD,LD - Kingswood PCT,Radio Pager/Mobile Phones,South Gloucestershire Primary Care Trust,12.58, 16-Mar-2011
1857,Revenue,CCHD,Adult LD - Thornbury PCT,Agency Staff (Operational)/PCT Pay,South Gloucestershire Primary Care Trust,13831.42, 08-Mar-2011
1858,Revenue,CCHD,Adult LD - Thornbury PCT,Agency Staff (Operational)/PCT Pay,South Gloucestershire Primary Care Trust,13870.7, 15-Mar-2011
1859,Revenue,CCHD,Adult LD - Thornbury PCT,Agency Staff (Operational)/PCT Pay,South Gloucestershire Primary Care Trust,13918.66, 29-Mar-2011
